Service,Expense Subtype,Merchant Name,Expense Invoice Date,Total Expense
D1100G-ADULTS & PUBLIC HEALTH,Education-Library Books,Amazon UK Marketplace,04-Apr-2018,24.19
D1100G-ADULTS & PUBLIC HEALTH,Organised Activities,FIRST MILE LTD,04-Apr-2018,33.75
D1100G-ADULTS & PUBLIC HEALTH,Banquet & Catering,WWW.EVENTSUPPLIES.CO.U,06-Apr-2018,167.16
D1100G-ADULTS & PUBLIC HEALTH,Legal Services-Other,HMCOURTS-SERVICE.G,06-Apr-2018,150.00
D1100G-ADULTS & PUBLIC HEALTH,Education-Library Books,AMAZON SVCS EU-UK AMAZON.,06-Apr-2018,39.37
D1100G-ADULTS & PUBLIC HEALTH,Catering Food & Drink,ICELAND,09-Apr-2018,28.05
D1100G-ADULTS & PUBLIC HEALTH,Catering Food & Drink,MN WEST NORWOOD HALAL,09-Apr-2018,24.43
D1100G-ADULTS & PUBLIC HEALTH,Education-Library Books,AMAZON SVCS EU-UK AMAZON.,09-Apr-2018,23.97
D1100G-ADULTS & PUBLIC HEALTH,Catering Food & Drink,TESCO STORES 5999,09-Apr-2018,82.83
D1100G-ADULTS & PUBLIC HEALTH,Catering Food & Drink,TESCO STORE 2143,09-Apr-2018,23.55
D1100G-ADULTS & PUBLIC HEALTH,Catering Food & Drink,ICELAND,10-Apr-2018,220.49
D1100G-ADULTS & PUBLIC HEALTH,Travel/Subsistence,VIRGIN TRAINS,10-Apr-2018,196.00
D1100G-ADULTS & PUBLIC HEALTH,Catering Food & Drink,TESCO STORES 4342,10-Apr-2018,16.28
D1100G-ADULTS & PUBLIC HEALTH,Legal Services-Other,HMCOURTS-SERVICE.G,10-Apr-2018,150.00
D1100G-ADULTS & PUBLIC HEALTH,Financial Services,PO KENNINGTON PARK 0711,11-Apr-2018,400.00
D1100G-ADULTS & PUBLIC HEALTH,Accommodation,CASH ADVANCE FEE,12-Apr-2018,11.80
D1100G-ADULTS & PUBLIC HEALTH,Catering Food & Drink,LIDL UK,12-Apr-2018,27.93
D1100G-ADULTS & PUBLIC HEALTH,Legal Services-Other,HMCOURTS-SERVICE.G,13-Apr-2018,150.00
D1100G-ADULTS & PUBLIC HEALTH,Catering Food & Drink,TESCO STORE 2143,13-Apr-2018,138.08
D1100G-ADULTS & PUBLIC HEALTH,Catering Food & Drink,ICELAND,13-Apr-2018,21.50
D1100G-ADULTS & PUBLIC HEALTH,Catering Food & Drink,SAINSBURY'S,15-Apr-2018,14.80
D1100G-ADULTS & PUBLIC HEALTH,Catering Food & Drink,ICELAND,16-Apr-2018,47.54
D1100G-ADULTS & PUBLIC HEALTH,Catering Food & Drink,MN WEST NORWOOD HALAL,16-Apr-2018,112.86
D1100G-ADULTS & PUBLIC HEALTH,Legal Services-Other,HMCOURTS-SERVICE.G,16-Apr-2018,300.00
D1100G-ADULTS & PUBLIC HEALTH,Facilities-Printing,GRAFENIA PLC,16-Apr-2018,46.80
D1100G-ADULTS & PUBLIC HEALTH,Catering Food & Drink,TESCO STORE 2764,17-Apr-2018,85.25
D1100G-ADULTS & PUBLIC HEALTH,Catering Food & Drink,TESCO STORES 5999,17-Apr-2018,77.93
D1100G-ADULTS & PUBLIC HEALTH,Consultancy-Business,EB *NATIONAL AMHP LEAD,18-Apr-2018,50.00
D1100G-ADULTS & PUBLIC HEALTH,Education-Arts/Crafts,COWLING & WILCOX LTD,19-Apr-2018,236.08
D1100G-ADULTS & PUBLIC HEALTH,Legal Services-Other,HMCOURTS-SERVICE.G,19-Apr-2018,150.00
D1100G-ADULTS & PUBLIC HEALTH,Catering Food & Drink,ICELAND,19-Apr-2018,249.75
D1100G-ADULTS & PUBLIC HEALTH,Education-Arts/Crafts,COWLING & WILCOX LTD,19-Apr-2018,-124.23
D1100G-ADULTS & PUBLIC HEALTH,Legal Services-Other,HMCOURTS-SERVICE.G,20-Apr-2018,150.00
D1100G-ADULTS & PUBLIC HEALTH,Catering Food & Drink,MN WEST NORWOOD HALAL,23-Apr-2018,28.64
D1100G-ADULTS & PUBLIC HEALTH,Catering Food & Drink,TESCO STORES 5999,23-Apr-2018,46.36
D1100G-ADULTS & PUBLIC HEALTH,Catering Food & Drink,TESCO STORE 2445,23-Apr-2018,98.59
D1100G-ADULTS & PUBLIC HEALTH,Education-Other,WWW.CIMAGLOBAL.COM,23-Apr-2018,-70.00
D1100G-ADULTS & PUBLIC HEALTH,Legal Services-Other,HMCOURTS-SERVICE.G,24-Apr-2018,75.00
D1100G-ADULTS & PUBLIC HEALTH,Education-Library Books,AMAZON SVCS EU-UK AMAZON.,25-Apr-2018,56.75
D1100G-ADULTS & PUBLIC HEALTH,Legal Services-Other,HMCOURTS-SERVICE.G,27-Apr-2018,150.00
D1100G-ADULTS & PUBLIC HEALTH,Catering Food & Drink,ICELAND,27-Apr-2018,83.73
D1100G-ADULTS & PUBLIC HEALTH,Accommodation,HOTEL IBIS,30-Apr-2018,242.08
D1100G-ADULTS & PUBLIC HEALTH,Catering Food & Drink,TESCO STORES 5999,30-Apr-2018,57.51
D1100G-ADULTS & PUBLIC HEALTH,Financial Services,LAMBETH INTERNET PAYM,30-Apr-2018,160.00
D1100G-ADULTS & PUBLIC HEALTH,Travel/Subsistence,VIRGIN TRAINS,30-Apr-2018,50.00
D1100G-ADULTS & PUBLIC HEALTH,IT Software-Customised,WWW.EUKHOST.COM,01-May-2018,29.94
D1100G-ADULTS & PUBLIC HEALTH,Education-Other,WWW.WESTMINSTER-BRIEFI,02-May-2018,421.20
D1100G-ADULTS & PUBLIC HEALTH,Legal Services-Other,HMCOURTS-SERVICE.G,02-May-2018,75.00
D1100G-ADULTS & PUBLIC HEALTH,Travel/Subsistence,GWR WEBSALES,03-May-2018,172.00
D1100G-ADULTS & PUBLIC HEALTH,Catering Food & Drink,MN WEST NORWOOD HALAL,08-May-2018,26.78
D1100G-ADULTS & PUBLIC HEALTH,Catering Food & Drink,ICELAND,08-May-2018,133.22
D1100G-ADULTS & PUBLIC HEALTH,Catering Food & Drink,TESCO STORES 5999,08-May-2018,71.76
D1100G-ADULTS & PUBLIC HEALTH,Catering Food & Drink,DOMBEY WHOLESALE BUTCH,09-May-2018,212.92
D1100G-ADULTS & PUBLIC HEALTH,Catering Food & Drink,TESCO STORE 2143,09-May-2018,11.76
D1100G-ADULTS & PUBLIC HEALTH,Catering Food & Drink,ICELAND,11-May-2018,193.79
D1100G-ADULTS & PUBLIC HEALTH,Catering Food & Drink,LIDL UK  LONDON,11-May-2018,15.96
D1100G-ADULTS & PUBLIC HEALTH,Legal Services-Other,HMCOURTS-SERVICE.G,11-May-2018,450.00
D1100G-ADULTS & PUBLIC HEALTH,Catering Food & Drink,DOMBEY WHOLESALE BUTCH,12-May-2018,95.83
D1100G-ADULTS & PUBLIC HEALTH,Catering Food & Drink,SAINSBURY'S,13-May-2018,27.50
D1100G-ADULTS & PUBLIC HEALTH,Accommodation,HOTEL IBIS,14-May-2018,189.85
D1100G-ADULTS & PUBLIC HEALTH,Catering Food & Drink,MN WEST NORWOOD HALAL,16-May-2018,47.93
D1100G-ADULTS & PUBLIC HEALTH,Education-Other,WWW.THE-SRA.ORG.UK,16-May-2018,260.00
D1100G-ADULTS & PUBLIC HEALTH,Financial Services,ROYAL BANK UK /,18-May-2018,400.00
D1100G-ADULTS & PUBLIC HEALTH,Education-Library Books,Amazon UK Marketplace,18-May-2018,89.95
D1100G-ADULTS & PUBLIC HEALTH,Catering Food & Drink,ICELAND,18-May-2018,108.64
D1100G-ADULTS & PUBLIC HEALTH,Catering Food & Drink,TESCO STORES 5999,21-May-2018,64.15
D1100G-ADULTS & PUBLIC HEALTH,Financial Services,CASH ADVANCE FEE,21-May-2018,11.80
D1100G-ADULTS & PUBLIC HEALTH,Legal Services-Other,HMCOURTS-SERVICE.G,21-May-2018,75.00
D1100G-ADULTS & PUBLIC HEALTH,Financial Services,ROYAL BANK UK /,22-May-2018,400.00
D1100G-ADULTS & PUBLIC HEALTH,Financial Services,CASH ADVANCE FEE,23-May-2018,11.80
D1100G-ADULTS & PUBLIC HEALTH,Domestic Goods-Other,WWW.ARGOS.CO.UK,23-May-2018,26.93
D1100G-ADULTS & PUBLIC HEALTH,Banquet & Catering,WWW.EVENTSUPPLIES.CO.U,23-May-2018,117.58
D1100G-ADULTS & PUBLIC HEALTH,Catering Food & Drink,TESCO STORES 5999,29-May-2018,71.69
D1100G-ADULTS & PUBLIC HEALTH,Catering Food & Drink,LIDL UK  LONDON,29-May-2018,21.29
D1100G-ADULTS & PUBLIC HEALTH,Legal Services-Other,HMCOURTS-SERVICE.G,29-May-2018,75.00
D1100G-ADULTS & PUBLIC HEALTH,Catering Food & Drink,ICELAND,29-May-2018,101.41
D1100G-ADULTS & PUBLIC HEALTH,Financial Services,NATWEST BANK  /,30-May-2018,400.00
D1100G-ADULTS & PUBLIC HEALTH,Education-Library Books,AMAZON SVCS EU-UK AMAZON.,30-May-2018,70.53
D1100G-ADULTS & PUBLIC HEALTH,Financial Services,CASH ADVANCE FEE,31-May-2018,11.80
D1100G-ADULTS & PUBLIC HEALTH,Catering Food & Drink,TESCO STORES 5999,31-May-2018,19.40
D1100G-ADULTS & PUBLIC HEALTH,Accommodation,EASYJET,31-May-2018,56.33
D1100G-ADULTS & PUBLIC HEALTH,Legal Services-Other,HMCOURTS-SERVICE.G,31-May-2018,150.00
D1100G-ADULTS & PUBLIC HEALTH,Catering Food & Drink,MN WEST NORWOOD HALAL,05-Jun-2018,42.78
D1100G-ADULTS & PUBLIC HEALTH,IT Software,SP * SUBSTANCE CREATE,06-Jun-2018,10.00
D1100G-ADULTS & PUBLIC HEALTH,Catering Food & Drink,SAINSBURY'S,06-Jun-2018,35.77
D1100G-ADULTS & PUBLIC HEALTH,Catering Food & Drink,ICELAND,07-Jun-2018,23.00
D1100G-ADULTS & PUBLIC HEALTH,Accommodation,TRAVELODGE GB0000,07-Jun-2018,46.25
D1100G-ADULTS & PUBLIC HEALTH,Legal Services-Other,HMCOURTS-SERVICE.G,07-Jun-2018,150.00
D1100G-ADULTS & PUBLIC HEALTH,Catering Food & Drink,ICELAND,08-Jun-2018,197.15
D1100G-ADULTS & PUBLIC HEALTH,Catering Food & Drink,LIDL UK  LONDON,08-Jun-2018,16.95
D1100G-ADULTS & PUBLIC HEALTH,Catering Food & Drink,SAINSBURY'S,11-Jun-2018,18.88
D1100G-ADULTS & PUBLIC HEALTH,Catering Food & Drink,TESCO STORE 2821,11-Jun-2018,19.15
D1100G-ADULTS & PUBLIC HEALTH,Travel/Subsistence,VIRGIN TRAINS,11-Jun-2018,23.00
D1100G-ADULTS & PUBLIC HEALTH,Catering Food & Drink,TESCO STORES 5999,11-Jun-2018,84.27
D1100G-ADULTS & PUBLIC HEALTH,Catering Food & Drink,MN WEST NORWOOD HALAL,12-Jun-2018,52.00
D1100G-ADULTS & PUBLIC HEALTH,Legal Services-Other,HMCOURTS-SERVICE.G,12-Jun-2018,75.00
D1100G-ADULTS & PUBLIC HEALTH,Domestic Goods-Other,ARGOS RETAIL GROUP,13-Jun-2018,69.98
D1100G-ADULTS & PUBLIC HEALTH,Catering Food & Drink,WWW.ICELAND.CO.UK,15-Jun-2018,155.87
D1100G-ADULTS & PUBLIC HEALTH,Domestic Goods-Other,ARGOS RETAIL GROUP,15-Jun-2018,47.99
D1100G-ADULTS & PUBLIC HEALTH,Legal Services-Other,HMCOURTS-SERVICE.G,15-Jun-2018,150.00
D1100G-ADULTS & PUBLIC HEALTH,Catering Food & Drink,LIDL UK LONDON,18-Jun-2018,13.95
D1100G-ADULTS & PUBLIC HEALTH,Catering Food & Drink,TESCO STORES 5999,18-Jun-2018,56.77
D1100G-ADULTS & PUBLIC HEALTH,Catering Food & Drink,ICELAND,18-Jun-2018,5.50
D1100G-ADULTS & PUBLIC HEALTH,Catering Food & Drink,SAINSBURY'S,20-Jun-2018,11.90
D1100G-ADULTS & PUBLIC HEALTH,Legal Services-Other,HMCOURTS-SERVICE.G,20-Jun-2018,75.00
D1100G-ADULTS & PUBLIC HEALTH,Catering Food & Drink,TESCO STORE 2764,20-Jun-2018,101.54
D1100G-ADULTS & PUBLIC HEALTH,Legal Services-Other,HMCOURTS-SERVICE.G,22-Jun-2018,150.00
D1100G-ADULTS & PUBLIC HEALTH,Catering Food & Drink,TESCO STORE 2445,25-Jun-2018,139.06
D1100G-ADULTS & PUBLIC HEALTH,Catering Food & Drink,SAINSBURY'S,25-Jun-2018,17.03
D1100G-ADULTS & PUBLIC HEALTH,Catering Food & Drink,TESCO STORES 5999,26-Jun-2018,50.13
D1100G-ADULTS & PUBLIC HEALTH,Travel/Subsistence,LBL NOT PRESENT,27-Jun-2018,10.00
D1100G-ADULTS & PUBLIC HEALTH,Accommodation,HOTEL IBIS,27-Jun-2018,159.22
D1100G-ADULTS & PUBLIC HEALTH,Conference Expenses,OXFORD BROOKES UNI,28-Jun-2018,790.00
D1100G-ADULTS & PUBLIC HEALTH,Financial Services-Insurance,BALENS LTD,28-Jun-2018,107.32
D1100G-ADULTS & PUBLIC HEALTH,Catering Food & Drink,MN WEST NORWOOD HALAL,29-Jun-2018,33.04
D1200G-NEIGHBOURHOODS & GROWTH,Domestic Goods-Other,MACHINE MART LTD,04-Apr-2018,56.92
D1200G-NEIGHBOURHOODS & GROWTH,Education-Library Books,AMAZON SVCS EU-UK AMAZON.,04-Apr-2018,3.71
D1200G-NEIGHBOURHOODS & GROWTH,Financial Services,LAND REGISTRY,05-Apr-2018,6.00
D1200G-NEIGHBOURHOODS & GROWTH,Books/Publications/Resources,WHICH?,05-Apr-2018,1.00
D1200G-NEIGHBOURHOODS & GROWTH,Financial Services,LAND REGISTRY,05-Apr-2018,6.00
D1200G-NEIGHBOURHOODS & GROWTH,Clothing-Children/Adults,FORUM SAFETY FOOTWEAR,05-Apr-2018,42.00
D1200G-NEIGHBOURHOODS & GROWTH,Consultancy-Business,FORTRESS MASTER LOCKSMITH,05-Apr-2018,78.36
D1200G-NEIGHBOURHOODS & GROWTH,Horticultural-Other,F R JONES & SON,06-Apr-2018,424.99
D1200G-NEIGHBOURHOODS & GROWTH,Financial Services,DVLA VEHICLE TAX,06-Apr-2018,307.50
D1200G-NEIGHBOURHOODS & GROWTH,Building-Plumbing,PLUMB CENTER FFO,06-Apr-2018,36.52
D1200G-NEIGHBOURHOODS & GROWTH,Clothing-Children/Adults,FORUM SAFETY FOOTWEAR,07-Apr-2018,197.00
D1200G-NEIGHBOURHOODS & GROWTH,Building-Timber,SELCO TRADING CTR,09-Apr-2018,294.91
D1200G-NEIGHBOURHOODS & GROWTH,Building-Timber,PREMIER SHEDS,09-Apr-2018,250.00
D1200G-NEIGHBOURHOODS & GROWTH,Mail Services-Postage,POST OFFICE SELF SERVI,10-Apr-2018,124.89
D1200G-NEIGHBOURHOODS & GROWTH,Travel/Subsistence,MOBIKE TECH. UK LTD,11-Apr-2018,1.00
D1200G-NEIGHBOURHOODS & GROWTH,Building-Timber,SELCO TRADING CTR,11-Apr-2018,120.00
D1200G-NEIGHBOURHOODS & GROWTH,Building-Paint,S LONDON DECORTORS,11-Apr-2018,176.90
D1200G-NEIGHBOURHOODS & GROWTH,Building-Paint,SENATOR DEVELOPMEN,11-Apr-2018,24.99
D1200G-NEIGHBOURHOODS & GROWTH,Building-Timber,SELCO TRADING CTR,11-Apr-2018,124.17
D1200G-NEIGHBOURHOODS & GROWTH,Building-Timber,SELCO TRADING CTR,11-Apr-2018,119.98
D1200G-NEIGHBOURHOODS & GROWTH,Building-Paint,S LONDON DECORTORS,11-Apr-2018,241.16
D1200G-NEIGHBOURHOODS & GROWTH,Travel/Subsistence,ZIPCAR,12-Apr-2018,28.99
D1200G-NEIGHBOURHOODS & GROWTH,Building-Electrical,WWW.LAMPCO.CO.UK,13-Apr-2018,197.28
D1200G-NEIGHBOURHOODS & GROWTH,Professional & Advisory Services,WWW.FTA.CO.UK,13-Apr-2018,81.06
D1200G-NEIGHBOURHOODS & GROWTH,Consultancy-Business,FORTRESS MASTER LOCKSMITH,13-Apr-2018,169.47
D1200G-NEIGHBOURHOODS & GROWTH,Arts & Leisure Services,KOI WATER GARDEN,13-Apr-2018,234.38
D1200G-NEIGHBOURHOODS & GROWTH,Travel/Subsistence,OYSTER AUTOTOPUP,14-Apr-2018,40.00
D1200G-NEIGHBOURHOODS & GROWTH,Facilities-Market Research,MAILCHIMP,16-Apr-2018,53.14
D1200G-NEIGHBOURHOODS & GROWTH,Consultancy-Business,FORTRESS MASTER LOCKSMITH,17-Apr-2018,32.48
D1200G-NEIGHBOURHOODS & GROWTH,Building-Timber,SCREWFIX,17-Apr-2018,66.73
D1200G-NEIGHBOURHOODS & GROWTH,Education-Other,ABLE SKILLS LTD,18-Apr-2018,150.00
D1200G-NEIGHBOURHOODS & GROWTH,Building-Timber,B & Q 1212,18-Apr-2018,60.87
D1200G-NEIGHBOURHOODS & GROWTH,Travel/Subsistence,OYSTER AUTOTOPUP,19-Apr-2018,40.00
D1200G-NEIGHBOURHOODS & GROWTH,Consultancy-Business,WUFOO.COM,19-Apr-2018,14.00
D1200G-NEIGHBOURHOODS & GROWTH,Travel/Subsistence,ZIPCAR,20-Apr-2018,-5.71
D1200G-NEIGHBOURHOODS & GROWTH,Travel/Subsistence,OYSTER BUS AUTOTOP,20-Apr-2018,40.00
D1200G-NEIGHBOURHOODS & GROWTH,Building-Timber,SELCO TRADING CTR,20-Apr-2018,43.99
D1200G-NEIGHBOURHOODS & GROWTH,Building-Timber,SELCO TRADING CTR,21-Apr-2018,49.39
D1200G-NEIGHBOURHOODS & GROWTH,Travel/Subsistence,OYSTER BUS AUTOTOP,21-Apr-2018,40.00
D1200G-NEIGHBOURHOODS & GROWTH,Furniture-Domestic Furniture,WAYFAIR STORES LIM,23-Apr-2018,405.97
D1200G-NEIGHBOURHOODS & GROWTH,Consultancy-Business,NEC PARKING,24-Apr-2018,12.00
D1200G-NEIGHBOURHOODS & GROWTH,Facilities-Market Research,HOO,24-Apr-2018,30.00
D1200G-NEIGHBOURHOODS & GROWTH,Education-Library Books,AMAZON SVCS EU-UK AMAZON.,24-Apr-2018,37.72
D1200G-NEIGHBOURHOODS & GROWTH,Building-Paint,WWW.DECORATINGWAREHOUS,25-Apr-2018,206.85
D1200G-NEIGHBOURHOODS & GROWTH,Mail Services-Postage,POST OFFICE SELF SERVI,26-Apr-2018,96.47
D1200G-NEIGHBOURHOODS & GROWTH,Education-Library Books,AMAZON SVCS EU-UK AMAZON.,26-Apr-2018,44.50
D1200G-NEIGHBOURHOODS & GROWTH,Travel/Subsistence,TFL ROAD CHARGE,27-Apr-2018,34.50
D1200G-NEIGHBOURHOODS & GROWTH,IT Services,Dropbox B4QVQHCB4WSC,28-Apr-2018,-0.48
D1200G-NEIGHBOURHOODS & GROWTH,IT Services,Dropbox SMPQXRS2QLWM,28-Apr-2018,60.00
D1200G-NEIGHBOURHOODS & GROWTH,IT Software,DEBENHAMSELECTRIC,30-Apr-2018,190.00
D1200G-NEIGHBOURHOODS & GROWTH,Domestic Goods-Other,WWW.ARGOS.CO.UK,30-Apr-2018,183.94
D1200G-NEIGHBOURHOODS & GROWTH,Consultancy-Business,CANVAS EVENTS LTD,30-Apr-2018,36.00
D1200G-NEIGHBOURHOODS & GROWTH,Domestic Goods-Other,ARGOS,30-Apr-2018,62.96
D1200G-NEIGHBOURHOODS & GROWTH,Domestic Goods-Other,WWW.RAINBOWSAFETEY.CO.UK,01-May-2018,183.41
D1200G-NEIGHBOURHOODS & GROWTH,Consultancy-Business,CANVAS EVENTS LTD,01-May-2018,72.00
D1200G-NEIGHBOURHOODS & GROWTH,Travel/Subsistence,TFL CYCLE HIRE,01-May-2018,2.00
D1200G-NEIGHBOURHOODS & GROWTH,Mail Services-Postage,POST OFFICE COUNTER,03-May-2018,5.65
D1200G-NEIGHBOURHOODS & GROWTH,IT Software,ADOBE  CREATIVE CLOUD,03-May-2018,83.24
D1200G-NEIGHBOURHOODS & GROWTH,Travel/Subsistence,MOBIKE TECH. UK LTD,03-May-2018,5.00
D1200G-NEIGHBOURHOODS & GROWTH,Consultancy-Business,EB *HACKNEY CYCLING CO,04-May-2018,90.00
D1200G-NEIGHBOURHOODS & GROWTH,Clothing-Children/Adults,WORKWEAR EXPRESS LIMITED,04-May-2018,92.86
D1200G-NEIGHBOURHOODS & GROWTH,Travel/Subsistence,OYSTER AUTOTOPUP,05-May-2018,20.00
D1200G-NEIGHBOURHOODS & GROWTH,Travel/Subsistence,OYSTER BUS AUTOTOP,05-May-2018,40.00
D1200G-NEIGHBOURHOODS & GROWTH,Stationery,SUK RETAIL LTD,06-May-2018,71.14
D1200G-NEIGHBOURHOODS & GROWTH,Books/Publications/Resources,WHICH,08-May-2018,10.75
D1200G-NEIGHBOURHOODS & GROWTH,Vehicle Parts,STOCKWELL MOTOR ACCES,08-May-2018,25.20
D1200G-NEIGHBOURHOODS & GROWTH,Accommodation,F R JONES & SON,08-May-2018,75.00
D1200G-NEIGHBOURHOODS & GROWTH,IT Software-Customised,ELEGANTTHEMES.COM,08-May-2018,81.55
D1200G-NEIGHBOURHOODS & GROWTH,Healthcare Services,WWW.ICFM.COM,09-May-2018,60.00
D1200G-NEIGHBOURHOODS & GROWTH,Building-Plumbing,WWW.JOHNSONVALVES.CO.U,09-May-2018,106.60
D1200G-NEIGHBOURHOODS & GROWTH,Building-Timber,SCREWFIX,09-May-2018,102.98
D1200G-NEIGHBOURHOODS & GROWTH,Building-Timber,SELCO TRADING CTR,09-May-2018,202.61
D1200G-NEIGHBOURHOODS & GROWTH,Catering Food & Drink,MARKS&SPENCER PLC,10-May-2018,30.00
D1200G-NEIGHBOURHOODS & GROWTH,Building-General,WWW.WATERFEATURES2GO.C,10-May-2018,154.00
D1200G-NEIGHBOURHOODS & GROWTH,Building-Timber,SCREWFIX,10-May-2018,59.96
D1200G-NEIGHBOURHOODS & GROWTH,Education-Other,WWW.ELMHURSTENERGY.CO.UK,10-May-2018,932.00
D1200G-NEIGHBOURHOODS & GROWTH,Domestic Goods-Other,WWW.DISCOUNTDISPLAYS.C,11-May-2018,791.34
D1200G-NEIGHBOURHOODS & GROWTH,Building-Timber,SCREWFIX,11-May-2018,79.06
D1200G-NEIGHBOURHOODS & GROWTH,Consultancy-Business,FORTRESS MASTER LOCKSMITH,14-May-2018,49.10
D1200G-NEIGHBOURHOODS & GROWTH,Furniture-Domestic Furniture,WAYFAIR.CO.UK,14-May-2018,178.97
D1200G-NEIGHBOURHOODS & GROWTH,Horticultural-Other,TOPBUXUS Germany GmbH,14-May-2018,40.79
D1200G-NEIGHBOURHOODS & GROWTH,Building-Timber,SCREWFIX,14-May-2018,79.98
D1200G-NEIGHBOURHOODS & GROWTH,Building-Timber,SCREWFIX DIRECT,14-May-2018,80.97
D1200G-NEIGHBOURHOODS & GROWTH,Building-General,LEYLAND SDM CLAPHAM HIGH,14-May-2018,139.55
D1200G-NEIGHBOURHOODS & GROWTH,Furniture-Domestic Furniture,WWW.ARGOS.CO.UK,14-May-2018,433.88
D1200G-NEIGHBOURHOODS & GROWTH,Horticultural-Other,TOPBUXUS Germany GmbH,14-May-2018,13.60
D1200G-NEIGHBOURHOODS & GROWTH,Education-Library Books,Amazon UK Marketplace,14-May-2018,2.00
D1200G-NEIGHBOURHOODS & GROWTH,Building-Paint,SENATOR DEVELOPMEN,15-May-2018,40.96
D1200G-NEIGHBOURHOODS & GROWTH,Domestic Goods-Other,CURRYS ONLINE,15-May-2018,389.98
D1200G-NEIGHBOURHOODS & GROWTH,Financial Services,WANDSWORTH COUNCIL,15-May-2018,70.00
D1200G-NEIGHBOURHOODS & GROWTH,Facilities-Market Research,MAILCHIMP,16-May-2018,56.18
D1200G-NEIGHBOURHOODS & GROWTH,Consultancy-Business,EB *HACKNEY CYCLING CO,16-May-2018,45.00
D1200G-NEIGHBOURHOODS & GROWTH,Building-Timber,SCREWFIX DIRECT,16-May-2018,17.29
D1200G-NEIGHBOURHOODS & GROWTH,Horticultural-Other,WWW.LILIESWATERGARDENS,17-May-2018,114.71
D1200G-NEIGHBOURHOODS & GROWTH,Furniture-Domestic Furniture,WWW.IKEA.COM,17-May-2018,205.00
D1200G-NEIGHBOURHOODS & GROWTH,Consultancy-Business,FORTRESS MASTER LOCKSMITH,18-May-2018,116.40
D1200G-NEIGHBOURHOODS & GROWTH,Travel/Subsistence,OYSTER BUS AUTOTOP,18-May-2018,20.00
D1200G-NEIGHBOURHOODS & GROWTH,Domestic Goods-Commercial,SETON,18-May-2018,62.37
D1200G-NEIGHBOURHOODS & GROWTH,Domestic Goods-Other,WWW.ARGOS.CO.UK,18-May-2018,49.49
D1200G-NEIGHBOURHOODS & GROWTH,Building-Timber,TP VAUXHALL,18-May-2018,63.03
D1200G-NEIGHBOURHOODS & GROWTH,Catering Food & Drink,MARKS&SPENCER PLC,18-May-2018,116.50
D1200G-NEIGHBOURHOODS & GROWTH,Stationery,THESTENCILSTUDIO.COM,18-May-2018,30.00
D1200G-NEIGHBOURHOODS & GROWTH,Travel/Subsistence,TFL ROAD CHARGE,18-May-2018,69.00
D1200G-NEIGHBOURHOODS & GROWTH,Clothing-Children/Adults,WORKWEAR EXPRESS LIMITED,18-May-2018,48.91
D1200G-NEIGHBOURHOODS & GROWTH,Domestic Goods-Commercial,SETON,18-May-2018,14.38
D1200G-NEIGHBOURHOODS & GROWTH,Facilities-Advertising,FACEBK Z2MTGE2AA2,18-May-2018,17.06
D1200G-NEIGHBOURHOODS & GROWTH,Facilities-Advertising,FACEBK Y2MTGE2AA2,18-May-2018,22.94
D1200G-NEIGHBOURHOODS & GROWTH,Consultancy-Business,FORTRESS MASTER LOCKSMITH,18-May-2018,28.69
D1200G-NEIGHBOURHOODS & GROWTH,Catering Food & Drink,MAJESTIC WINE,18-May-2018,383.59
D1200G-NEIGHBOURHOODS & GROWTH,Consultancy-Business,WUFOO.COM,19-May-2018,14.00
D1200G-NEIGHBOURHOODS & GROWTH,Building-General,LEYLAND SDM CLAPHAM HIGH,21-May-2018,52.99
D1200G-NEIGHBOURHOODS & GROWTH,Education-Library Books,Amazon UK Marketplace,21-May-2018,47.40
D1200G-NEIGHBOURHOODS & GROWTH,Consultancy-Business,FORTRESS MASTER LOCKSMITH,21-May-2018,15.32
D1200G-NEIGHBOURHOODS & GROWTH,Education-Library Books,Amazon UK Marketplace,21-May-2018,117.86
D1200G-NEIGHBOURHOODS & GROWTH,Building-Timber,SCREWFIX,22-May-2018,216.75
D1200G-NEIGHBOURHOODS & GROWTH,Horticultural-Other,TOPBUXUS Germany GmbH,22-May-2018,81.17
D1200G-NEIGHBOURHOODS & GROWTH,Education-Library Books,Amazon UK Marketplace,22-May-2018,3.50
D1200G-NEIGHBOURHOODS & GROWTH,Horticultural-Other,RIGBY TAYLOR,23-May-2018,344.60
D1200G-NEIGHBOURHOODS & GROWTH,Travel/Subsistence,OYSTER BUS AUTOTOP,23-May-2018,40.00
D1200G-NEIGHBOURHOODS & GROWTH,Building-Timber,THE DECORATORS MATE,23-May-2018,66.98
D1200G-NEIGHBOURHOODS & GROWTH,Facilities-Market Research,HOO,24-May-2018,30.00
D1200G-NEIGHBOURHOODS & GROWTH,Catering Food & Drink,TESCO STORE 2143,24-May-2018,45.40
D1200G-NEIGHBOURHOODS & GROWTH,Financial Services,LAMBETH INTERNET PAYM,24-May-2018,350.00
D1200G-NEIGHBOURHOODS & GROWTH,Building-Paint,SENATOR DEVELOPMEN,25-May-2018,39.97
D1200G-NEIGHBOURHOODS & GROWTH,Consultancy-Business,FORTRESS MASTER LOCKSMITH,25-May-2018,6.50
D1200G-NEIGHBOURHOODS & GROWTH,Building-Timber,SCREWFIX,25-May-2018,199.61
D1200G-NEIGHBOURHOODS & GROWTH,Travel/Subsistence,OYSTER BUS AUTOTOP,25-May-2018,40.00
D1200G-NEIGHBOURHOODS & GROWTH,Catering Food & Drink,MAJESTIC WINE,26-May-2018,-262.79
D1200G-NEIGHBOURHOODS & GROWTH,IT Services,DROPBOX*3PTJHGRGJBXF,28-May-2018,60.00
D1200G-NEIGHBOURHOODS & GROWTH,Furniture-Office Furniture,CITY FURNITURE HIRE,29-May-2018,2212.16
D1200G-NEIGHBOURHOODS & GROWTH,Travel/Subsistence,TFL ROAD CHARGE,29-May-2018,57.50
D1200G-NEIGHBOURHOODS & GROWTH,Building-General,LEYLAND SDM CLAPHAM HIGH,30-May-2018,33.75
D1200G-NEIGHBOURHOODS & GROWTH,Cycles Purchase,HALFORDS 0716,30-May-2018,24.98
D1200G-NEIGHBOURHOODS & GROWTH,Building-Timber,HOMEBASE LTD 015,30-May-2018,88.90
D1200G-NEIGHBOURHOODS & GROWTH,Taxi Fares,PAYPAL,30-May-2018,16.95
D1200G-NEIGHBOURHOODS & GROWTH,Catering Food & Drink,TESCO STORES-2143,31-May-2018,25.83
D1200G-NEIGHBOURHOODS & GROWTH,Consultancy-Business,CANVAS EVENTS LTD,31-May-2018,36.00
D1200G-NEIGHBOURHOODS & GROWTH,Stationery,WH SMITH,31-May-2018,11.97
D1200G-NEIGHBOURHOODS & GROWTH,Facilities-Advertising,FACEBK XDCRNEEAA2,31-May-2018,27.61
D1200G-NEIGHBOURHOODS & GROWTH,Education-Other,WWW.ELMHURSTENERGY.CO.UK,31-May-2018,500.00
D1200G-NEIGHBOURHOODS & GROWTH,Education-Other,WWW.ELMHURSTENERGY.CO.UK,31-May-2018,500.00
D1200G-NEIGHBOURHOODS & GROWTH,Facilities-Advertising,FACEBK YDCRNEEAA2,31-May-2018,22.37
D1200G-NEIGHBOURHOODS & GROWTH,Travel/Subsistence,OYSTER AUTOTOPUP,31-May-2018,40.00
D1200G-NEIGHBOURHOODS & GROWTH,Cycles Purchase,APEX CYCLES,31-May-2018,250.00
D1200G-NEIGHBOURHOODS & GROWTH,Consultancy-Business,CANVAS EVENTS LTD,01-Jun-2018,72.00
D1200G-NEIGHBOURHOODS & GROWTH,Building-General,LEYLAND SDM CLAPHAM HIGH,01-Jun-2018,134.92
D1200G-NEIGHBOURHOODS & GROWTH,Domestic Goods-Other,WWW.ARGOS.CO.UK,01-Jun-2018,53.94
D1200G-NEIGHBOURHOODS & GROWTH,Taxi Fares,PAYPAL,01-Jun-2018,16.95
D1200G-NEIGHBOURHOODS & GROWTH,Travel/Subsistence,TFL CYCLE HIRE,01-Jun-2018,8.00
D1200G-NEIGHBOURHOODS & GROWTH,Catering Food & Drink,LUCIOS FIRST CLASS CATERI,02-Jun-2018,9.30
D1200G-NEIGHBOURHOODS & GROWTH,IT Software,ADOBE  CREATIVE CLOUD,02-Jun-2018,83.24
D1200G-NEIGHBOURHOODS & GROWTH,Travel/Subsistence,TRAINLINE,04-Jun-2018,77.50
D1200G-NEIGHBOURHOODS & GROWTH,Building-Timber,SCREWFIX,04-Jun-2018,64.98
D1200G-NEIGHBOURHOODS & GROWTH,Building-Timber,ACRE LANE BUILDERS,04-Jun-2018,9.84
D1200G-NEIGHBOURHOODS & GROWTH,Building-Paint,S LONDON DECORTORS,04-Jun-2018,22.79
D1200G-NEIGHBOURHOODS & GROWTH,Building-Timber,SCREWFIX,05-Jun-2018,123.95
D1200G-NEIGHBOURHOODS & GROWTH,Travel/Subsistence,TFL ROAD CHARGE,05-Jun-2018,57.50
D1200G-NEIGHBOURHOODS & GROWTH,Facilities-Advertising,WH SMITH,05-Jun-2018,20.48
D1200G-NEIGHBOURHOODS & GROWTH,Travel/Subsistence,TRAINLINE,05-Jun-2018,127.20
D1200G-NEIGHBOURHOODS & GROWTH,Building-Timber,SCREWFIX,05-Jun-2018,-34.97
D1200G-NEIGHBOURHOODS & GROWTH,Building-Paint,S LONDON DECORTORS,06-Jun-2018,89.64
D1200G-NEIGHBOURHOODS & GROWTH,Travel/Subsistence,OYSTER BUS AUTOTOP,06-Jun-2018,40.00
D1200G-NEIGHBOURHOODS & GROWTH,Travel/Subsistence,LUL TICKET MACHINE,06-Jun-2018,120.00
D1200G-NEIGHBOURHOODS & GROWTH,Building-General,PREMIER WELDING,06-Jun-2018,49.91
D1200G-NEIGHBOURHOODS & GROWTH,Building-Timber,ACRE LANE TIMBER LTD,06-Jun-2018,44.34
D1200G-NEIGHBOURHOODS & GROWTH,Horticultural-Other,WWW.FRJONESANDSON.,06-Jun-2018,62.40
D1200G-NEIGHBOURHOODS & GROWTH,Travel/Subsistence,OYSTER BUS AUTOTOP,07-Jun-2018,40.00
D1200G-NEIGHBOURHOODS & GROWTH,Financial Services,DVLA VEHICLE TAX,07-Jun-2018,90.50
D1200G-NEIGHBOURHOODS & GROWTH,Building-Timber,SELCO TRADING CTR,07-Jun-2018,361.09
D1200G-NEIGHBOURHOODS & GROWTH,Furniture-Domestic Furniture,PAYPAL,07-Jun-2018,19.90
D1200G-NEIGHBOURHOODS & GROWTH,Domestic Goods-Other,PAYPAL,07-Jun-2018,142.68
D1200G-NEIGHBOURHOODS & GROWTH,Building-Timber,SCREWFIX,08-Jun-2018,105.66
D1200G-NEIGHBOURHOODS & GROWTH,Furniture-Domestic Furniture,WWW.IKEA.COM,08-Jun-2018,264.00
D1200G-NEIGHBOURHOODS & GROWTH,Books/Publications/Resources,WHICH,08-Jun-2018,10.75
D1200G-NEIGHBOURHOODS & GROWTH,Arts & Leisure Services,TESCO PFS 3077,09-Jun-2018,13.00
D1200G-NEIGHBOURHOODS & GROWTH,Travel/Subsistence,OYSTER BUS AUTOTOP,09-Jun-2018,40.00
D1200G-NEIGHBOURHOODS & GROWTH,Furniture-Domestic Furniture,WWW.APLACEFOR,11-Jun-2018,41.95
D1200G-NEIGHBOURHOODS & GROWTH,Furniture-Domestic Furniture,WAYFAIR.CO.UK,11-Jun-2018,50.99
D1200G-NEIGHBOURHOODS & GROWTH,Building-Timber,PREMIER SHEDS,11-Jun-2018,250.00
D1200G-NEIGHBOURHOODS & GROWTH,Building-Timber,SCREWFIX DIRECT,11-Jun-2018,98.00
D1200G-NEIGHBOURHOODS & GROWTH,Building-Timber,SCREWFIX,12-Jun-2018,191.96
D1200G-NEIGHBOURHOODS & GROWTH,Travel/Subsistence,EAST COAST MAINLINE CO,12-Jun-2018,31.00
D1200G-NEIGHBOURHOODS & GROWTH,Building-Timber,ACRE LANE TIMBER LTD,12-Jun-2018,20.02
D1200G-NEIGHBOURHOODS & GROWTH,Domestic Goods-Other,WWW.ARGOS.CO.UK,12-Jun-2018,83.94
D1200G-NEIGHBOURHOODS & GROWTH,Furniture-Domestic Furniture,WWW.IKEA.COM,13-Jun-2018,110.00
D1200G-NEIGHBOURHOODS & GROWTH,Travel/Subsistence,ZIPCAR,13-Jun-2018,25.37
D1200G-NEIGHBOURHOODS & GROWTH,Building-General,TOOLSTATION LTD,13-Jun-2018,135.10
D1200G-NEIGHBOURHOODS & GROWTH,Domestic Goods-Other,APPLE ONLINE STORE GBP,13-Jun-2018,79.00
D1200G-NEIGHBOURHOODS & GROWTH,Education-Musical Instruments,FIZZ DJ MUSIC STORE,13-Jun-2018,90.00
D1200G-NEIGHBOURHOODS & GROWTH,Consultancy-Business,ARMOUR LOCK AND SAFE,14-Jun-2018,34.00
D1200G-NEIGHBOURHOODS & GROWTH,Travel/Subsistence,TFL PENALTY CHARGE,15-Jun-2018,80.00
D1200G-NEIGHBOURHOODS & GROWTH,Financial Services,DVLA VEHICLE TAX,15-Jun-2018,140.00
D1200G-NEIGHBOURHOODS & GROWTH,Facilities-Market Research,MAILCHIMP,16-Jun-2018,57.20
D1200G-NEIGHBOURHOODS & GROWTH,Travel/Subsistence,OYSTER RENEW WEB,18-Jun-2018,75.00
D1200G-NEIGHBOURHOODS & GROWTH,Catering Food & Drink,MARKS&SPENCER PLC,18-Jun-2018,539.00
D1200G-NEIGHBOURHOODS & GROWTH,Domestic Goods-Other,ARGOS RETAIL GROUP,19-Jun-2018,49.98
D1200G-NEIGHBOURHOODS & GROWTH,Consultancy-Business,WUFOO.COM,19-Jun-2018,14.00
D1200G-NEIGHBOURHOODS & GROWTH,Building-Timber,PREMIER SHEDS,20-Jun-2018,175.00
D1200G-NEIGHBOURHOODS & GROWTH,Education-Library Books,Amazon UK Marketplace,20-Jun-2018,16.98
D1200G-NEIGHBOURHOODS & GROWTH,Travel/Subsistence,TFL ROAD CHARGE,20-Jun-2018,14.00
D1200G-NEIGHBOURHOODS & GROWTH,Education-Library Books,Amazon UK Marketplace,20-Jun-2018,42.70
D1200G-NEIGHBOURHOODS & GROWTH,Catering Food & Drink,SAINSBURY'S S/MKT,21-Jun-2018,138.20
D1200G-NEIGHBOURHOODS & GROWTH,Travel/Subsistence,TFL ROAD CHARGE,21-Jun-2018,11.50
D1200G-NEIGHBOURHOODS & GROWTH,Building-Paint,S LONDON DECORTORS,21-Jun-2018,250.00
D1200G-NEIGHBOURHOODS & GROWTH,Education-Library Books,Amazon UK Marketplace,21-Jun-2018,17.04
D1200G-NEIGHBOURHOODS & GROWTH,Travel/Subsistence,OYSTER AUTOTOPUP,21-Jun-2018,40.00
D1200G-NEIGHBOURHOODS & GROWTH,Catering Food & Drink,POUND PLUS,21-Jun-2018,10.50
D1200G-NEIGHBOURHOODS & GROWTH,Building-Paint,S LONDON DECORTORS,21-Jun-2018,191.55
D1200G-NEIGHBOURHOODS & GROWTH,Taxi Fares,WWW.ADDISONLEE.COM,22-Jun-2018,66.80
D1200G-NEIGHBOURHOODS & GROWTH,Domestic Goods-Other,POUNDLAND LTD,22-Jun-2018,2.00
D1200G-NEIGHBOURHOODS & GROWTH,Environmental Services-Waste,LBL NOT PRESENT,22-Jun-2018,21.50
D1200G-NEIGHBOURHOODS & GROWTH,Domestic Goods-Other,POUNDLAND,22-Jun-2018,19.00
D1200G-NEIGHBOURHOODS & GROWTH,Education-Arts/Crafts,SIMPLY FABRICS,22-Jun-2018,30.00
D1200G-NEIGHBOURHOODS & GROWTH,Travel/Subsistence,OYSTER BUS AUTOTOP,23-Jun-2018,40.00
D1200G-NEIGHBOURHOODS & GROWTH,Education-Library Books,AMAZON SVCS EU-UK AMAZON.,24-Jun-2018,8.99
D1200G-NEIGHBOURHOODS & GROWTH,Facilities-Market Research,HOO,24-Jun-2018,30.00
D1200G-NEIGHBOURHOODS & GROWTH,Taxi Fares,WWW.ADDISONLEE.COM,25-Jun-2018,34.30
D1200G-NEIGHBOURHOODS & GROWTH,Building-Timber,BUNNINGS WAREHOUSE,25-Jun-2018,89.70
D1200G-NEIGHBOURHOODS & GROWTH,Education-Library Books,AMAZON SVCS EU-UK AMAZON.,25-Jun-2018,4.00
D1200G-NEIGHBOURHOODS & GROWTH,Building-Timber,BUNNINGS WAREHOUSE,25-Jun-2018,58.72
D1200G-NEIGHBOURHOODS & GROWTH,Domestic Goods-Other,AMAZON EU AMAZON.CO.UK,25-Jun-2018,5.41
D1200G-NEIGHBOURHOODS & GROWTH,Domestic Goods-Other,PAYPAL,26-Jun-2018,99.84
D1200G-NEIGHBOURHOODS & GROWTH,Furniture-Domestic Furniture,WAYFAIR #2562553848,26-Jun-2018,86.99
D1200G-NEIGHBOURHOODS & GROWTH,Travel/Subsistence,TFL ROAD CHARGE,26-Jun-2018,11.50
D1200G-NEIGHBOURHOODS & GROWTH,Clothing-Children/Adults,SMART TRADE SHOP L,26-Jun-2018,16.77
D1200G-NEIGHBOURHOODS & GROWTH,Education-Library Books,AMAZON SVCS EU-UK AMAZON.,26-Jun-2018,25.82
D1200G-NEIGHBOURHOODS & GROWTH,Building-Timber,SCREWFIX,27-Jun-2018,2.69
D1200G-NEIGHBOURHOODS & GROWTH,Travel/Subsistence,TFL ROAD CHARGE,27-Jun-2018,11.50
D1200G-NEIGHBOURHOODS & GROWTH,Cycles Purchase,BRIXTON CYCLES LTD,28-Jun-2018,441.70
D1200G-NEIGHBOURHOODS & GROWTH,Building-General,LEYLAND SDM CLAPHAM HIGH,28-Jun-2018,108.28
D1200G-NEIGHBOURHOODS & GROWTH,Travel/Subsistence,TFL ROAD CHARGE,28-Jun-2018,83.00
D1200G-NEIGHBOURHOODS & GROWTH,Education-Library Books,AMAZON SVCS EU-UK AMAZON.,28-Jun-2018,7.09
D1200G-NEIGHBOURHOODS & GROWTH,Building-Timber,SCREWFIX,28-Jun-2018,36.23
D1200G-NEIGHBOURHOODS & GROWTH,Education-Library Books,AMAZON SVCS EU-UK AMAZON.,28-Jun-2018,100.39
D1200G-NEIGHBOURHOODS & GROWTH,IT Services,DROPBOX*6P158ZQ6WSD1,28-Jun-2018,36.00
D1200G-NEIGHBOURHOODS & GROWTH,Utilities,SAINSBURYS S/MKTS,28-Jun-2018,11.00
D1200G-NEIGHBOURHOODS & GROWTH,Domestic Goods-Other,ARGOS,28-Jun-2018,5.98
D1200G-NEIGHBOURHOODS & GROWTH,Furniture-Domestic Furniture,WAYFAIR #2565214138,28-Jun-2018,33.98
D1200G-NEIGHBOURHOODS & GROWTH,Clothing-Children/Adults,WORKWEAR EXPRESS LIMITED,30-Jun-2018,-29.38
D1200G-NEIGHBOURHOODS & GROWTH,Consultancy-Business,CANVAS EVENTS LTD,30-Jun-2018,36.00
D1200G-NEIGHBOURHOODS & GROWTH,Travel/Subsistence,OYSTER AUTO-TOP UP,30-Jun-2018,20.00
D1300G-CORPORATE RESOURCES,Mail Services-Postage,TESCO STORES 5342,04-Apr-2018,27.84
D1300G-CORPORATE RESOURCES,Financial Services,THE HOME OFFICE,04-Apr-2018,72.00
D1300G-CORPORATE RESOURCES,Legal Services-Other,HMCOURTS-SERVICE.G,04-Apr-2018,4092.00
D1300G-CORPORATE RESOURCES,Utilities,UK POWER NETWORKS,04-Apr-2018,890.40
D1300G-CORPORATE RESOURCES,Clothing-Children/Adults,MATALAN.CO.UK,04-Apr-2018,86.38
D1300G-CORPORATE RESOURCES,Travel/Subsistence,OYSTER RENEW WEB,04-Apr-2018,30.00
D1300G-CORPORATE RESOURCES,Catering Food & Drink,MARKS&SPENCER PLC,04-Apr-2018,251.00
D1300G-CORPORATE RESOURCES,Financial Services,HM PASSPORT OFFICE,04-Apr-2018,85.00
D1300G-CORPORATE RESOURCES,IT Software-Customised,PANTHEON SYSTEMS INC,04-Apr-2018,18.37
D1300G-CORPORATE RESOURCES,Mail Services-Postage,THE POST OFFICE,04-Apr-2018,166.19
D1300G-CORPORATE RESOURCES,Travel/Subsistence,OYSTER RENEW WEB,04-Apr-2018,-60.00
D1300G-CORPORATE RESOURCES,Mail Services-Postage,THE POST OFFICE,05-Apr-2018,71.48
D1300G-CORPORATE RESOURCES,Travel/Subsistence,OYSTER AUTOTOPUP,05-Apr-2018,40.00
D1300G-CORPORATE RESOURCES,Travel/Subsistence,OYSTER AUTOTOPUP,05-Apr-2018,20.00
D1300G-CORPORATE RESOURCES,Travel/Subsistence,TRAINLINE,05-Apr-2018,74.40
D1300G-CORPORATE RESOURCES,Travel/Subsistence,OYSTER BUS AUTOTOP,05-Apr-2018,20.00
D1300G-CORPORATE RESOURCES,Accommodation,Hotel on Booking.com,05-Apr-2018,126.00
D1300G-CORPORATE RESOURCES,Financial Services,NATWEST BANK  /,05-Apr-2018,50.00
D1300G-CORPORATE RESOURCES,Travel/Subsistence,TRAINLINE,05-Apr-2018,125.20
D1300G-CORPORATE RESOURCES,Travel/Subsistence,OYSTER AUTOTOPUP,05-Apr-2018,40.00
D1300G-CORPORATE RESOURCES,Mail Services-Postage,POST OFFICE SELF SERVI,05-Apr-2018,1.68
D1300G-CORPORATE RESOURCES,Financial Services,LAND REGISTRY,05-Apr-2018,3.00
D1300G-CORPORATE RESOURCES,Travel/Subsistence,TRAINLINE,05-Apr-2018,67.10
D1300G-CORPORATE RESOURCES,Catering Food & Drink,CRACKERJACK GOLD,05-Apr-2018,15.00
D1300G-CORPORATE RESOURCES,IT Software,WWW.WEVIDEO.COM/CHARGE,05-Apr-2018,11.79
D1300G-CORPORATE RESOURCES,Financial Services,HM PASSPORT OFFICE,05-Apr-2018,85.00
D1300G-CORPORATE RESOURCES,Travel/Subsistence,OYSTER BUS AUTOTOP,05-Apr-2018,20.00
D1300G-CORPORATE RESOURCES,Mail Services-Postage,THE POST OFFICE,05-Apr-2018,15.97
D1300G-CORPORATE RESOURCES,Travel/Subsistence,LUL TICKET MACHINE,05-Apr-2018,50.00
D1300G-CORPORATE RESOURCES,Travel/Subsistence,OYSTER AUTOTOPUP,05-Apr-2018,40.00
D1300G-CORPORATE RESOURCES,Financial Services,HM PASSPORT OFFICE,05-Apr-2018,58.50
D1300G-CORPORATE RESOURCES,Mail Services-Postage,THE POST OFFICE,06-Apr-2018,13.68
D1300G-CORPORATE RESOURCES,Mail Services-Postage,POST OFFICE SELF SERVI,06-Apr-2018,29.00
D1300G-CORPORATE RESOURCES,Travel/Subsistence,OYSTER BUS AUTOTOP,06-Apr-2018,20.00
D1300G-CORPORATE RESOURCES,Financial Services,CASH ADVANCE FEE,06-Apr-2018,2.95
D1300G-CORPORATE RESOURCES,Domestic Goods-Other,POUNDLAND LTD 1203,06-Apr-2018,5.00
D1300G-CORPORATE RESOURCES,Facilities-Storage,SAFESTORE LIMITED,06-Apr-2018,474.30
D1300G-CORPORATE RESOURCES,Travel/Subsistence,OYSTER AUTOTOPUP,06-Apr-2018,40.00
D1300G-CORPORATE RESOURCES,Travel/Subsistence,TRAINLINE,06-Apr-2018,21.75
D1300G-CORPORATE RESOURCES,Mail Services-Postage,POST OFFICE SELF SERVI,06-Apr-2018,13.00
D1300G-CORPORATE RESOURCES,Travel/Subsistence,OYSTER BUS AUTOTOP,06-Apr-2018,20.00
D1300G-CORPORATE RESOURCES,Financial Services,LONDON BRGH OF LAMBETH,06-Apr-2018,60.00
D1300G-CORPORATE RESOURCES,Financial Services,HM PASSPORT OFFICE,06-Apr-2018,98.00
D1300G-CORPORATE RESOURCES,Travel/Subsistence,OYSTER AUTOTOPUP,06-Apr-2018,20.00
D1300G-CORPORATE RESOURCES,Professional & Advisory Services,PAYPAL,06-Apr-2018,325.00
D1300G-CORPORATE RESOURCES,Travel/Subsistence,OYSTER AUTOTOPUP,07-Apr-2018,40.00
D1300G-CORPORATE RESOURCES,Travel/Subsistence,OYSTER BUS AUTOTOP,07-Apr-2018,40.00
D1300G-CORPORATE RESOURCES,Travel/Subsistence,OYSTER AUTOTOPUP,07-Apr-2018,20.00
D1300G-CORPORATE RESOURCES,Domestic Goods-Other,AMZ*De korWNN,08-Apr-2018,-11.51
D1300G-CORPORATE RESOURCES,Travel/Subsistence,OYSTER BUS AUTOTOP,08-Apr-2018,20.00
D1300G-CORPORATE RESOURCES,Travel/Subsistence,OYSTER BUS AUTOTOP,08-Apr-2018,40.00
D1300G-CORPORATE RESOURCES,Travel/Subsistence,OYSTER BUS AUTOTOP,08-Apr-2018,20.00
D1300G-CORPORATE RESOURCES,Travel/Subsistence,OYSTER AUTOTOPUP,08-Apr-2018,20.00
D1300G-CORPORATE RESOURCES,Travel/Subsistence,OYSTER AUTOTOPUP,08-Apr-2018,20.00
D1300G-CORPORATE RESOURCES,Travel/Subsistence,OYSTER BUS AUTOTOP,08-Apr-2018,60.00
D1300G-CORPORATE RESOURCES,Travel/Subsistence,OYSTER RENEW WEB,08-Apr-2018,40.00
D1300G-CORPORATE RESOURCES,Financial Services,WANDSWORTH COUNCIL,09-Apr-2018,9.00
D1300G-CORPORATE RESOURCES,Travel/Subsistence,OYSTER BUS AUTOTOP,09-Apr-2018,20.00
D1300G-CORPORATE RESOURCES,Catering Food & Drink,TESCO STORES 5999,09-Apr-2018,72.40
D1300G-CORPORATE RESOURCES,Taxi Fares,WWW.ADDISONLEE.COM,09-Apr-2018,15.95
D1300G-CORPORATE RESOURCES,Travel/Subsistence,OYSTER ISSUE WEB,09-Apr-2018,75.00
D1300G-CORPORATE RESOURCES,Domestic Goods-Other,MOTHERCARE UK LTD,09-Apr-2018,399.93
D1300G-CORPORATE RESOURCES,Healthcare-Drugs,SUPERDRUG STORES PLC,09-Apr-2018,8.03
D1300G-CORPORATE RESOURCES,Travel/Subsistence,OYSTER BUS AUTOTOP,09-Apr-2018,20.00
D1300G-CORPORATE RESOURCES,Catering Food & Drink,TESCO STORES 5999,09-Apr-2018,45.59
D1300G-CORPORATE RESOURCES,Travel/Subsistence,OYSTER RENEW WEB,09-Apr-2018,30.00
D1300G-CORPORATE RESOURCES,Catering Food & Drink,SAN MARINO,09-Apr-2018,1200.00
D1300G-CORPORATE RESOURCES,Travel/Subsistence,OYSTER RENEW WEB,09-Apr-2018,15.00
D1300G-CORPORATE RESOURCES,Travel/Subsistence,OYSTER BUS AUTOSET,10-Apr-2018,20.00
D1300G-CORPORATE RESOURCES,Travel/Subsistence,OYSTER RENEW WEB,10-Apr-2018,10.00
D1300G-CORPORATE RESOURCES,Travel/Subsistence,OYSTER BUS AUTOTOP,10-Apr-2018,20.00
D1300G-CORPORATE RESOURCES,IT Services,HOO,10-Apr-2018,5.24
D1300G-CORPORATE RESOURCES,Financial Services,LAND REGISTRY,10-Apr-2018,3.00
D1300G-CORPORATE RESOURCES,Domestic Goods-Other,MOONPIGUK,10-Apr-2018,3.96
D1300G-CORPORATE RESOURCES,Travel/Subsistence,OYSTER RENEW WEB,10-Apr-2018,-30.00
D1300G-CORPORATE RESOURCES,Facilities-Printing,Amazon UK Retail,10-Apr-2018,30.00
D1300G-CORPORATE RESOURCES,Domestic Goods-Other,ARGOS,10-Apr-2018,99.99
D1300G-CORPORATE RESOURCES,Financial Services,HM PASSPORT OFFICE,10-Apr-2018,58.50
D1300G-CORPORATE RESOURCES,Domestic Goods-Other,WWW.ARGOS.CO.UK,10-Apr-2018,169.99
D1300G-CORPORATE RESOURCES,Facilities-Market Research,WHSMITH.CO.UK,10-Apr-2018,47.88
D1300G-CORPORATE RESOURCES,Domestic Goods-Other,AMAZON EU AMAZON.CO.UK,11-Apr-2018,6.00
D1300G-CORPORATE RESOURCES,Healthcare Equipment,MOBILITYANDCARE.CO.UK,11-Apr-2018,152.49
D1300G-CORPORATE RESOURCES,Travel/Subsistence,OYSTER AUTOTOPUP,11-Apr-2018,40.00
D1300G-CORPORATE RESOURCES,Taxi Fares,SW97NL TO SE114TH,11-Apr-2018,15.00
D1300G-CORPORATE RESOURCES,Haulage,www.anyvan.com,11-Apr-2018,52.00
D1300G-CORPORATE RESOURCES,Travel/Subsistence,OYSTER RENEW WEB,11-Apr-2018,30.00
D1300G-CORPORATE RESOURCES,Travel/Subsistence,OYSTER RENEW WEB,11-Apr-2018,30.00
D1300G-CORPORATE RESOURCES,Facilities-Market Research,Amazon Prime,11-Apr-2018,7.99
D1300G-CORPORATE RESOURCES,Mail Services-Postage,THE POST OFFICE,11-Apr-2018,24.65
D1300G-CORPORATE RESOURCES,Catering Food & Drink,SAINSBURYS S/MKTS,11-Apr-2018,12.70
D1300G-CORPORATE RESOURCES,Travel/Subsistence,OYSTER AUTOTOPUP,11-Apr-2018,20.00
D1300G-CORPORATE RESOURCES,Catering Food & Drink,TESCO STORES 5999,11-Apr-2018,35.66
D1300G-CORPORATE RESOURCES,Conference Expenses,WWW.ADASS.ORG.UK,11-Apr-2018,144.00
D1300G-CORPORATE RESOURCES,Catering Food & Drink,TESCO STORE 2143,11-Apr-2018,21.00
D1300G-CORPORATE RESOURCES,Travel/Subsistence,OYSTER AUTOTOPUP,11-Apr-2018,20.00
D1300G-CORPORATE RESOURCES,Travel/Subsistence,OYSTER BUS AUTOTOP,11-Apr-2018,60.00
D1300G-CORPORATE RESOURCES,Travel/Subsistence,OYSTER RENEW WEB,11-Apr-2018,90.00
D1300G-CORPORATE RESOURCES,Travel/Subsistence,LUL TICKET MACHINE,11-Apr-2018,50.00
D1300G-CORPORATE RESOURCES,Travel/Subsistence,OYSTER BUS AUTOTOP,12-Apr-2018,20.00
D1300G-CORPORATE RESOURCES,Facilities-Advertising,WH SMITH,12-Apr-2018,25.98
D1300G-CORPORATE RESOURCES,Travel/Subsistence,OYSTER RENEW WEB,12-Apr-2018,90.00
D1300G-CORPORATE RESOURCES,Financial Services,HM PASSPORT OFFICE,12-Apr-2018,75.50
D1300G-CORPORATE RESOURCES,Travel/Subsistence,OYSTER BUS AUTOTOP,12-Apr-2018,20.00
D1300G-CORPORATE RESOURCES,Haulage,www.anyvan.com,12-Apr-2018,504.00
D1300G-CORPORATE RESOURCES,Domestic Goods-Other,WWW.ARGOS.CO.UK,12-Apr-2018,26.94
D1300G-CORPORATE RESOURCES,Travel/Subsistence,OYSTER BUS AUTOTOP,12-Apr-2018,40.00
D1300G-CORPORATE RESOURCES,Taxi Fares,WWW.MINICABS.CO.UK,12-Apr-2018,101.25
D1300G-CORPORATE RESOURCES,Travel/Subsistence,OYSTER AUTOTOPUP,12-Apr-2018,40.00
D1300G-CORPORATE RESOURCES,Domestic Goods-Other,AMAZON MKTPLACE PMTS,12-Apr-2018,12.79
D1300G-CORPORATE RESOURCES,Travel/Subsistence,OYSTER BUS AUTOTOP,12-Apr-2018,60.00
D1300G-CORPORATE RESOURCES,Facilities-Market Research,SURVEYMONKEY.COM,13-Apr-2018,336.00
D1300G-CORPORATE RESOURCES,Travel/Subsistence,OYSTER BUS AUTOTOP,13-Apr-2018,40.00
D1300G-CORPORATE RESOURCES,Travel/Subsistence,OYSTER BUS AUTOTOP,13-Apr-2018,20.00
D1300G-CORPORATE RESOURCES,Travel/Subsistence,OYSTER BUS AUTOTOP,13-Apr-2018,20.00
D1300G-CORPORATE RESOURCES,Taxi Fares,WWW.MINICABS.CO.UK,13-Apr-2018,202.50
D1300G-CORPORATE RESOURCES,Taxi Fares,ACC MINICAB,13-Apr-2018,140.00
D1300G-CORPORATE RESOURCES,Mail Services-Postage,POST OFFICE SELF SERVI,13-Apr-2018,13.76
D1300G-CORPORATE RESOURCES,Travel/Subsistence,OYSTER RENEW WEB,13-Apr-2018,30.00
D1300G-CORPORATE RESOURCES,Taxi Fares,APL*/CallCars,13-Apr-2018,26.00
D1300G-CORPORATE RESOURCES,Furniture-Office Furniture,Amazon UK Marketplace,13-Apr-2018,184.69
D1300G-CORPORATE RESOURCES,Catering Food & Drink,TESCO STORES 5999,13-Apr-2018,72.28
D1300G-CORPORATE RESOURCES,Facilities-Storage,SAFESTORE LIMITED,13-Apr-2018,501.69
D1300G-CORPORATE RESOURCES,Travel/Subsistence,OYSTER AUTOTOPUP,13-Apr-2018,40.00
D1300G-CORPORATE RESOURCES,Travel/Subsistence,OYSTER AUTOTOPUP,13-Apr-2018,40.00
D1300G-CORPORATE RESOURCES,Travel/Subsistence,OYSTER BUS AUTOTOP,14-Apr-2018,40.00
D1300G-CORPORATE RESOURCES,Travel/Subsistence,OYSTER AUTOTOPUP,14-Apr-2018,20.00
D1300G-CORPORATE RESOURCES,Travel/Subsistence,OYSTER BUS AUTOTOP,14-Apr-2018,20.00
D1300G-CORPORATE RESOURCES,Travel/Subsistence,OYSTER BUS AUTOTOP,14-Apr-2018,20.00
D1300G-CORPORATE RESOURCES,Travel/Subsistence,OYSTER AUTOTOPUP,14-Apr-2018,60.00
D1300G-CORPORATE RESOURCES,Travel/Subsistence,OYSTER BUS AUTOTOP,14-Apr-2018,20.00
D1300G-CORPORATE RESOURCES,Travel/Subsistence,OYSTER AUTOTOPUP,14-Apr-2018,40.00
D1300G-CORPORATE RESOURCES,Travel/Subsistence,OYSTER AUTOTOPUP,15-Apr-2018,80.00
D1300G-CORPORATE RESOURCES,Travel/Subsistence,OYSTER BUS AUTOTOP,15-Apr-2018,20.00
D1300G-CORPORATE RESOURCES,Education-Library Books,Amazon UK Marketplace,15-Apr-2018,34.74
D1300G-CORPORATE RESOURCES,Travel/Subsistence,OYSTER BUS AUTOTOP,15-Apr-2018,20.00
D1300G-CORPORATE RESOURCES,Travel/Subsistence,OYSTER BUS AUTOTOP,15-Apr-2018,40.00
D1300G-CORPORATE RESOURCES,Travel/Subsistence,OYSTER AUTOTOPUP,15-Apr-2018,20.00
D1300G-CORPORATE RESOURCES,Catering Food & Drink,TESCO STORES 5999,16-Apr-2018,63.68
D1300G-CORPORATE RESOURCES,Travel/Subsistence,OYSTER RENEW WEB,16-Apr-2018,30.00
D1300G-CORPORATE RESOURCES,Travel/Subsistence,OYSTER BUS AUTOTOP,16-Apr-2018,20.00
D1300G-CORPORATE RESOURCES,Mail Services-Postage,THE POST OFFICE,16-Apr-2018,18.56
D1300G-CORPORATE RESOURCES,Travel/Subsistence,OYSTER RENEW WEB,16-Apr-2018,30.00
D1300G-CORPORATE RESOURCES,Travel/Subsistence,OYSTER BUS AUTOTOP,16-Apr-2018,20.00
D1300G-CORPORATE RESOURCES,Taxi Fares,GREYHOUND CARS LTD,16-Apr-2018,45.60
D1300G-CORPORATE RESOURCES,Taxi Fares,APL*/SwiftCar,16-Apr-2018,37.40
D1300G-CORPORATE RESOURCES,Domestic Goods-Other,POUNDLAND LTD,16-Apr-2018,17.30
D1300G-CORPORATE RESOURCES,Financial Services,HM PASSPORT OFFICE,16-Apr-2018,54.00
D1300G-CORPORATE RESOURCES,Mail Services-Postage,POST OFFICE SELF SERVI,16-Apr-2018,19.17
D1300G-CORPORATE RESOURCES,Financial Services,SAINSBURYS           CASH,17-Apr-2018,100.00
D1300G-CORPORATE RESOURCES,Travel/Subsistence,OYSTER RENEW WEB,17-Apr-2018,30.00
D1300G-CORPORATE RESOURCES,Travel/Subsistence,OYSTER BUS AUTOTOP,17-Apr-2018,20.00
D1300G-CORPORATE RESOURCES,Mail Services-Postage,POST OFFICE SELF SERVI,17-Apr-2018,13.00
D1300G-CORPORATE RESOURCES,Facilities-Market Research,Prime Fresh Membership,18-Apr-2018,3.99
D1300G-CORPORATE RESOURCES,Travel/Subsistence,TRAINLINE,18-Apr-2018,299.95
D1300G-CORPORATE RESOURCES,Travel/Subsistence,OYSTER AUTOTOPUP,18-Apr-2018,40.00
D1300G-CORPORATE RESOURCES,Travel/Subsistence,OYSTER RENEW WEB,18-Apr-2018,-30.00
D1300G-CORPORATE RESOURCES,Travel/Subsistence,OYSTER RENEW WEB,18-Apr-2018,30.00
D1300G-CORPORATE RESOURCES,Catering Food & Drink,TESCO STORES 5999,18-Apr-2018,63.27
D1300G-CORPORATE RESOURCES,Taxi Fares,WWW.MINICABS.CO.UK,18-Apr-2018,20.00
D1300G-CORPORATE RESOURCES,Facilities-Advertising,WOODSIDE STORES,18-Apr-2018,100.00
D1300G-CORPORATE RESOURCES,Travel/Subsistence,OYSTER BUS AUTOTOP,18-Apr-2018,40.00
D1300G-CORPORATE RESOURCES,Travel/Subsistence,OYSTER BUS AUTOTOP,18-Apr-2018,20.00
D1300G-CORPORATE RESOURCES,Domestic Goods-Other,ARGOS,18-Apr-2018,39.99
D1300G-CORPORATE RESOURCES,Mail Services-Postage,POST OFFICE SELF SERVI,18-Apr-2018,3.54
D1300G-CORPORATE RESOURCES,Travel/Subsistence,OYSTER RENEW WEB,18-Apr-2018,30.00
D1300G-CORPORATE RESOURCES,IT Services,WWW.PARAGON.NET.UK RT,18-Apr-2018,43.13
D1300G-CORPORATE RESOURCES,Travel/Subsistence,OYSTER RENEW WEB,18-Apr-2018,25.00
D1300G-CORPORATE RESOURCES,Travel/Subsistence,OYSTER AUTOTOPUP,18-Apr-2018,20.00
D1300G-CORPORATE RESOURCES,IT Hardware,Amazon UK Marketplace,18-Apr-2018,66.47
D1300G-CORPORATE RESOURCES,Domestic Goods-Other,WORLDSTORES,18-Apr-2018,214.98
D1300G-CORPORATE RESOURCES,Financial Services,CASH ADVANCE FEE,18-Apr-2018,2.95
D1300G-CORPORATE RESOURCES,Domestic Goods-Other,WWW.ARGOS.CO.UK,19-Apr-2018,656.94
D1300G-CORPORATE RESOURCES,Furniture-Domestic Furniture,WWW.IKEA.COM,19-Apr-2018,194.00
D1300G-CORPORATE RESOURCES,Financial Services,BRIXTON 4,19-Apr-2018,700.00
D1300G-CORPORATE RESOURCES,Mail Services-Postage,POST OFFICE SELF SERVI,19-Apr-2018,9.43
D1300G-CORPORATE RESOURCES,Travel/Subsistence,OYSTER AUTOTOPUP,19-Apr-2018,20.00
D1300G-CORPORATE RESOURCES,Travel/Subsistence,OYSTER AUTOTOPUP,19-Apr-2018,40.00
D1300G-CORPORATE RESOURCES,Financial Services,NATWEST BANK  /,19-Apr-2018,200.00
D1300G-CORPORATE RESOURCES,Travel/Subsistence,OYSTER BUS AUTOTOP,19-Apr-2018,60.00
D1300G-CORPORATE RESOURCES,Travel/Subsistence,OYSTER AUTOTOPUP,19-Apr-2018,40.00
D1300G-CORPORATE RESOURCES,Financial Services,DVLA DRIVER ONLINE,19-Apr-2018,34.00
D1300G-CORPORATE RESOURCES,Accommodation,FLYBE       ECRNFG,19-Apr-2018,149.96
D1300G-CORPORATE RESOURCES,Taxi Fares,WWW.MINICABS.CO.UK,19-Apr-2018,-20.00
D1300G-CORPORATE RESOURCES,Domestic Goods-Other,B & M RETAIL,19-Apr-2018,23.62
D1300G-CORPORATE RESOURCES,Travel/Subsistence,OYSTER BUS AUTOTOP,19-Apr-2018,20.00
D1300G-CORPORATE RESOURCES,Travel/Subsistence,OYSTER AUTOTOPUP,19-Apr-2018,20.00
D1300G-CORPORATE RESOURCES,Travel/Subsistence,OYSTER BUS AUTOTOP,20-Apr-2018,20.00
D1300G-CORPORATE RESOURCES,Taxi Fares,KABBEE,20-Apr-2018,17.00
D1300G-CORPORATE RESOURCES,Travel/Subsistence,LONDON & SOUTH EAS,20-Apr-2018,35.70
D1300G-CORPORATE RESOURCES,Haulage,PARCELFORCE WORLDWIDE,20-Apr-2018,39.42
D1300G-CORPORATE RESOURCES,Catering Food & Drink,TESCO STORES 6291,20-Apr-2018,50.00
D1300G-CORPORATE RESOURCES,Travel/Subsistence,OYSTER BUS AUTOTOP,20-Apr-2018,20.00
D1300G-CORPORATE RESOURCES,Accommodation,CASH ADVANCE FEE,20-Apr-2018,26.55
D1300G-CORPORATE RESOURCES,Travel/Subsistence,OYSTER AUTOTOPUP,20-Apr-2018,20.00
D1300G-CORPORATE RESOURCES,Taxi Fares,UBER TRIP GO6JI HELP.UBER,20-Apr-2018,36.68
D1300G-CORPORATE RESOURCES,Mail Services-Postage,POST OFFICE SELF SERVI,20-Apr-2018,13.91
D1300G-CORPORATE RESOURCES,Taxi Fares,UBER TRIP LUUPJ HELP.UBER,20-Apr-2018,16.37
D1300G-CORPORATE RESOURCES,Travel/Subsistence,OYSTER AUTOTOPUP,20-Apr-2018,40.00
D1300G-CORPORATE RESOURCES,IT Software,ADOBE  CREATIVE CLOUD,20-Apr-2018,141.60
D1300G-CORPORATE RESOURCES,Legal Services-Other,HMCOURTS-SERVICE.G,20-Apr-2018,40.00
D1300G-CORPORATE RESOURCES,Travel/Subsistence,OYSTER BUS AUTOTOP,20-Apr-2018,40.00
D1300G-CORPORATE RESOURCES,Taxi Fares,UBER TRIP VETBI HELP.UBER,20-Apr-2018,15.06
D1300G-CORPORATE RESOURCES,Travel/Subsistence,OYSTER AUTOTOPUP,20-Apr-2018,40.00
D1300G-CORPORATE RESOURCES,Mail Services-Postage,POST OFFICE SELF SERVI,20-Apr-2018,34.32
D1300G-CORPORATE RESOURCES,Travel/Subsistence,OYSTER AUTOTOPUP,21-Apr-2018,20.00
D1300G-CORPORATE RESOURCES,Travel/Subsistence,OYSTER BUS AUTOTOP,21-Apr-2018,20.00
D1300G-CORPORATE RESOURCES,IT Services,WWW.PARAGON.NET.UK RT,21-Apr-2018,122.16
D1300G-CORPORATE RESOURCES,Travel/Subsistence,OYSTER AUTOTOPUP,21-Apr-2018,20.00
D1300G-CORPORATE RESOURCES,Taxi Fares,UBER TRIP YXIEW HELP.UBER,21-Apr-2018,11.13
D1300G-CORPORATE RESOURCES,Catering Food & Drink,TESCO STORE 3300,21-Apr-2018,155.00
D1300G-CORPORATE RESOURCES,Travel/Subsistence,OYSTER AUTOTOPUP,21-Apr-2018,20.00
D1300G-CORPORATE RESOURCES,Travel/Subsistence,OYSTER BUS AUTOTOP,21-Apr-2018,20.00
D1300G-CORPORATE RESOURCES,Travel/Subsistence,OYSTER AUTOTOPUP,22-Apr-2018,20.00
D1300G-CORPORATE RESOURCES,Taxi Fares,UBER TRIP X4PNU HELP.UBER,22-Apr-2018,6.99
D1300G-CORPORATE RESOURCES,Travel/Subsistence,OYSTER AUTOTOPUP,22-Apr-2018,80.00
D1300G-CORPORATE RESOURCES,Travel/Subsistence,OYSTER BUS AUTOTOP,22-Apr-2018,20.00
D1300G-CORPORATE RESOURCES,Travel/Subsistence,OYSTER AUTOTOPUP,22-Apr-2018,20.00
D1300G-CORPORATE RESOURCES,Travel/Subsistence,OYSTER AUTOTOPUP,22-Apr-2018,20.00
D1300G-CORPORATE RESOURCES,Travel/Subsistence,OYSTER AUTOTOPUP,22-Apr-2018,20.00
D1300G-CORPORATE RESOURCES,Building-Others,WWW.UNIVERSEAL.CO.UK,23-Apr-2018,170.40
D1300G-CORPORATE RESOURCES,Travel/Subsistence,OYSTER BUS AUTOTOP,23-Apr-2018,20.00
D1300G-CORPORATE RESOURCES,Domestic Goods-Other,CURRYS ONLINE,23-Apr-2018,229.98
D1300G-CORPORATE RESOURCES,Travel/Subsistence,OYSTER RENEW WEB,23-Apr-2018,30.00
D1300G-CORPORATE RESOURCES,Taxi Fares,WWW.MINICABS.CO.UK,23-Apr-2018,146.25
D1300G-CORPORATE RESOURCES,Taxi Fares,UBER TRIP L52SV HELP.UBER,23-Apr-2018,10.04
D1300G-CORPORATE RESOURCES,Travel/Subsistence,OYSTER RENEW WEB,23-Apr-2018,10.00
D1300G-CORPORATE RESOURCES,Catering Food & Drink,TESCO STORES 5999,23-Apr-2018,63.68
D1300G-CORPORATE RESOURCES,Catering Food & Drink,TESCO STORES 5999,23-Apr-2018,0.00
D1300G-CORPORATE RESOURCES,Travel/Subsistence,OYSTER RENEW WEB,23-Apr-2018,15.00
D1300G-CORPORATE RESOURCES,Domestic Goods-Other,WWW.ARGOS.CO.UK,23-Apr-2018,580.78
D1300G-CORPORATE RESOURCES,IT Services,WWW.INVESTEC.CO.UK,23-Apr-2018,291.60
D1300G-CORPORATE RESOURCES,Travel/Subsistence,WOODSIDE STORES,23-Apr-2018,60.00
D1300G-CORPORATE RESOURCES,Furniture-Domestic Furniture,BRIXTON FURNITURE CENT,23-Apr-2018,180.00
D1300G-CORPORATE RESOURCES,Education-Library Books,Amazon UK Marketplace,24-Apr-2018,23.44
D1300G-CORPORATE RESOURCES,Facilities-Advertising,JUNCTION NEWS,24-Apr-2018,35.00
D1300G-CORPORATE RESOURCES,Taxi Fares,UBER TRIP JDJOG HELP.UBER,24-Apr-2018,25.00
D1300G-CORPORATE RESOURCES,Taxi Fares,UBER TRIP DYSEX HELP.UBER,24-Apr-2018,29.29
D1300G-CORPORATE RESOURCES,Travel/Subsistence,OYSTER RENEW WEB,24-Apr-2018,230.00
D1300G-CORPORATE RESOURCES,Catering Food & Drink,TESCO STORE 2143,24-Apr-2018,60.00
D1300G-CORPORATE RESOURCES,Travel/Subsistence,OYSTER RENEW WEB,24-Apr-2018,60.00
D1300G-CORPORATE RESOURCES,Horticultural-Other,WWW.PRESTIGEFLOWERS.CO.U,24-Apr-2018,31.29
D1300G-CORPORATE RESOURCES,Financial Services,HM PASSPORT OFFICE,24-Apr-2018,100.00
D1300G-CORPORATE RESOURCES,Education-Library Books,AMAZON SVCS EU-UK AMAZON.,24-Apr-2018,28.12
D1300G-CORPORATE RESOURCES,Travel/Subsistence,OYSTER RENEW WEB,24-Apr-2018,30.00
D1300G-CORPORATE RESOURCES,Financial Services,LAND REGISTRY,24-Apr-2018,3.00
D1300G-CORPORATE RESOURCES,Taxi Fares,UBER TRIP ME36B HELP.UBER,24-Apr-2018,48.30
D1300G-CORPORATE RESOURCES,Accommodation,Hotel on Booking.com,24-Apr-2018,66.53
D1300G-CORPORATE RESOURCES,Taxi Fares,UBER TRIP XGZ2A HELP.UBER,24-Apr-2018,8.00
D1300G-CORPORATE RESOURCES,IT Services,123 REG R/T,24-Apr-2018,23.99
D1300G-CORPORATE RESOURCES,Travel/Subsistence,TRAINLINE,24-Apr-2018,-137.00
D1300G-CORPORATE RESOURCES,Taxi Fares,UBER TRIP XE5L2 HELP.UBER,24-Apr-2018,30.68
D1300G-CORPORATE RESOURCES,Facilities-Printing,Amazon UK Retail,25-Apr-2018,73.04
D1300G-CORPORATE RESOURCES,Travel/Subsistence,OYSTER AUTOTOPUP,25-Apr-2018,40.00
D1300G-CORPORATE RESOURCES,Travel/Subsistence,LUL TICKET MACHINE,25-Apr-2018,50.00
D1300G-CORPORATE RESOURCES,Taxi Fares,GREYHOUND CARS LTD,25-Apr-2018,21.30
D1300G-CORPORATE RESOURCES,Travel/Subsistence,OYSTER RENEW WEB,25-Apr-2018,20.00
D1300G-CORPORATE RESOURCES,Taxi Fares,UBER BV,25-Apr-2018,16.94
D1300G-CORPORATE RESOURCES,Travel/Subsistence,OYSTER BUS AUTOTOP,25-Apr-2018,40.00
D1300G-CORPORATE RESOURCES,Mail Services-Postage,THE POST OFFICE,25-Apr-2018,25.01
D1300G-CORPORATE RESOURCES,Catering Food & Drink,TESCO STORES 5999,25-Apr-2018,63.17
D1300G-CORPORATE RESOURCES,Travel/Subsistence,OYSTER AUTOTOPUP,25-Apr-2018,20.00
D1300G-CORPORATE RESOURCES,Travel/Subsistence,OYSTER RENEW WEB,25-Apr-2018,40.00
D1300G-CORPORATE RESOURCES,Domestic Goods-Other,ARGOS RETAIL GROUP,25-Apr-2018,34.99
D1300G-CORPORATE RESOURCES,Travel/Subsistence,TRAINLINE,25-Apr-2018,99.40
D1300G-CORPORATE RESOURCES,Travel/Subsistence,OYSTER BUS AUTOTOP,25-Apr-2018,20.00
D1300G-CORPORATE RESOURCES,Mail Services-Postage,POST OFFICE SELF SERVI,25-Apr-2018,6.50
D1300G-CORPORATE RESOURCES,Travel/Subsistence,OYSTER AUTOTOPUP,25-Apr-2018,20.00
D1300G-CORPORATE RESOURCES,Arts & Leisure Services,SEA LIFE CENTRE,25-Apr-2018,20.40
D1300G-CORPORATE RESOURCES,Travel/Subsistence,OYSTER RENEW WEB,25-Apr-2018,60.00
D1300G-CORPORATE RESOURCES,Travel/Subsistence,TRAINLINE,25-Apr-2018,103.50
D1300G-CORPORATE RESOURCES,Travel/Subsistence,OYSTER AUTOTOPUP,25-Apr-2018,60.00
D1300G-CORPORATE RESOURCES,Travel/Subsistence,OYSTER BUS AUTOTOP,25-Apr-2018,20.00
D1300G-CORPORATE RESOURCES,Travel/Subsistence,TRAINLINE,26-Apr-2018,139.30
D1300G-CORPORATE RESOURCES,Travel/Subsistence,OYSTER AUTOTOPUP,26-Apr-2018,40.00
D1300G-CORPORATE RESOURCES,Facilities-Printing,Amazon UK Retail,26-Apr-2018,47.04
D1300G-CORPORATE RESOURCES,Mail Services-Postage,POST OFFICE SELF SERVI,26-Apr-2018,5.31
D1300G-CORPORATE RESOURCES,Taxi Fares,THE KEEN GROUP,26-Apr-2018,14.88
D1300G-CORPORATE RESOURCES,Travel/Subsistence,OYSTER BUS AUTOTOP,26-Apr-2018,40.00
D1300G-CORPORATE RESOURCES,Education-Library Books,AMAZON SVCS EU-UK AMAZON.,26-Apr-2018,35.31
D1300G-CORPORATE RESOURCES,Financial Services,LAND REGISTRY,26-Apr-2018,21.00
D1300G-CORPORATE RESOURCES,Travel/Subsistence,OYSTER RENEW WEB,26-Apr-2018,30.00
D1300G-CORPORATE RESOURCES,Financial Services,BRIXTON 4,26-Apr-2018,50.00
D1300G-CORPORATE RESOURCES,Travel/Subsistence,OYSTER AUTOTOPUP,26-Apr-2018,40.00
D1300G-CORPORATE RESOURCES,Travel/Subsistence,OYSTER BUS AUTOTOP,26-Apr-2018,20.00
D1300G-CORPORATE RESOURCES,Consultancy-Business,EB *SEMINAR PROCUREMEN,26-Apr-2018,27.54
D1300G-CORPORATE RESOURCES,Travel/Subsistence,OYSTER AUTOTOPUP,26-Apr-2018,40.00
D1300G-CORPORATE RESOURCES,Healthcare Equipment,WWW.WHEELFREEDOM.COM,26-Apr-2018,108.00
D1300G-CORPORATE RESOURCES,Travel/Subsistence,OYSTER AUTOTOPUP,26-Apr-2018,20.00
D1300G-CORPORATE RESOURCES,Travel/Subsistence,TFL ROAD CHARGE,26-Apr-2018,11.50
D1300G-CORPORATE RESOURCES,Mail Services-Postage,THE POST OFFICE,26-Apr-2018,8.85
D1300G-CORPORATE RESOURCES,Mail Services-Postage,THE POST OFFICE,26-Apr-2018,220.00
D1300G-CORPORATE RESOURCES,Travel/Subsistence,OYSTER AUTOTOPUP,27-Apr-2018,20.00
D1300G-CORPORATE RESOURCES,Travel/Subsistence,TRAINLINE,27-Apr-2018,19.35
D1300G-CORPORATE RESOURCES,Taxi Fares,CHURCH STREET CARS,27-Apr-2018,18.00
D1300G-CORPORATE RESOURCES,Catering Food & Drink,TESCO STORES 5999,27-Apr-2018,83.70
D1300G-CORPORATE RESOURCES,Domestic Goods-Other,WWW.ARGOS.CO.UK,27-Apr-2018,174.88
D1300G-CORPORATE RESOURCES,Financial Services,CASH ADVANCE FEE,27-Apr-2018,2.95
D1300G-CORPORATE RESOURCES,Taxi Fares,WWW.MINICABS.CO.UK,27-Apr-2018,31.25
D1300G-CORPORATE RESOURCES,Travel/Subsistence,OYSTER RENEW WEB,27-Apr-2018,60.00
D1300G-CORPORATE RESOURCES,Domestic Goods-Other,WWW.LUGGAGESUPERST,27-Apr-2018,132.46
D1300G-CORPORATE RESOURCES,Mail Services-Postage,POST OFFICE SELF SERVI,27-Apr-2018,35.87
D1300G-CORPORATE RESOURCES,Travel/Subsistence,OYSTER BUS AUTOTOP,27-Apr-2018,40.00
D1300G-CORPORATE RESOURCES,Education-Library Books,AMAZON SVCS EU-UK AMAZON.,27-Apr-2018,14.90
D1300G-CORPORATE RESOURCES,Furniture-Office Furniture,WWW.POSTURITE.CO.UK,27-Apr-2018,1168.13
D1300G-CORPORATE RESOURCES,Mail Services-Postage,POST OFFICE SELF SERVI,27-Apr-2018,14.77
D1300G-CORPORATE RESOURCES,Facilities-Storage,BIG YELLOW BOX & LOCK,27-Apr-2018,156.60
D1300G-CORPORATE RESOURCES,Mail Services-Postage,POST OFFICE SELF SERVI,27-Apr-2018,6.48
D1300G-CORPORATE RESOURCES,Travel/Subsistence,OYSTER BUS AUTOTOP,28-Apr-2018,20.00
D1300G-CORPORATE RESOURCES,Travel/Subsistence,OYSTER AUTOTOPUP,28-Apr-2018,60.00
D1300G-CORPORATE RESOURCES,Travel/Subsistence,OYSTER RENEW WEB,28-Apr-2018,30.00
D1300G-CORPORATE RESOURCES,Travel/Subsistence,OYSTER BUS AUTOTOP,28-Apr-2018,40.00
D1300G-CORPORATE RESOURCES,Travel/Subsistence,OYSTER AUTOTOPUP,28-Apr-2018,40.00
D1300G-CORPORATE RESOURCES,Facilities-Reprographics,ACADEMY PHOTOS LTD,28-Apr-2018,87.50
D1300G-CORPORATE RESOURCES,Travel/Subsistence,OYSTER BUS AUTOTOP,28-Apr-2018,20.00
D1300G-CORPORATE RESOURCES,Facilities-Advertising,WH SMITH,28-Apr-2018,16.76
D1300G-CORPORATE RESOURCES,Travel/Subsistence,OYSTER AUTOTOPUP,29-Apr-2018,20.00
D1300G-CORPORATE RESOURCES,Travel/Subsistence,OYSTER AUTOTOPUP,29-Apr-2018,20.00
D1300G-CORPORATE RESOURCES,Travel/Subsistence,OYSTER AUTOTOPUP,29-Apr-2018,40.00
D1300G-CORPORATE RESOURCES,Education-Library Books,Amazon UK Marketplace,29-Apr-2018,50.74
D1300G-CORPORATE RESOURCES,Travel/Subsistence,OYSTER BUS AUTOTOP,29-Apr-2018,20.00
D1300G-CORPORATE RESOURCES,Travel/Subsistence,OYSTER AUTOTOPUP,29-Apr-2018,20.00
D1300G-CORPORATE RESOURCES,Travel/Subsistence,OYSTER BUS AUTOTOP,29-Apr-2018,40.00
D1300G-CORPORATE RESOURCES,Travel/Subsistence,OYSTER BUS AUTOTOP,29-Apr-2018,40.00
D1300G-CORPORATE RESOURCES,Travel/Subsistence,TRAINLINE,30-Apr-2018,15.05
D1300G-CORPORATE RESOURCES,Education-Library Books,Amazon UK Marketplace,30-Apr-2018,259.87
D1300G-CORPORATE RESOURCES,Travel/Subsistence,LUL TICKET MACHINE,30-Apr-2018,100.00
D1300G-CORPORATE RESOURCES,Horticultural-Other,WWW.PRESTIGEFLOWERS.CO.U,30-Apr-2018,62.58
D1300G-CORPORATE RESOURCES,Taxi Fares,CAB JOURNEY,30-Apr-2018,64.00
D1300G-CORPORATE RESOURCES,Taxi Fares,CHURCH STREET CARS,30-Apr-2018,19.00
D1300G-CORPORATE RESOURCES,Education-Library Books,Amazon UK Marketplace,30-Apr-2018,159.92
D1300G-CORPORATE RESOURCES,Travel/Subsistence,OYSTER BUS AUTOTOP,30-Apr-2018,20.00
D1300G-CORPORATE RESOURCES,Domestic Goods-Other,CURRYS ONLINE,30-Apr-2018,204.00
D1300G-CORPORATE RESOURCES,Travel/Subsistence,OYSTER BUS AUTOTOP,30-Apr-2018,20.00
D1300G-CORPORATE RESOURCES,Facilities-Printing,WWW.SOLOPRESS.COM,30-Apr-2018,52.00
D1300G-CORPORATE RESOURCES,Taxi Fares,GREYHOUND CARS LTD,30-Apr-2018,43.60
D1300G-CORPORATE RESOURCES,Travel/Subsistence,TRAINLINE,30-Apr-2018,130.00
D1300G-CORPORATE RESOURCES,Domestic Goods-Other,KINGDOM COFFEE,30-Apr-2018,251.85
D1300G-CORPORATE RESOURCES,Education-Library Books,Amazon UK Marketplace,01-May-2018,20.97
D1300G-CORPORATE RESOURCES,Accommodation,BELGRAVE HOTEL,01-May-2018,420.00
D1300G-CORPORATE RESOURCES,Travel/Subsistence,OYSTER RENEW WEB,01-May-2018,80.00
D1300G-CORPORATE RESOURCES,Travel/Subsistence,OYSTER BUS AUTOTOP,01-May-2018,20.00
D1300G-CORPORATE RESOURCES,Catering Food & Drink,TESCO STORES-2143,01-May-2018,3.40
D1300G-CORPORATE RESOURCES,Travel/Subsistence,TRAINLINE,01-May-2018,-87.90
D1300G-CORPORATE RESOURCES,Taxi Fares,SURREY MINI CABS,01-May-2018,50.00
D1300G-CORPORATE RESOURCES,IT Services,NATIONBUILDER,01-May-2018,165.93
D1300G-CORPORATE RESOURCES,IT Services,WWW.PARAGON.NET.UK RT,01-May-2018,122.16
D1300G-CORPORATE RESOURCES,Travel/Subsistence,OYSTER RENEW WEB,01-May-2018,20.00
D1300G-CORPORATE RESOURCES,Education-Library Books,Amazon UK Marketplace,01-May-2018,289.98
D1300G-CORPORATE RESOURCES,Catering Food & Drink,TESCO STORES 5999,02-May-2018,92.70
D1300G-CORPORATE RESOURCES,Conference Expenses,REDACTIVE,02-May-2018,834.00
D1300G-CORPORATE RESOURCES,Travel/Subsistence,TRAINLINE,02-May-2018,549.00
D1300G-CORPORATE RESOURCES,Travel/Subsistence,OYSTER RENEW WEB,02-May-2018,30.00
D1300G-CORPORATE RESOURCES,Travel/Subsistence,OYSTER RENEW WEB,02-May-2018,30.00
D1300G-CORPORATE RESOURCES,Education-Toys,OMESCAPE LONDON,02-May-2018,129.00
D1300G-CORPORATE RESOURCES,Legal Services-General Support,PANNONE CORPORATE,02-May-2018,231.96
D1300G-CORPORATE RESOURCES,Haulage,www.anyvan.com,02-May-2018,159.00
D1300G-CORPORATE RESOURCES,Travel/Subsistence,OYSTER BUS AUTOTOP,02-May-2018,40.00
D1300G-CORPORATE RESOURCES,Taxi Fares,GREYHOUND CARS LTD,02-May-2018,21.30
D1300G-CORPORATE RESOURCES,Conference Expenses,REDACTIVE,02-May-2018,654.00
D1300G-CORPORATE RESOURCES,Legal Services-Other,HMCOURTS-SERVICE.G,02-May-2018,14409.00
D1300G-CORPORATE RESOURCES,Travel/Subsistence,OYSTER AUTOTOPUP,02-May-2018,60.00
D1300G-CORPORATE RESOURCES,Arts & Leisure Services,MIDDLEGATE HOUSE,02-May-2018,675.00
D1300G-CORPORATE RESOURCES,Travel/Subsistence,OYSTER AUTOTOPUP,02-May-2018,60.00
D1300G-CORPORATE RESOURCES,Domestic Goods-Other,WWW.ARGOS.CO.UK,02-May-2018,139.42
D1300G-CORPORATE RESOURCES,Travel/Subsistence,OYSTER AUTOTOPUP,03-May-2018,20.00
D1300G-CORPORATE RESOURCES,Travel/Subsistence,OYSTER AUTOTOPUP,03-May-2018,40.00
D1300G-CORPORATE RESOURCES,Catering Food & Drink,THE ROOKERY CAFE,03-May-2018,250.00
D1300G-CORPORATE RESOURCES,Financial Services,TD E-PMT 2MAA005309214,03-May-2018,75.00
D1300G-CORPORATE RESOURCES,Domestic Goods-Other,AMZ*U&household,03-May-2018,-19.99
D1300G-CORPORATE RESOURCES,IT Services,NATIONBUILDER,03-May-2018,67.69
D1300G-CORPORATE RESOURCES,Travel/Subsistence,OYSTER BUS AUTOTOP,03-May-2018,40.00
D1300G-CORPORATE RESOURCES,Financial Services,HM PASSPORT OFFICE,03-May-2018,80.50
D1300G-CORPORATE RESOURCES,Travel/Subsistence,OYSTER BUS AUTOTOP,03-May-2018,40.00
D1300G-CORPORATE RESOURCES,Travel/Subsistence,OYSTER AUTOTOPUP,03-May-2018,20.00
D1300G-CORPORATE RESOURCES,Taxi Fares,CHURCH STREET CARS,03-May-2018,70.00
D1300G-CORPORATE RESOURCES,Catering Food & Drink,LIDL UK LONDON,03-May-2018,77.03
D1300G-CORPORATE RESOURCES,Travel/Subsistence,LUL TICKET MACHINE,03-May-2018,70.00
D1300G-CORPORATE RESOURCES,IT Services,AMAZON MKTPLACE PMTS,03-May-2018,131.79
D1300G-CORPORATE RESOURCES,Financial Services,HM PASSPORT OFFICE,03-May-2018,-5.00
D1300G-CORPORATE RESOURCES,Mail Services-Postage,THE POST OFFICE,04-May-2018,6.72
D1300G-CORPORATE RESOURCES,IT Software-Customised,PANTHEON SYSTEMS INC,04-May-2018,19.09
D1300G-CORPORATE RESOURCES,Catering Food & Drink,MARKS&SPENCER PLC SACA,04-May-2018,54.30
D1300G-CORPORATE RESOURCES,Catering Food & Drink,LIDL UK,04-May-2018,69.73
D1300G-CORPORATE RESOURCES,Catering Food & Drink,TESCO STORES-2143,04-May-2018,8.90
D1300G-CORPORATE RESOURCES,Travel/Subsistence,OYSTER BUS AUTOTOP,04-May-2018,20.00
D1300G-CORPORATE RESOURCES,Travel/Subsistence,OYSTER AUTOTOPUP,04-May-2018,40.00
D1300G-CORPORATE RESOURCES,Mail Services-Postage,POST OFFICE SELF SERVI,04-May-2018,13.80
D1300G-CORPORATE RESOURCES,Domestic Goods-Other,ARGOS DIRECT,04-May-2018,0.00
D1300G-CORPORATE RESOURCES,Travel/Subsistence,OYSTER RENEW WEB,04-May-2018,-30.00
D1300G-CORPORATE RESOURCES,Legal Services-General Support,INST OF LIC,04-May-2018,80.00
D1300G-CORPORATE RESOURCES,Travel/Subsistence,OYSTER AUTOTOPUP,04-May-2018,20.00
D1300G-CORPORATE RESOURCES,Consultancy-Business,ARMOUR LOCK AND SAFE,04-May-2018,10.00
D1300G-CORPORATE RESOURCES,IT Office Equipment,Amazon UK Marketplace,04-May-2018,30.48
D1300G-CORPORATE RESOURCES,Travel/Subsistence,OYSTER AUTOTOPUP,04-May-2018,40.00
D1300G-CORPORATE RESOURCES,Travel/Subsistence,OYSTER BUS AUTOTOP,04-May-2018,40.00
D1300G-CORPORATE RESOURCES,Catering Food & Drink,TESCO STORES 5999,04-May-2018,27.35
D1300G-CORPORATE RESOURCES,Travel/Subsistence,OYSTER BUS AUTOTOP,05-May-2018,20.00
D1300G-CORPORATE RESOURCES,Travel/Subsistence,OYSTER AUTOTOPUP,05-May-2018,20.00
D1300G-CORPORATE RESOURCES,Travel/Subsistence,OYSTER AUTOTOPUP,05-May-2018,80.00
D1300G-CORPORATE RESOURCES,Travel/Subsistence,OYSTER RENEW WEB,05-May-2018,30.00
D1300G-CORPORATE RESOURCES,IT Software,WWW.WEVIDEO.COM/CHARGE,05-May-2018,12.21
D1300G-CORPORATE RESOURCES,Travel/Subsistence,OYSTER AUTOTOPUP,05-May-2018,20.00
D1300G-CORPORATE RESOURCES,Travel/Subsistence,OYSTER BUS AUTOTOP,05-May-2018,40.00
D1300G-CORPORATE RESOURCES,Travel/Subsistence,OYSTER BUS AUTOTOP,05-May-2018,20.00
D1300G-CORPORATE RESOURCES,Travel/Subsistence,OYSTER BUS AUTOTOP,06-May-2018,80.00
D1300G-CORPORATE RESOURCES,Travel/Subsistence,OYSTER BUS AUTOTOP,06-May-2018,20.00
D1300G-CORPORATE RESOURCES,Education-Library Books,Amazon UK Marketplace,06-May-2018,89.24
D1300G-CORPORATE RESOURCES,Travel/Subsistence,OYSTER AUTOTOPUP,06-May-2018,20.00
D1300G-CORPORATE RESOURCES,Travel/Subsistence,OYSTER AUTOTOPUP,06-May-2018,20.00
D1300G-CORPORATE RESOURCES,Travel/Subsistence,OYSTER AUTOTOPUP,06-May-2018,40.00
D1300G-CORPORATE RESOURCES,Travel/Subsistence,OYSTER AUTOTOPUP,06-May-2018,40.00
D1300G-CORPORATE RESOURCES,Education-Library Books,Amazon UK Marketplace,07-May-2018,92.40
D1300G-CORPORATE RESOURCES,Travel/Subsistence,OYSTER AUTOTOPUP,07-May-2018,20.00
D1300G-CORPORATE RESOURCES,Financial Services,LAND REGISTRY,08-May-2018,3.00
D1300G-CORPORATE RESOURCES,Domestic Goods-Other,CURRYS ONLINE,08-May-2018,1629.97
D1300G-CORPORATE RESOURCES,Domestic Goods-Other,WILKO.COM,08-May-2018,109.50
D1300G-CORPORATE RESOURCES,Travel/Subsistence,OYSTER BUS AUTOTOP,08-May-2018,20.00
D1300G-CORPORATE RESOURCES,Catering Food & Drink,TESCO STORE 2143,08-May-2018,40.00
D1300G-CORPORATE RESOURCES,Travel/Subsistence,TRAINLINE,08-May-2018,66.50
D1300G-CORPORATE RESOURCES,Travel/Subsistence,OYSTER RENEW WEB,08-May-2018,-20.00
D1300G-CORPORATE RESOURCES,Catering Food & Drink,TESCO STORES 5999,08-May-2018,104.01
D1300G-CORPORATE RESOURCES,Furniture-Domestic Furniture,WWW.IKEA.COM,08-May-2018,81.60
D1300G-CORPORATE RESOURCES,Arts & Leisure Services,WWW.FLIPOUT.CO.UK,08-May-2018,49.95
D1300G-CORPORATE RESOURCES,Travel/Subsistence,OYSTER BUS AUTOTOP,08-May-2018,20.00
D1300G-CORPORATE RESOURCES,Taxi Fares,TN8 TO SE27,08-May-2018,83.00
D1300G-CORPORATE RESOURCES,Travel/Subsistence,OYSTER RENEW WEB,08-May-2018,49.00
D1300G-CORPORATE RESOURCES,Domestic Goods-Other,AO RETAIL LIMITED,09-May-2018,184.00
D1300G-CORPORATE RESOURCES,Travel/Subsistence,TFL PENALTY CHARGE,09-May-2018,80.00
D1300G-CORPORATE RESOURCES,Financial Services,GRO HM PASSPORT OFFICE,09-May-2018,70.20
D1300G-CORPORATE RESOURCES,Temporary & Agency Staff,REED SPECIALIST,09-May-2018,152.63
D1300G-CORPORATE RESOURCES,Travel/Subsistence,LUL TICKET MACHINE,09-May-2018,100.00
D1300G-CORPORATE RESOURCES,Travel/Subsistence,TRAINLINE,09-May-2018,54.00
D1300G-CORPORATE RESOURCES,Travel/Subsistence,OYSTER RENEW WEB,09-May-2018,-30.00
D1300G-CORPORATE RESOURCES,Healthcare Services,WWW.CIPS.ORG,09-May-2018,134.00
D1300G-CORPORATE RESOURCES,Domestic Goods-Other,WWW.ARGOS.CO.UK,09-May-2018,1356.84
D1300G-CORPORATE RESOURCES,Domestic Goods-Other,AMAZON MKTPLACE PMTS,09-May-2018,-3.29
D1300G-CORPORATE RESOURCES,Travel/Subsistence,OYSTER BUS AUTOTOP,10-May-2018,20.00
D1300G-CORPORATE RESOURCES,Facilities-Storage,WWW.SAFESTORE.CO.UK,10-May-2018,975.99
D1300G-CORPORATE RESOURCES,Travel/Subsistence,OYSTER AUTOTOPUP,10-May-2018,20.00
D1300G-CORPORATE RESOURCES,Travel/Subsistence,OYSTER BUS AUTOTOP,10-May-2018,40.00
D1300G-CORPORATE RESOURCES,Travel/Subsistence,OYSTER BUS AUTOTOP,10-May-2018,20.00
D1300G-CORPORATE RESOURCES,Catering Food & Drink,MARKS&SPENCER PLC SACA,10-May-2018,34.85
D1300G-CORPORATE RESOURCES,Taxi Fares,ABEX612FE LONDON NET C,10-May-2018,49.80
D1300G-CORPORATE RESOURCES,Travel/Subsistence,OYSTER AUTOTOPUP,10-May-2018,40.00
D1300G-CORPORATE RESOURCES,Domestic Goods-Other,WWW.ARGOS.CO.UK,10-May-2018,-217.95
D1300G-CORPORATE RESOURCES,IT Services,HOO,10-May-2018,5.50
D1300G-CORPORATE RESOURCES,Travel/Subsistence,OYSTER BUS AUTOTOP,10-May-2018,20.00
D1300G-CORPORATE RESOURCES,Travel/Subsistence,OYSTER BUS AUTOTOP,10-May-2018,20.00
D1300G-CORPORATE RESOURCES,Catering Food & Drink,SAINSBURYS MAIN ST,10-May-2018,89.00
D1300G-CORPORATE RESOURCES,Travel/Subsistence,OYSTER AUTOTOPUP,10-May-2018,20.00
D1300G-CORPORATE RESOURCES,Travel/Subsistence,OYSTER AUTOTOPUP,10-May-2018,40.00
D1300G-CORPORATE RESOURCES,Travel/Subsistence,OYSTER BUS AUTOTOP,10-May-2018,40.00
D1300G-CORPORATE RESOURCES,Travel/Subsistence,OYSTER BUS AUTOTOP,11-May-2018,20.00
D1300G-CORPORATE RESOURCES,Travel/Subsistence,OYSTER BUS AUTOTOP,11-May-2018,20.00
D1300G-CORPORATE RESOURCES,Facilities-Storage,BIG YELLOW BOX & LOCK,11-May-2018,89.60
D1300G-CORPORATE RESOURCES,Travel/Subsistence,DIAL-A-FLIGHT,11-May-2018,779.15
D1300G-CORPORATE RESOURCES,Healthcare-Counselling,WWW.CHILDMENTALHEALTHC,11-May-2018,165.00
D1300G-CORPORATE RESOURCES,Domestic Goods-Other,WWW.ARGOS.CO.UK,11-May-2018,216.89
D1300G-CORPORATE RESOURCES,Travel/Subsistence,OYSTER BUS AUTOTOP,11-May-2018,80.00
D1300G-CORPORATE RESOURCES,Facilities-Storage,ACTIVE MOVES LTD,11-May-2018,144.00
D1300G-CORPORATE RESOURCES,Catering Food & Drink,LIDL UK LONDON,11-May-2018,27.93
D1300G-CORPORATE RESOURCES,Catering Food & Drink,TESCO STORE 2143,11-May-2018,30.00
D1300G-CORPORATE RESOURCES,Taxi Fares,ABEX61458 LONDON NET C,11-May-2018,48.80
D1300G-CORPORATE RESOURCES,Travel/Subsistence,OYSTER RENEW WEB,11-May-2018,60.00
D1300G-CORPORATE RESOURCES,Facilities-Market Research,Amazon Prime,11-May-2018,7.99
D1300G-CORPORATE RESOURCES,Mail Services-Postage,POST OFFICE SELF SERVI,11-May-2018,5.04
D1300G-CORPORATE RESOURCES,Catering Food & Drink,TESCO STORES-2143,11-May-2018,3.00
D1300G-CORPORATE RESOURCES,Travel/Subsistence,OYSTER RENEW WEB,11-May-2018,90.00
D1300G-CORPORATE RESOURCES,Travel/Subsistence,OYSTER AUTOTOPUP,11-May-2018,20.00
D1300G-CORPORATE RESOURCES,Travel/Subsistence,OYSTER AUTOTOPUP,11-May-2018,40.00
D1300G-CORPORATE RESOURCES,Accommodation,PREMIER INN 44533710,11-May-2018,179.98
D1300G-CORPORATE RESOURCES,Travel/Subsistence,TRAINLINE,11-May-2018,42.70
D1300G-CORPORATE RESOURCES,Travel/Subsistence,OYSTER RENEW WEB,11-May-2018,20.00
D1300G-CORPORATE RESOURCES,Travel/Subsistence,OYSTER AUTOTOPUP,12-May-2018,40.00
D1300G-CORPORATE RESOURCES,Catering Food & Drink,SAN MARINO,12-May-2018,200.00
D1300G-CORPORATE RESOURCES,Travel/Subsistence,OYSTER BUS AUTOTOP,12-May-2018,40.00
D1300G-CORPORATE RESOURCES,Facilities-Market Research,WWW.WHEELFREEDOM.COM,12-May-2018,72.00
D1300G-CORPORATE RESOURCES,Travel/Subsistence,OYSTER AUTOTOPUP,12-May-2018,20.00
D1300G-CORPORATE RESOURCES,Catering Food & Drink,TESCO STORES-2143,12-May-2018,10.48
D1300G-CORPORATE RESOURCES,Travel/Subsistence,OYSTER BUS AUTOTOP,12-May-2018,40.00
D1300G-CORPORATE RESOURCES,Travel/Subsistence,OYSTER BUS AUTOTOP,12-May-2018,40.00
D1300G-CORPORATE RESOURCES,Travel/Subsistence,OYSTER AUTOTOPUP,13-May-2018,20.00
D1300G-CORPORATE RESOURCES,Travel/Subsistence,OYSTER BUS AUTOTOP,13-May-2018,20.00
D1300G-CORPORATE RESOURCES,Travel/Subsistence,OYSTER BUS AUTOTOP,13-May-2018,20.00
D1300G-CORPORATE RESOURCES,Facilities-Advertising,EXPRESS NEWS,14-May-2018,30.00
D1300G-CORPORATE RESOURCES,Travel/Subsistence,TRAINLINE,14-May-2018,63.00
D1300G-CORPORATE RESOURCES,Education-Musical Instruments,Amazon UK Marketplace,14-May-2018,188.14
D1300G-CORPORATE RESOURCES,Taxi Fares,GREYHOUND CARS LTD,14-May-2018,7.50
D1300G-CORPORATE RESOURCES,Catering Food & Drink,TESCO STORES 5999,14-May-2018,68.04
D1300G-CORPORATE RESOURCES,Education-Library Books,Amazon UK Marketplace,14-May-2018,33.25
D1300G-CORPORATE RESOURCES,Education-Other,WWW.BPP PROF DEVLM,14-May-2018,417.60
D1300G-CORPORATE RESOURCES,Taxi Fares,WWW.MINICABS.CO.UK,14-May-2018,50.00
D1300G-CORPORATE RESOURCES,Facilities-Advertising,JUNCTION NEWS,14-May-2018,30.00
D1300G-CORPORATE RESOURCES,Catering Food & Drink,TESCO STORES-2143,14-May-2018,12.00
D1300G-CORPORATE RESOURCES,Travel/Subsistence,NCP PARKPASS ONLINE,14-May-2018,-39.60
D1300G-CORPORATE RESOURCES,Catering Food & Drink,HIDEAWAY,14-May-2018,840.00
D1300G-CORPORATE RESOURCES,Taxi Fares,CR0 TO SW11,14-May-2018,53.00
D1300G-CORPORATE RESOURCES,Building-Floors,FLOOR FASHION LTD,14-May-2018,280.00
D1300G-CORPORATE RESOURCES,Catering Food & Drink,MARKS&SPENCER PLC SACA,15-May-2018,17.45
D1300G-CORPORATE RESOURCES,Healthcare-Drugs,"BOOTS,0808",15-May-2018,4.18
D1300G-CORPORATE RESOURCES,Travel/Subsistence,OYSTER RENEW WEB,15-May-2018,-49.00
D1300G-CORPORATE RESOURCES,Education-Library Books,Amazon UK Marketplace,15-May-2018,13.82
D1300G-CORPORATE RESOURCES,Education-Library Books,Amazon UK Marketplace,15-May-2018,13.58
D1300G-CORPORATE RESOURCES,Taxi Fares,SW2 TO CR0 RETURN,15-May-2018,84.00
D1300G-CORPORATE RESOURCES,Taxi Fares,SE19 TO WC1V,15-May-2018,47.00
D1300G-CORPORATE RESOURCES,Taxi Fares,GREYHOUND CARS LTD,15-May-2018,36.70
D1300G-CORPORATE RESOURCES,Taxi Fares,SE24 TO WC1V,15-May-2018,47.00
D1300G-CORPORATE RESOURCES,Domestic Goods-Other,WWW.ARGOS.CO.UK,15-May-2018,1077.84
D1300G-CORPORATE RESOURCES,Stationery,Amazon UK Marketplace,15-May-2018,42.47
D1300G-CORPORATE RESOURCES,Education-Library Books,Amazon UK Marketplace,15-May-2018,54.92
D1300G-CORPORATE RESOURCES,Education-Library Books,Amazon UK Marketplace,15-May-2018,9.81
D1300G-CORPORATE RESOURCES,Travel/Subsistence,LUL TICKET MACHINE,15-May-2018,60.00
D1300G-CORPORATE RESOURCES,Travel/Subsistence,LUL TICKET MACHINE,15-May-2018,100.00
D1300G-CORPORATE RESOURCES,Facilities-Advertising,WH SMITH,15-May-2018,27.94
D1300G-CORPORATE RESOURCES,Travel/Subsistence,OYSTER RENEW WEB,15-May-2018,90.00
D1300G-CORPORATE RESOURCES,Facilities-Storage,BIG YELLOW S S NINE EL,15-May-2018,146.40
D1300G-CORPORATE RESOURCES,Mail Services-Postage,THE POST OFFICE,15-May-2018,6.50
D1300G-CORPORATE RESOURCES,Travel/Subsistence,OYSTER BUS AUTOTOP,15-May-2018,20.00
D1300G-CORPORATE RESOURCES,Travel/Subsistence,OYSTER RENEW WEB,16-May-2018,49.00
D1300G-CORPORATE RESOURCES,Banquet & Catering,SQ *VIKING GROUP LTD,16-May-2018,150.00
D1300G-CORPORATE RESOURCES,Domestic Goods-Other,AO RETAIL LIMITED,16-May-2018,0.00
D1300G-CORPORATE RESOURCES,Travel/Subsistence,TRAINLINE,16-May-2018,35.65
D1300G-CORPORATE RESOURCES,Travel/Subsistence,OYSTER RENEW WEB,16-May-2018,20.00
D1300G-CORPORATE RESOURCES,Catering Food & Drink,MARKS&SPENCER PLC SACA,16-May-2018,12.05
D1300G-CORPORATE RESOURCES,Consultancy-Business,WWW.LOCAL.GOV.UK,16-May-2018,256.80
D1300G-CORPORATE RESOURCES,Travel/Subsistence,OYSTER AUTOTOPUP,16-May-2018,20.00
D1300G-CORPORATE RESOURCES,Books/Publications/Resources,CREDIT ADJUSTMENT,16-May-2018,-249.00
D1300G-CORPORATE RESOURCES,Catering Food & Drink,TESCO STORES 5999,16-May-2018,97.06
D1300G-CORPORATE RESOURCES,Mail Services-Postage,THE POST OFFICE,16-May-2018,6.50
D1300G-CORPORATE RESOURCES,Travel/Subsistence,OYSTER AUTOTOPUP,16-May-2018,40.00
D1300G-CORPORATE RESOURCES,Catering Food & Drink,SAINSBURY'S SMKT,16-May-2018,40.00
D1300G-CORPORATE RESOURCES,Travel/Subsistence,TRAINLINE,16-May-2018,137.75
D1300G-CORPORATE RESOURCES,Travel/Subsistence,OYSTER AUTOTOPUP,16-May-2018,40.00
D1300G-CORPORATE RESOURCES,Haulage,WANNA LTD,16-May-2018,44.95
D1300G-CORPORATE RESOURCES,Travel/Subsistence,GWR WEBSALES,16-May-2018,133.60
D1300G-CORPORATE RESOURCES,Travel/Subsistence,OYSTER BUS AUTOTOP,16-May-2018,60.00
D1300G-CORPORATE RESOURCES,Travel/Subsistence,OYSTER BUS AUTOTOP,16-May-2018,40.00
D1300G-CORPORATE RESOURCES,Domestic Goods-Other,WWW.ARGOS.CO.UK,16-May-2018,1551.83
D1300G-CORPORATE RESOURCES,Financial Services,GRO HM PASSPORT OFFICE,16-May-2018,0.00
D1300G-CORPORATE RESOURCES,Travel/Subsistence,OYSTER AUTOTOPUP,16-May-2018,60.00
D1300G-CORPORATE RESOURCES,Travel/Subsistence,OYSTER BUS AUTOTOP,17-May-2018,20.00
D1300G-CORPORATE RESOURCES,Travel/Subsistence,OYSTER BUS AUTOTOP,17-May-2018,40.00
D1300G-CORPORATE RESOURCES,Travel/Subsistence,LUL TICKET MACHINE,17-May-2018,30.00
D1300G-CORPORATE RESOURCES,Accommodation,FLYBE       C11X32,17-May-2018,189.96
D1300G-CORPORATE RESOURCES,Stationery,IZ *DOCULAND LIMITED,17-May-2018,275.40
D1300G-CORPORATE RESOURCES,Travel/Subsistence,OYSTER BUS AUTOTOP,17-May-2018,20.00
D1300G-CORPORATE RESOURCES,Travel/Subsistence,OYSTER AUTOTOPUP,17-May-2018,20.00
D1300G-CORPORATE RESOURCES,Mail Services-Postage,POST OFFICE SELF SERVI,17-May-2018,28.34
D1300G-CORPORATE RESOURCES,Catering Food & Drink,WWW.SWINGERSLDN.CO.UK,17-May-2018,182.00
D1300G-CORPORATE RESOURCES,Travel/Subsistence,OYSTER AUTOTOPUP,17-May-2018,80.00
D1300G-CORPORATE RESOURCES,Catering Food & Drink,TESCO STORE 2143,17-May-2018,69.60
D1300G-CORPORATE RESOURCES,Travel/Subsistence,OYSTER BUS AUTOTOP,17-May-2018,20.00
D1300G-CORPORATE RESOURCES,Taxi Fares,SE27 TO SE15 PLUS WAIT,17-May-2018,214.00
D1300G-CORPORATE RESOURCES,Financial Services-Grants,CORAM ACADEMY LTD,17-May-2018,450.00
D1300G-CORPORATE RESOURCES,Furniture-Office Furniture,WWW.POSTURITE.CO.UK,17-May-2018,-56.40
D1300G-CORPORATE RESOURCES,Facilities-Printing,Amazon UK Retail,18-May-2018,44.48
D1300G-CORPORATE RESOURCES,Travel/Subsistence,OYSTER RENEW WEB,18-May-2018,90.00
D1300G-CORPORATE RESOURCES,Travel/Subsistence,OYSTER RENEW WEB,18-May-2018,20.00
D1300G-CORPORATE RESOURCES,Travel/Subsistence,OYSTER BUS AUTOTOP,18-May-2018,40.00
D1300G-CORPORATE RESOURCES,Travel/Subsistence,OYSTER RENEW WEB,18-May-2018,60.00
D1300G-CORPORATE RESOURCES,Financial Services,OFSTED INTERNET,18-May-2018,4797.00
D1300G-CORPORATE RESOURCES,Catering Food & Drink,TESCO STORE 2143,18-May-2018,152.90
D1300G-CORPORATE RESOURCES,Catering Food & Drink,TESCO STORES 5999,18-May-2018,318.34
D1300G-CORPORATE RESOURCES,Travel/Subsistence,OYSTER AUTOTOPUP,18-May-2018,20.00
D1300G-CORPORATE RESOURCES,Travel/Subsistence,OYSTER BUS AUTOTOP,18-May-2018,40.00
D1300G-CORPORATE RESOURCES,Taxi Fares,WWW.MINICABS.CO.UK,18-May-2018,51.25
D1300G-CORPORATE RESOURCES,Financial Services,RB KEN&CHELSEA,18-May-2018,25.00
D1300G-CORPORATE RESOURCES,Travel/Subsistence,OYSTER BUS AUTOTOP,18-May-2018,20.00
D1300G-CORPORATE RESOURCES,Taxi Fares,8DEX61CFA YELO TAXIS,18-May-2018,67.00
D1300G-CORPORATE RESOURCES,Facilities-Market Research,Prime Fresh Membership,18-May-2018,3.99
D1300G-CORPORATE RESOURCES,Financial Services,LAND REGISTRY,18-May-2018,3.00
D1300G-CORPORATE RESOURCES,Catering Food & Drink,TESCO STORES-2143,18-May-2018,21.75
D1300G-CORPORATE RESOURCES,Travel/Subsistence,OYSTER AUTOTOPUP,18-May-2018,20.00
D1300G-CORPORATE RESOURCES,Catering Food & Drink,KFC,18-May-2018,63.36
D1300G-CORPORATE RESOURCES,Travel/Subsistence,OYSTER AUTOTOPUP,18-May-2018,20.00
D1300G-CORPORATE RESOURCES,Travel/Subsistence,OYSTER AUTOTOPUP,19-May-2018,40.00
D1300G-CORPORATE RESOURCES,Travel/Subsistence,OYSTER BUS AUTOTOP,19-May-2018,60.00
D1300G-CORPORATE RESOURCES,Travel/Subsistence,OYSTER BUS AUTOTOP,19-May-2018,20.00
D1300G-CORPORATE RESOURCES,Travel/Subsistence,OYSTER AUTOTOPUP,19-May-2018,40.00
D1300G-CORPORATE RESOURCES,Travel/Subsistence,OYSTER BUS AUTOTOP,19-May-2018,20.00
D1300G-CORPORATE RESOURCES,Travel/Subsistence,OYSTER AUTOTOPUP,19-May-2018,20.00
D1300G-CORPORATE RESOURCES,Travel/Subsistence,OYSTER BUS AUTOTOP,20-May-2018,60.00
D1300G-CORPORATE RESOURCES,Travel/Subsistence,OYSTER AUTOTOPUP,20-May-2018,20.00
D1300G-CORPORATE RESOURCES,Travel/Subsistence,OYSTER AUTOTOPUP,20-May-2018,40.00
D1300G-CORPORATE RESOURCES,IT Software,ADOBE  CREATIVE CLOUD,20-May-2018,141.60
D1300G-CORPORATE RESOURCES,Travel/Subsistence,OYSTER AUTOTOPUP,20-May-2018,40.00
D1300G-CORPORATE RESOURCES,Travel/Subsistence,OYSTER BUS AUTOTOP,20-May-2018,20.00
D1300G-CORPORATE RESOURCES,Catering Food & Drink,TESCO STORES 5999,21-May-2018,68.04
D1300G-CORPORATE RESOURCES,Travel/Subsistence,OYSTER BUS AUTOTOP,21-May-2018,40.00
D1300G-CORPORATE RESOURCES,Mail Services-Postage,POST OFFICE SELF SERVI,21-May-2018,8.49
D1300G-CORPORATE RESOURCES,Taxi Fares,SE1 TO SW16,21-May-2018,32.50
D1300G-CORPORATE RESOURCES,Taxi Fares,PP*TONYBALDWIN,21-May-2018,24.70
D1300G-CORPORATE RESOURCES,Travel/Subsistence,TRAINLINE,21-May-2018,277.50
D1300G-CORPORATE RESOURCES,Financial Services,HM PASSPORT OFFICE,21-May-2018,85.00
D1300G-CORPORATE RESOURCES,Catering Food & Drink,TESCO STORE 2143,21-May-2018,13.41
D1300G-CORPORATE RESOURCES,Taxi Fares,SW16 TO SE1,21-May-2018,41.50
D1300G-CORPORATE RESOURCES,Cleaning-Laundry Service,REGAL DRY CLEANERS,22-May-2018,15.00
D1300G-CORPORATE RESOURCES,Taxi Fares,GREYHOUND CARS LTD,22-May-2018,67.20
D1300G-CORPORATE RESOURCES,Travel/Subsistence,OYSTER RENEW WEB,22-May-2018,60.00
D1300G-CORPORATE RESOURCES,Telecommunications,E N S LTD,22-May-2018,660.79
D1300G-CORPORATE RESOURCES,Horticultural-Other,WWW.PRESTIGEFLOWERS.CO.U,22-May-2018,31.29
D1300G-CORPORATE RESOURCES,Catering Food & Drink,MARKS&SPENCER PLC SACA,22-May-2018,15.55
D1300G-CORPORATE RESOURCES,Telecommunications,E N S LTD,22-May-2018,661.34
D1300G-CORPORATE RESOURCES,Travel/Subsistence,OYSTER AUTOTOPUP,22-May-2018,20.00
D1300G-CORPORATE RESOURCES,Accommodation,PREMIER INN 44536030,22-May-2018,248.00
D1300G-CORPORATE RESOURCES,Accommodation,BRITISH A,22-May-2018,499.01
D1300G-CORPORATE RESOURCES,Travel/Subsistence,OYSTER RENEW WEB,23-May-2018,60.00
D1300G-CORPORATE RESOURCES,Travel/Subsistence,OYSTER BUS AUTOTOP,23-May-2018,80.00
D1300G-CORPORATE RESOURCES,Travel/Subsistence,OYSTER AUTOTOPUP,23-May-2018,40.00
D1300G-CORPORATE RESOURCES,Travel/Subsistence,OYSTER BUS AUTOTOP,23-May-2018,80.00
D1300G-CORPORATE RESOURCES,Building-Floors,ELEPHANT DISCOUNT FLOO,23-May-2018,700.00
D1300G-CORPORATE RESOURCES,Taxi Fares,GREYHOUND CARS LTD,23-May-2018,-67.20
D1300G-CORPORATE RESOURCES,Catering Food & Drink,TESCO STORE 2143,23-May-2018,20.30
D1300G-CORPORATE RESOURCES,Financial Services,UKBA9107611766,23-May-2018,3199.00
D1300G-CORPORATE RESOURCES,Catering Food & Drink,TESCO STORES 5999,23-May-2018,66.54
D1300G-CORPORATE RESOURCES,Taxi Fares,APL*/CallCars,23-May-2018,26.00
D1300G-CORPORATE RESOURCES,Travel/Subsistence,OYSTER ISSUE WEB,23-May-2018,35.00
D1300G-CORPORATE RESOURCES,Travel/Subsistence,OYSTER RENEW WEB,23-May-2018,79.00
D1300G-CORPORATE RESOURCES,Telecommunications,E N S LTD,23-May-2018,661.20
D1300G-CORPORATE RESOURCES,Travel/Subsistence,OYSTER AUTOTOPUP,23-May-2018,60.00
D1300G-CORPORATE RESOURCES,Domestic Goods-Other,WWW.ARGOS.CO.UK,23-May-2018,50.94
D1300G-CORPORATE RESOURCES,Travel/Subsistence,OYSTER AUTOTOPUP,23-May-2018,40.00
D1300G-CORPORATE RESOURCES,Taxi Fares,GREYHOUND CARS LTD,23-May-2018,67.20
D1300G-CORPORATE RESOURCES,Travel/Subsistence,OYSTER RENEW WEB,23-May-2018,60.00
D1300G-CORPORATE RESOURCES,Catering Food & Drink,TESCO STORE 2143,23-May-2018,127.00
D1300G-CORPORATE RESOURCES,Financial Services,LONDON BRGH OF LAMBETH,23-May-2018,60.00
D1300G-CORPORATE RESOURCES,Financial Services,GRO HM PASSPORT OFFICE,23-May-2018,18.50
D1300G-CORPORATE RESOURCES,Furniture-Domestic Furniture,WWW.IKEA.COM,23-May-2018,204.00
D1300G-CORPORATE RESOURCES,Travel/Subsistence,OYSTER BUS AUTOTOP,23-May-2018,40.00
D1300G-CORPORATE RESOURCES,Travel/Subsistence,TFL ROAD CHARGE,24-May-2018,11.50
D1300G-CORPORATE RESOURCES,Catering Food & Drink,MARKS&SPENCER PLC SACA,24-May-2018,18.65
D1300G-CORPORATE RESOURCES,Travel/Subsistence,OYSTER AUTOTOPUP,24-May-2018,80.00
D1300G-CORPORATE RESOURCES,Travel/Subsistence,OYSTER BUS AUTOTOP,24-May-2018,40.00
D1300G-CORPORATE RESOURCES,Facilities-Market Research,WAYFAIR.CO.UK,24-May-2018,390.98
D1300G-CORPORATE RESOURCES,Catering Food & Drink,TESCO STORE 2143,24-May-2018,30.00
D1300G-CORPORATE RESOURCES,Taxi Fares,WWW.MINICABS.CO.UK,24-May-2018,101.25
D1300G-CORPORATE RESOURCES,Travel/Subsistence,OYSTER RENEW WEB,24-May-2018,60.00
D1300G-CORPORATE RESOURCES,Financial Services,PAYPAL,24-May-2018,25.00
D1300G-CORPORATE RESOURCES,Mail Services-Postage,THE POST OFFICE,24-May-2018,23.04
D1300G-CORPORATE RESOURCES,Financial Services,UKBA9108360381,24-May-2018,3199.00
D1300G-CORPORATE RESOURCES,IT Services,123 REG R/T,24-May-2018,23.99
D1300G-CORPORATE RESOURCES,Travel/Subsistence,OYSTER AUTOTOPUP,24-May-2018,20.00
D1300G-CORPORATE RESOURCES,Mail Services-Postage,POST OFFICE COUNTER,24-May-2018,6.50
D1300G-CORPORATE RESOURCES,Travel/Subsistence,OYSTER RENEW WEB,24-May-2018,30.00
D1300G-CORPORATE RESOURCES,Accommodation,TRAVELODGE GB0000,24-May-2018,52.50
D1300G-CORPORATE RESOURCES,Arts & Leisure Services,AMFBOWLING.CO.UK,24-May-2018,63.70
D1300G-CORPORATE RESOURCES,Arts & Leisure Services,WWW.TICKETS.RMG.CO.UK,24-May-2018,36.90
D1300G-CORPORATE RESOURCES,Travel/Subsistence,OYSTER AUTOTOPUP,24-May-2018,40.00
D1300G-CORPORATE RESOURCES,Travel/Subsistence,OYSTER BUS AUTOTOP,24-May-2018,20.00
D1300G-CORPORATE RESOURCES,Travel/Subsistence,TRAINLINE,24-May-2018,103.55
D1300G-CORPORATE RESOURCES,Facilities-Market Research,Amazon Prime,24-May-2018,7.99
D1300G-CORPORATE RESOURCES,Accommodation,LONDON FOOTBALL,24-May-2018,185.00
D1300G-CORPORATE RESOURCES,Travel/Subsistence,OYSTER AUTOTOPUP,24-May-2018,20.00
D1300G-CORPORATE RESOURCES,Travel/Subsistence,OYSTER RENEW WEB,24-May-2018,20.00
D1300G-CORPORATE RESOURCES,Taxi Fares,BRUNO SCOOL RUN,24-May-2018,175.00
D1300G-CORPORATE RESOURCES,Financial Services,UKBA9108360381,24-May-2018,-3000.00
D1300G-CORPORATE RESOURCES,Travel/Subsistence,OYSTER RENEW WEB,25-May-2018,-30.00
D1300G-CORPORATE RESOURCES,IT Software,APPLIANCEDIRECT CO,25-May-2018,276.66
D1300G-CORPORATE RESOURCES,Domestic Goods-Other,CURRYS ONLINE,25-May-2018,368.98
D1300G-CORPORATE RESOURCES,Travel/Subsistence,OYSTER AUTOTOPUP,25-May-2018,20.00
D1300G-CORPORATE RESOURCES,Travel/Subsistence,OYSTER BUS AUTOTOP,25-May-2018,40.00
D1300G-CORPORATE RESOURCES,Travel/Subsistence,OYSTER BUS AUTOTOP,25-May-2018,20.00
D1300G-CORPORATE RESOURCES,Travel/Subsistence,OYSTER AUTOTOPUP,25-May-2018,20.00
D1300G-CORPORATE RESOURCES,Catering Food & Drink,TESCO STORES-2143,25-May-2018,10.21
D1300G-CORPORATE RESOURCES,Travel/Subsistence,OYSTER BUS AUTOTOP,25-May-2018,20.00
D1300G-CORPORATE RESOURCES,Travel/Subsistence,OYSTER BUS AUTOTOP,25-May-2018,20.00
D1300G-CORPORATE RESOURCES,Travel/Subsistence,TRAINLINE,25-May-2018,38.60
D1300G-CORPORATE RESOURCES,Accommodation,Hotel on Booking.com,25-May-2018,229.00
D1300G-CORPORATE RESOURCES,Domestic Goods-Other,CURTAIN CONCESSIONS,25-May-2018,57.65
D1300G-CORPORATE RESOURCES,Travel/Subsistence,OYSTER RENEW WEB,25-May-2018,-30.00
D1300G-CORPORATE RESOURCES,Travel/Subsistence,OYSTER AUTOTOPUP,25-May-2018,20.00
D1300G-CORPORATE RESOURCES,Travel/Subsistence,TRAINLINE,25-May-2018,89.25
D1300G-CORPORATE RESOURCES,Financial Services-Grants,WWW.CORAM.ORG.UK,25-May-2018,118.80
D1300G-CORPORATE RESOURCES,Travel/Subsistence,OYSTER AUTOTOPUP,26-May-2018,40.00
D1300G-CORPORATE RESOURCES,Travel/Subsistence,OYSTER BUS AUTOTOP,26-May-2018,20.00
D1300G-CORPORATE RESOURCES,Travel/Subsistence,OYSTER BUS AUTOTOP,26-May-2018,100.00
D1300G-CORPORATE RESOURCES,Travel/Subsistence,OYSTER BUS AUTOTOP,26-May-2018,20.00
D1300G-CORPORATE RESOURCES,Travel/Subsistence,OYSTER BUS AUTOTOP,26-May-2018,20.00
D1300G-CORPORATE RESOURCES,Travel/Subsistence,OYSTER AUTOTOPUP,26-May-2018,60.00
D1300G-CORPORATE RESOURCES,Facilities-Market Research,WWW.WHEELFREEDOM.COM,26-May-2018,72.00
D1300G-CORPORATE RESOURCES,Travel/Subsistence,OYSTER AUTOTOPUP,27-May-2018,20.00
D1300G-CORPORATE RESOURCES,Travel/Subsistence,OYSTER BUS AUTOTOP,27-May-2018,20.00
D1300G-CORPORATE RESOURCES,Travel/Subsistence,OYSTER AUTOTOPUP,27-May-2018,20.00
D1300G-CORPORATE RESOURCES,Travel/Subsistence,OYSTER BUS AUTOTOP,27-May-2018,40.00
D1300G-CORPORATE RESOURCES,Mail Services-Postage,POST OFFICE COUNTER,29-May-2018,17.17
D1300G-CORPORATE RESOURCES,Domestic Goods-Other,WWW.ARGOS.CO.UK,29-May-2018,-1129.94
D1300G-CORPORATE RESOURCES,Travel/Subsistence,NEW SOUTHERN RAILW,29-May-2018,50.00
D1300G-CORPORATE RESOURCES,Travel/Subsistence,OYSTER RENEW WEB,29-May-2018,30.00
D1300G-CORPORATE RESOURCES,Catering Food & Drink,TESCO STORES 5999,29-May-2018,105.10
D1300G-CORPORATE RESOURCES,Travel/Subsistence,OYSTER RENEW WEB,30-May-2018,120.00
D1300G-CORPORATE RESOURCES,Travel/Subsistence,EXPEDIA 7355770784866,30-May-2018,198.00
D1300G-CORPORATE RESOURCES,Facilities-Printing,Amazon UK Retail,30-May-2018,70.00
D1300G-CORPORATE RESOURCES,Arts & Leisure Services,WWW.TICKETS.RMG.CO.UK,30-May-2018,12.15
D1300G-CORPORATE RESOURCES,Travel/Subsistence,OYSTER RENEW WEB,30-May-2018,30.00
D1300G-CORPORATE RESOURCES,Travel/Subsistence,OYSTER RENEW WEB,30-May-2018,-30.00
D1300G-CORPORATE RESOURCES,Travel/Subsistence,TRAINLINE,30-May-2018,-11.00
D1300G-CORPORATE RESOURCES,Travel/Subsistence,OYSTER AUTOSETTLE,30-May-2018,20.00
D1300G-CORPORATE RESOURCES,Travel/Subsistence,OYSTER RENEW WEB,30-May-2018,35.00
D1300G-CORPORATE RESOURCES,Travel/Subsistence,OYSTER BUS AUTOSET,30-May-2018,20.00
D1300G-CORPORATE RESOURCES,Travel/Subsistence,OYSTER RENEW WEB,30-May-2018,30.00
D1300G-CORPORATE RESOURCES,Travel/Subsistence,-KIWI.COM-,30-May-2018,187.14
D1300G-CORPORATE RESOURCES,Travel/Subsistence,EXPEDIA 7355796880004,30-May-2018,75.00
D1300G-CORPORATE RESOURCES,Accommodation,BRITANNIA,30-May-2018,42.00
D1300G-CORPORATE RESOURCES,Taxi Fares,SW2 TO SE26,31-May-2018,28.00
D1300G-CORPORATE RESOURCES,Catering Food & Drink,SAN MARINO,31-May-2018,95.00
D1300G-CORPORATE RESOURCES,Taxi Fares,WWW.MINICABS.CO.UK,31-May-2018,252.50
D1300G-CORPORATE RESOURCES,Financial Services,DVLA DRIVER ONLINE,31-May-2018,34.00
D1300G-CORPORATE RESOURCES,Taxi Fares,BRUNTO 2125,31-May-2018,175.00
D1300G-CORPORATE RESOURCES,Education-Library Books,AMAZON SVCS EU-UK AMAZON.,31-May-2018,178.74
D1300G-CORPORATE RESOURCES,Travel/Subsistence,OYSTER BUS AUTOTOP,31-May-2018,40.00
D1300G-CORPORATE RESOURCES,Travel/Subsistence,OYSTER BUS AUTOTOP,31-May-2018,20.00
D1300G-CORPORATE RESOURCES,Travel/Subsistence,OYSTER RENEW WEB,31-May-2018,-20.00
D1300G-CORPORATE RESOURCES,Travel/Subsistence,OYSTER BUS AUTOTOP,31-May-2018,20.00
D1300G-CORPORATE RESOURCES,Travel/Subsistence,OYSTER RENEW WEB,31-May-2018,60.00
D1300G-CORPORATE RESOURCES,Travel/Subsistence,OYSTER BUS AUTOTOP,31-May-2018,20.00
D1300G-CORPORATE RESOURCES,Travel/Subsistence,OYSTER RENEW WEB,31-May-2018,0.00
D1300G-CORPORATE RESOURCES,Travel/Subsistence,OYSTER AUTOTOPUP,31-May-2018,20.00
D1300G-CORPORATE RESOURCES,Legal Services-Other,HMCOURTS-SERVICE.G,31-May-2018,14136.00
D1300G-CORPORATE RESOURCES,Travel/Subsistence,OYSTER AUTOTOPUP,31-May-2018,40.00
D1300G-CORPORATE RESOURCES,Travel/Subsistence,OYSTER RENEW WEB,31-May-2018,40.00
D1300G-CORPORATE RESOURCES,Financial Services,UKBA9112741535,01-Jun-2018,3199.00
D1300G-CORPORATE RESOURCES,Travel/Subsistence,OYSTER ISSUE WEB,01-Jun-2018,50.00
D1300G-CORPORATE RESOURCES,Financial Services,THE HOME OFFICE,01-Jun-2018,229.00
D1300G-CORPORATE RESOURCES,Travel/Subsistence,OYSTER RENEW WEB,01-Jun-2018,64.00
D1300G-CORPORATE RESOURCES,Travel/Subsistence,OYSTER AUTOTOPUP,01-Jun-2018,20.00
D1300G-CORPORATE RESOURCES,Travel/Subsistence,OYSTER AUTOTOPUP,01-Jun-2018,20.00
D1300G-CORPORATE RESOURCES,Travel/Subsistence,OYSTER BUS AUTOTOP,01-Jun-2018,20.00
D1300G-CORPORATE RESOURCES,Travel/Subsistence,OYSTER BUS AUTOTOP,01-Jun-2018,20.00
D1300G-CORPORATE RESOURCES,Travel/Subsistence,OYSTER RENEW WEB,01-Jun-2018,30.00
D1300G-CORPORATE RESOURCES,Travel/Subsistence,OYSTER AUTOTOPUP,01-Jun-2018,20.00
D1300G-CORPORATE RESOURCES,Travel/Subsistence,OYSTER BUS AUTOTOP,01-Jun-2018,40.00
D1300G-CORPORATE RESOURCES,IT Services,NATIONBUILDER,01-Jun-2018,170.12
D1300G-CORPORATE RESOURCES,Facilities-Design & Photography,Amazon UK Marketplace,02-Jun-2018,49.36
D1300G-CORPORATE RESOURCES,Travel/Subsistence,OYSTER AUTOTOPUP,02-Jun-2018,20.00
D1300G-CORPORATE RESOURCES,Travel/Subsistence,OYSTER AUTOTOPUP,02-Jun-2018,40.00
D1300G-CORPORATE RESOURCES,Travel/Subsistence,OYSTER BUS AUTOTOP,02-Jun-2018,20.00
D1300G-CORPORATE RESOURCES,Travel/Subsistence,OYSTER BUS AUTOTOP,02-Jun-2018,60.00
D1300G-CORPORATE RESOURCES,Travel/Subsistence,OYSTER BUS AUTOTOP,02-Jun-2018,20.00
D1300G-CORPORATE RESOURCES,Travel/Subsistence,OYSTER AUTOTOPUP,02-Jun-2018,40.00
D1300G-CORPORATE RESOURCES,Travel/Subsistence,OYSTER BUS AUTOTOP,02-Jun-2018,20.00
D1300G-CORPORATE RESOURCES,Travel/Subsistence,OYSTER BUS AUTOTOP,03-Jun-2018,20.00
D1300G-CORPORATE RESOURCES,Travel/Subsistence,OYSTER BUS AUTOTOP,03-Jun-2018,20.00
D1300G-CORPORATE RESOURCES,Travel/Subsistence,OYSTER BUS AUTOTOP,03-Jun-2018,60.00
D1300G-CORPORATE RESOURCES,Travel/Subsistence,OYSTER AUTOTOPUP,03-Jun-2018,20.00
D1300G-CORPORATE RESOURCES,IT Services,NATIONBUILDER,03-Jun-2018,69.14
D1300G-CORPORATE RESOURCES,Travel/Subsistence,OYSTER AUTOTOPUP,03-Jun-2018,20.00
D1300G-CORPORATE RESOURCES,Travel/Subsistence,OYSTER AUTOTOPUP,03-Jun-2018,20.00
D1300G-CORPORATE RESOURCES,Travel/Subsistence,OYSTER AUTOTOPUP,03-Jun-2018,20.00
D1300G-CORPORATE RESOURCES,IT Software-Customised,AMAZON MKTPLACE PMTS,03-Jun-2018,138.75
D1300G-CORPORATE RESOURCES,Accommodation,BRITISH A,04-Jun-2018,430.33
D1300G-CORPORATE RESOURCES,Accommodation,WWW.LYNNHURST.CO.UK,04-Jun-2018,95.00
D1300G-CORPORATE RESOURCES,Travel/Subsistence,OYSTER RENEW WEB,04-Jun-2018,30.00
D1300G-CORPORATE RESOURCES,Catering Food & Drink,TESCO STORES 5999,04-Jun-2018,94.20
D1300G-CORPORATE RESOURCES,Travel/Subsistence,OYSTER BUS AUTOTOP,04-Jun-2018,20.00
D1300G-CORPORATE RESOURCES,Travel/Subsistence,TRAINLINE,04-Jun-2018,128.50
D1300G-CORPORATE RESOURCES,IT Software-Customised,PANTHEON SYSTEMS INC,04-Jun-2018,19.36
D1300G-CORPORATE RESOURCES,Travel/Subsistence,OYSTER BUS AUTOTOP,04-Jun-2018,20.00
D1300G-CORPORATE RESOURCES,Travel/Subsistence,TRAINLINE,04-Jun-2018,26.05
D1300G-CORPORATE RESOURCES,IT Software,EXCEL TAXIS NETWORK,05-Jun-2018,56.00
D1300G-CORPORATE RESOURCES,Travel/Subsistence,OYSTER BUS AUTOTOP,05-Jun-2018,20.00
D1300G-CORPORATE RESOURCES,Travel/Subsistence,OYSTER BUS AUTOTOP,05-Jun-2018,20.00
D1300G-CORPORATE RESOURCES,Travel/Subsistence,OYSTER RENEW WEB,05-Jun-2018,55.00
D1300G-CORPORATE RESOURCES,Domestic Goods-Other,WWW.ARGOS.CO.UK,05-Jun-2018,612.75
D1300G-CORPORATE RESOURCES,Financial Services,THE HOME OFFICE,05-Jun-2018,75.00
D1300G-CORPORATE RESOURCES,Furniture-Domestic Furniture,WWW.IKEA.COM,05-Jun-2018,680.00
D1300G-CORPORATE RESOURCES,Domestic Goods-Other,WWW.ARGOS.CO.UK,05-Jun-2018,1026.90
D1300G-CORPORATE RESOURCES,Travel/Subsistence,OYSTER BUS AUTOTOP,05-Jun-2018,20.00
D1300G-CORPORATE RESOURCES,Taxi Fares,WWW.MINICABS.CO.UK,05-Jun-2018,51.25
D1300G-CORPORATE RESOURCES,Travel/Subsistence,OYSTER AUTOTOPUP,05-Jun-2018,20.00
D1300G-CORPORATE RESOURCES,Travel/Subsistence,TRAINLINE,05-Jun-2018,231.50
D1300G-CORPORATE RESOURCES,Legal Services-Other,MARSTON GROUP LTD,05-Jun-2018,102.50
D1300G-CORPORATE RESOURCES,Travel/Subsistence,TFL ROAD CHARGE,05-Jun-2018,11.50
D1300G-CORPORATE RESOURCES,IT Software,WWW.WEVIDEO.COM/CHARGE,05-Jun-2018,12.37
D1300G-CORPORATE RESOURCES,Furniture-Domestic Furniture,WWW.IKEA.COM,05-Jun-2018,162.00
D1300G-CORPORATE RESOURCES,Financial Services,HM PASSPORT OFFICE,05-Jun-2018,54.00
D1300G-CORPORATE RESOURCES,IT Services,123-REG.CO.UK,05-Jun-2018,575.21
D1300G-CORPORATE RESOURCES,Travel/Subsistence,TRAINLINE,05-Jun-2018,97.40
D1300G-CORPORATE RESOURCES,Facilities-Advertising,WH SMITH,05-Jun-2018,11.00
D1300G-CORPORATE RESOURCES,Travel/Subsistence,OYSTER RENEW WEB,05-Jun-2018,60.00
D1300G-CORPORATE RESOURCES,Financial Services,LONDON BOROUGH OF NEWH,05-Jun-2018,22.00
D1300G-CORPORATE RESOURCES,Financial Services,HM PASSPORT OFFICE,05-Jun-2018,58.50
D1300G-CORPORATE RESOURCES,Travel/Subsistence,TRAINLINE,05-Jun-2018,18.25
D1300G-CORPORATE RESOURCES,Taxi Fares,GREYHOUND CARS LTD,06-Jun-2018,16.10
D1300G-CORPORATE RESOURCES,Facilities-Advertising,EXPRESS NEWS,06-Jun-2018,30.00
D1300G-CORPORATE RESOURCES,Travel/Subsistence,OYSTER RENEW WEB,06-Jun-2018,0.00
D1300G-CORPORATE RESOURCES,Travel/Subsistence,OYSTER BUS AUTOTOP,06-Jun-2018,20.00
D1300G-CORPORATE RESOURCES,Travel/Subsistence,OYSTER AUTOTOPUP,06-Jun-2018,100.00
D1300G-CORPORATE RESOURCES,Education-Toys,OMESCAPE LONDON,06-Jun-2018,129.00
D1300G-CORPORATE RESOURCES,Education-Library Books,AMAZON SVCS EU-UK AMAZON.,06-Jun-2018,200.96
D1300G-CORPORATE RESOURCES,Travel/Subsistence,OYSTER RENEW WEB,06-Jun-2018,20.00
D1300G-CORPORATE RESOURCES,Domestic Goods-Other,WWW.ARGOS.CO.UK,06-Jun-2018,289.99
D1300G-CORPORATE RESOURCES,Travel/Subsistence,OYSTER BUS AUTOTOP,06-Jun-2018,20.00
D1300G-CORPORATE RESOURCES,Financial Services,GRO HM PASSPORT OFFICE,06-Jun-2018,46.80
D1300G-CORPORATE RESOURCES,Travel/Subsistence,OYSTER BUS AUTOTOP,06-Jun-2018,40.00
D1300G-CORPORATE RESOURCES,Travel/Subsistence,OYSTER AUTOTOPUP,06-Jun-2018,40.00
D1300G-CORPORATE RESOURCES,Travel/Subsistence,BRITISH A,06-Jun-2018,1053.60
D1300G-CORPORATE RESOURCES,Travel/Subsistence,OYSTER RENEW WEB,06-Jun-2018,60.00
D1300G-CORPORATE RESOURCES,Travel/Subsistence,OYSTER BUS AUTOTOP,06-Jun-2018,40.00
D1300G-CORPORATE RESOURCES,Accommodation,Hotel on Booking.com,06-Jun-2018,60.00
D1300G-CORPORATE RESOURCES,Couriers,PARCEL2GO_UK,06-Jun-2018,11.21
D1300G-CORPORATE RESOURCES,Cleaning-Laundry Service,REGAL DRY CLEANERS,06-Jun-2018,15.00
D1300G-CORPORATE RESOURCES,Travel/Subsistence,LUL TICKET MACHINE,06-Jun-2018,30.00
D1300G-CORPORATE RESOURCES,Travel/Subsistence,OYSTER BUS AUTOTOP,06-Jun-2018,20.00
D1300G-CORPORATE RESOURCES,Taxi Fares,CR7 TO SE12,06-Jun-2018,45.00
D1300G-CORPORATE RESOURCES,Taxi Fares,WWW.ADDISONLEE.COM,06-Jun-2018,12.20
D1300G-CORPORATE RESOURCES,Taxi Fares,WWW.ADDISONLEE.COM,06-Jun-2018,15.95
D1300G-CORPORATE RESOURCES,Education-Musical Instruments,WWW.GEAR4MUSIC.COM,06-Jun-2018,33.45
D1300G-CORPORATE RESOURCES,Travel/Subsistence,OYSTER AUTOTOPUP,07-Jun-2018,20.00
D1300G-CORPORATE RESOURCES,Financial Services,HM PASSPORT OFFICE,07-Jun-2018,80.50
D1300G-CORPORATE RESOURCES,Travel/Subsistence,LUL TICKET MACHINE,07-Jun-2018,50.00
D1300G-CORPORATE RESOURCES,Travel/Subsistence,OYSTER BUS AUTOTOP,07-Jun-2018,20.00
D1300G-CORPORATE RESOURCES,Travel/Subsistence,OYSTER BUS AUTOTOP,07-Jun-2018,20.00
D1300G-CORPORATE RESOURCES,Financial Services,HM PASSPORT OFFICE,07-Jun-2018,99.48
D1300G-CORPORATE RESOURCES,Travel/Subsistence,OYSTER BUS AUTOTOP,07-Jun-2018,20.00
D1300G-CORPORATE RESOURCES,Stationery,WH SMITH,07-Jun-2018,29.54
D1300G-CORPORATE RESOURCES,Consultancy-Business,SHARP BUSINESS SYSTEMS,07-Jun-2018,222.18
D1300G-CORPORATE RESOURCES,Travel/Subsistence,OYSTER AUTOTOPUP,07-Jun-2018,20.00
D1300G-CORPORATE RESOURCES,Education-Library Books,Amazon UK Marketplace,07-Jun-2018,110.80
D1300G-CORPORATE RESOURCES,Catering Food & Drink,ON THE GO,07-Jun-2018,255.50
D1300G-CORPORATE RESOURCES,Travel/Subsistence,OYSTER BUS AUTOTOP,07-Jun-2018,40.00
D1300G-CORPORATE RESOURCES,Catering Food & Drink,TESCO STORES 5999,07-Jun-2018,72.40
D1300G-CORPORATE RESOURCES,Travel/Subsistence,TRAINLINE,07-Jun-2018,53.80
D1300G-CORPORATE RESOURCES,Travel/Subsistence,OYSTER RENEW WEB,07-Jun-2018,-40.00
D1300G-CORPORATE RESOURCES,Financial Services,LAND REGISTRY,07-Jun-2018,6.00
D1300G-CORPORATE RESOURCES,Travel/Subsistence,OYSTER RENEW WEB,07-Jun-2018,0.00
D1300G-CORPORATE RESOURCES,Travel/Subsistence,OYSTER BUS AUTOTOP,07-Jun-2018,40.00
D1300G-CORPORATE RESOURCES,Travel/Subsistence,OYSTER AUTOTOPUP,07-Jun-2018,40.00
D1300G-CORPORATE RESOURCES,Legal Services-General Support,WWW.CORAM.ORG.UK,07-Jun-2018,18.95
D1300G-CORPORATE RESOURCES,Travel/Subsistence,OYSTER BUS AUTOTOP,08-Jun-2018,80.00
D1300G-CORPORATE RESOURCES,Catering Food & Drink,TESCO STORE 2143,08-Jun-2018,40.00
D1300G-CORPORATE RESOURCES,Catering Food & Drink,TESCO STORE 3300,08-Jun-2018,100.00
D1300G-CORPORATE RESOURCES,Domestic Goods-Other,AMZ*Trimming Shop,08-Jun-2018,-5.59
D1300G-CORPORATE RESOURCES,Travel/Subsistence,OYSTER RENEW WEB,08-Jun-2018,64.00
D1300G-CORPORATE RESOURCES,Travel/Subsistence,OYSTER BUS AUTOTOP,08-Jun-2018,20.00
D1300G-CORPORATE RESOURCES,Furniture-Domestic Furniture,PAYPAL,08-Jun-2018,398.00
D1300G-CORPORATE RESOURCES,Domestic Goods-Other,ARGOS RETAIL GROUP,08-Jun-2018,9.99
D1300G-CORPORATE RESOURCES,Consultancy-Business,WWW.LOCAL.GOV.UK,08-Jun-2018,654.00
D1300G-CORPORATE RESOURCES,Facilities-Advertising,BRIX CENTRAL STOP,08-Jun-2018,55.00
D1300G-CORPORATE RESOURCES,Domestic Goods-Other,ARGOS RETAIL GROUP,08-Jun-2018,41.92
D1300G-CORPORATE RESOURCES,Travel/Subsistence,TRAINLINE,08-Jun-2018,199.50
D1300G-CORPORATE RESOURCES,Travel/Subsistence,OYSTER BUS AUTOTOP,08-Jun-2018,40.00
D1300G-CORPORATE RESOURCES,Travel/Subsistence,OYSTER AUTOTOPUP,08-Jun-2018,80.00
D1300G-CORPORATE RESOURCES,Mail Services-Postage,POST OFFICE SELF SERVI,08-Jun-2018,6.93
D1300G-CORPORATE RESOURCES,Domestic Goods-Other,WWW.ARGOS.CO.UK,08-Jun-2018,58.93
D1300G-CORPORATE RESOURCES,Travel/Subsistence,TRAINLINE,08-Jun-2018,90.45
D1300G-CORPORATE RESOURCES,Travel/Subsistence,OYSTER AUTOTOPUP,08-Jun-2018,40.00
D1300G-CORPORATE RESOURCES,Travel/Subsistence,OYSTER BUS AUTOTOP,08-Jun-2018,20.00
D1300G-CORPORATE RESOURCES,Facilities-Market Research,WWW.WHEELFREEDOM.COM,09-Jun-2018,72.00
D1300G-CORPORATE RESOURCES,Travel/Subsistence,OYSTER BUS AUTOTOP,09-Jun-2018,20.00
D1300G-CORPORATE RESOURCES,Travel/Subsistence,OYSTER BUS AUTOTOP,09-Jun-2018,20.00
D1300G-CORPORATE RESOURCES,Travel/Subsistence,OYSTER AUTOTOPUP,09-Jun-2018,20.00
D1300G-CORPORATE RESOURCES,Travel/Subsistence,OYSTER BUS AUTOTOP,09-Jun-2018,20.00
D1300G-CORPORATE RESOURCES,Travel/Subsistence,OYSTER AUTOTOPUP,09-Jun-2018,20.00
D1300G-CORPORATE RESOURCES,Travel/Subsistence,OYSTER AUTOTOPUP,09-Jun-2018,20.00
D1300G-CORPORATE RESOURCES,Mail Services-Postage,THE POST OFFICE,09-Jun-2018,1.77
D1300G-CORPORATE RESOURCES,Facilities-Storage,SAFESTORE LIMITED,09-Jun-2018,975.99
D1300G-CORPORATE RESOURCES,Facilities-Market Research,HOO,10-Jun-2018,5.54
D1300G-CORPORATE RESOURCES,Travel/Subsistence,OYSTER AUTOTOPUP,10-Jun-2018,40.00
D1300G-CORPORATE RESOURCES,Travel/Subsistence,OYSTER BUS AUTOTOP,10-Jun-2018,60.00
D1300G-CORPORATE RESOURCES,Travel/Subsistence,OYSTER AUTOTOPUP,10-Jun-2018,20.00
D1300G-CORPORATE RESOURCES,Education-Library Books,Amazon UK Marketplace,10-Jun-2018,9.76
D1300G-CORPORATE RESOURCES,Stationery,Amazon UK Retail,10-Jun-2018,109.56
D1300G-CORPORATE RESOURCES,Travel/Subsistence,OYSTER BUS AUTOTOP,10-Jun-2018,20.00
D1300G-CORPORATE RESOURCES,Travel/Subsistence,OYSTER BUS AUTOTOP,10-Jun-2018,20.00
D1300G-CORPORATE RESOURCES,Travel/Subsistence,OYSTER AUTOTOPUP,10-Jun-2018,80.00
D1300G-CORPORATE RESOURCES,Travel/Subsistence,OYSTER BUS AUTOTOP,10-Jun-2018,40.00
D1300G-CORPORATE RESOURCES,Domestic Goods-Other,AMZ*Karabars UK,11-Jun-2018,-110.80
D1300G-CORPORATE RESOURCES,Education-Library Books,Amazon UK Marketplace,11-Jun-2018,10.74
D1300G-CORPORATE RESOURCES,Clothing-Children/Adults,WHITEHALL CLOTHIER,11-Jun-2018,117.47
D1300G-CORPORATE RESOURCES,Travel/Subsistence,OYSTER BUS AUTOTOP,11-Jun-2018,20.00
D1300G-CORPORATE RESOURCES,Catering Food & Drink,TESCO STORES 5999,11-Jun-2018,72.40
D1300G-CORPORATE RESOURCES,Financial Services,LAND REGISTRY,11-Jun-2018,3.00
D1300G-CORPORATE RESOURCES,Taxi Fares,SW2 TO ST THOMAS,11-Jun-2018,23.00
D1300G-CORPORATE RESOURCES,Financial Services,LONDON BRGH OF LAMBETH,11-Jun-2018,30.00
D1300G-CORPORATE RESOURCES,Facilities-Market Research,Amazon Prime,11-Jun-2018,7.99
D1300G-CORPORATE RESOURCES,Travel/Subsistence,TRAINLINE,11-Jun-2018,-15.30
D1300G-CORPORATE RESOURCES,Travel/Subsistence,TFL ROAD CHARGE,11-Jun-2018,11.50
D1300G-CORPORATE RESOURCES,Travel/Subsistence,OYSTER RENEW WEB,11-Jun-2018,10.00
D1300G-CORPORATE RESOURCES,IT Services,123-REG.CO.UK,11-Jun-2018,191.94
D1300G-CORPORATE RESOURCES,Domestic Goods-Other,MOTHERCARE DIRECT-E-CO,11-Jun-2018,35.00
D1300G-CORPORATE RESOURCES,Domestic Goods-Other,WWW.ARGOS.CO.UK,11-Jun-2018,-53.93
D1300G-CORPORATE RESOURCES,Taxi Fares,GREYHOUND CARS LTD,11-Jun-2018,7.00
D1300G-CORPORATE RESOURCES,Legal Services-General Support,LAG EDCTION SVC,11-Jun-2018,162.00
D1300G-CORPORATE RESOURCES,Taxi Fares,UBER TRIP LEFYN HELP.UBER,11-Jun-2018,7.66
D1300G-CORPORATE RESOURCES,Education-Library Books,Amazon UK Marketplace,12-Jun-2018,20.50
D1300G-CORPORATE RESOURCES,Domestic Goods-Other,POUNDLAND LTD 1203,12-Jun-2018,8.05
D1300G-CORPORATE RESOURCES,Facilities-Storage,BIG YELLOW S S NINE EL,12-Jun-2018,89.60
D1300G-CORPORATE RESOURCES,Domestic Goods-Other,MOTHERCARE DIRECT-E-CO,12-Jun-2018,379.00
D1300G-CORPORATE RESOURCES,Travel/Subsistence,OYSTER RENEW WEB,12-Jun-2018,150.00
D1300G-CORPORATE RESOURCES,Travel/Subsistence,OYSTER AUTOTOPUP,12-Jun-2018,20.00
D1300G-CORPORATE RESOURCES,Financial Services,HM PASSPORT OFFICE,12-Jun-2018,54.00
D1300G-CORPORATE RESOURCES,Taxi Fares,WWW.ADDISONLEE.COM,12-Jun-2018,33.70
D1300G-CORPORATE RESOURCES,Travel/Subsistence,OYSTER AUTOTOPUP,12-Jun-2018,40.00
D1300G-CORPORATE RESOURCES,Travel/Subsistence,TRAINLINE,12-Jun-2018,21.95
D1300G-CORPORATE RESOURCES,Domestic Goods-Other,ARGOS RETAIL GROUP,12-Jun-2018,39.95
D1300G-CORPORATE RESOURCES,Travel/Subsistence,OYSTER BUS AUTOTOP,12-Jun-2018,20.00
D1300G-CORPORATE RESOURCES,Travel/Subsistence,OYSTER RENEW WEB,12-Jun-2018,25.00
D1300G-CORPORATE RESOURCES,Facilities-Advertising,WH SMITH,12-Jun-2018,46.44
D1300G-CORPORATE RESOURCES,Domestic Goods-Other,MORLEYS,12-Jun-2018,137.95
D1300G-CORPORATE RESOURCES,Mail Services-Postage,POST OFFICE SELF SERVI,13-Jun-2018,4.89
D1300G-CORPORATE RESOURCES,Financial Services,LONDON BRGH OF LAMBETH,13-Jun-2018,50.00
D1300G-CORPORATE RESOURCES,Travel/Subsistence,OYSTER BUS AUTOTOP,13-Jun-2018,60.00
D1300G-CORPORATE RESOURCES,Travel/Subsistence,BRIX CENTRAL STOP,13-Jun-2018,50.00
D1300G-CORPORATE RESOURCES,Travel/Subsistence,OYSTER RENEW WEB,13-Jun-2018,99.00
D1300G-CORPORATE RESOURCES,Taxi Fares,WWW.ADDISONLEE.COM,13-Jun-2018,55.70
D1300G-CORPORATE RESOURCES,Travel/Subsistence,OYSTER AUTOTOPUP,13-Jun-2018,20.00
D1300G-CORPORATE RESOURCES,Facilities-Storage,BIG YELLOW BOX & LOCK,13-Jun-2018,146.40
D1300G-CORPORATE RESOURCES,Travel/Subsistence,OYSTER RENEW WEB,13-Jun-2018,30.00
D1300G-CORPORATE RESOURCES,Travel/Subsistence,OYSTER BUS AUTOTOP,13-Jun-2018,40.00
D1300G-CORPORATE RESOURCES,Travel/Subsistence,OYSTER RENEW WEB,13-Jun-2018,-20.00
D1300G-CORPORATE RESOURCES,Travel/Subsistence,OYSTER AUTOTOPUP,13-Jun-2018,20.00
D1300G-CORPORATE RESOURCES,Travel/Subsistence,TRAINLINE,13-Jun-2018,38.70
D1300G-CORPORATE RESOURCES,Childcare Services,CHERUBINS DAY NURSERY,13-Jun-2018,375.00
D1300G-CORPORATE RESOURCES,Travel/Subsistence,OYSTER AUTOTOPUP,13-Jun-2018,100.00
D1300G-CORPORATE RESOURCES,Catering Food & Drink,TESCO STORES 5999,13-Jun-2018,70.90
D1300G-CORPORATE RESOURCES,IT Office Equipment,Amazon UK Retail,13-Jun-2018,12.85
D1300G-CORPORATE RESOURCES,Travel/Subsistence,TRAINLINE,13-Jun-2018,83.50
D1300G-CORPORATE RESOURCES,Financial Services,CARDIFF COUNTY COU,13-Jun-2018,10.00
D1300G-CORPORATE RESOURCES,Sports Equipment,J D SPORTS 651,13-Jun-2018,153.00
D1300G-CORPORATE RESOURCES,Travel/Subsistence,OYSTER BUS AUTOTOP,14-Jun-2018,40.00
D1300G-CORPORATE RESOURCES,Domestic Goods-Other,POUNDLAND LTD 1203,14-Jun-2018,19.00
D1300G-CORPORATE RESOURCES,Taxi Fares,WWW.ADDISONLEE.COM,14-Jun-2018,123.95
D1300G-CORPORATE RESOURCES,Domestic Goods-Other,POUNDLAND LTD,14-Jun-2018,11.00
D1300G-CORPORATE RESOURCES,Taxi Fares,CIVIC KINGS SW9 30 MIN,14-Jun-2018,43.00
D1300G-CORPORATE RESOURCES,Travel/Subsistence,OYSTER BUS AUTOTOP,14-Jun-2018,20.00
D1300G-CORPORATE RESOURCES,Mail Services-Postage,POST OFFICE SELF SERVI,14-Jun-2018,17.65
D1300G-CORPORATE RESOURCES,Stationery,Amazon UK Retail,14-Jun-2018,8.64
D1300G-CORPORATE RESOURCES,Taxi Fares,SE15 TO LHR,14-Jun-2018,65.00
D1300G-CORPORATE RESOURCES,Travel/Subsistence,OYSTER BUS AUTOTOP,14-Jun-2018,20.00
D1300G-CORPORATE RESOURCES,Domestic Goods-Other,ARGOS,14-Jun-2018,34.99
D1300G-CORPORATE RESOURCES,Mail Services-Postage,THE POST OFFICE,14-Jun-2018,6.50
D1300G-CORPORATE RESOURCES,Travel/Subsistence,OYSTER AUTOTOPUP,14-Jun-2018,40.00
D1300G-CORPORATE RESOURCES,Travel/Subsistence,OYSTER AUTOTOPUP,14-Jun-2018,20.00
D1300G-CORPORATE RESOURCES,Travel/Subsistence,OYSTER RENEW WEB,14-Jun-2018,25.00
D1300G-CORPORATE RESOURCES,Travel/Subsistence,OYSTER BUS AUTOTOP,14-Jun-2018,20.00
D1300G-CORPORATE RESOURCES,Travel/Subsistence,OYSTER AUTOTOPUP,14-Jun-2018,20.00
D1300G-CORPORATE RESOURCES,Taxi Fares,CIVIC SE11CR0 RETURN,14-Jun-2018,65.00
D1300G-CORPORATE RESOURCES,Travel/Subsistence,OYSTER BUS AUTOTOP,14-Jun-2018,20.00
D1300G-CORPORATE RESOURCES,Travel/Subsistence,LUL TICKET MACHINE,14-Jun-2018,50.00
D1300G-CORPORATE RESOURCES,Financial Services-Grants,CORAM ACADEMY LTD,14-Jun-2018,525.00
D1300G-CORPORATE RESOURCES,Taxi Fares,KENDALL CARS,14-Jun-2018,30.00
D1300G-CORPORATE RESOURCES,Catering Food & Drink,TESCO STORE 2143,14-Jun-2018,67.55
D1300G-CORPORATE RESOURCES,Travel/Subsistence,OYSTER RENEW WEB,14-Jun-2018,10.00
D1300G-CORPORATE RESOURCES,Travel/Subsistence,OYSTER BUS AUTOTOP,14-Jun-2018,60.00
D1300G-CORPORATE RESOURCES,Travel/Subsistence,TRAINLINE,14-Jun-2018,58.00
D1300G-CORPORATE RESOURCES,Domestic Goods-Other,MOTHERCARE DIRECT-E-CO,14-Jun-2018,139.99
D1300G-CORPORATE RESOURCES,Financial Services,LAND REGISTRY,15-Jun-2018,3.00
D1300G-CORPORATE RESOURCES,Catering Food & Drink,TESCO STORE 2143,15-Jun-2018,15.00
D1300G-CORPORATE RESOURCES,Travel/Subsistence,OYSTER BUS AUTOTOP,15-Jun-2018,20.00
D1300G-CORPORATE RESOURCES,Travel/Subsistence,OYSTER AUTOTOPUP,15-Jun-2018,20.00
D1300G-CORPORATE RESOURCES,Travel/Subsistence,OYSTER AUTOTOPUP,15-Jun-2018,20.00
D1300G-CORPORATE RESOURCES,Taxi Fares,WWW.ADDISONLEE.COM,15-Jun-2018,43.70
D1300G-CORPORATE RESOURCES,Travel/Subsistence,OYSTER BUS AUTOTOP,15-Jun-2018,20.00
D1300G-CORPORATE RESOURCES,Travel/Subsistence,OYSTER BUS AUTOTOP,15-Jun-2018,80.00
D1300G-CORPORATE RESOURCES,Travel/Subsistence,OYSTER AUTOTOPUP,15-Jun-2018,20.00
D1300G-CORPORATE RESOURCES,Education-Musical Instruments,WWW.GEAR4MUSIC.COM,15-Jun-2018,106.00
D1300G-CORPORATE RESOURCES,Travel/Subsistence,OYSTER BUS AUTOTOP,15-Jun-2018,20.00
D1300G-CORPORATE RESOURCES,Travel/Subsistence,OYSTER AUTOTOPUP,15-Jun-2018,20.00
D1300G-CORPORATE RESOURCES,Travel/Subsistence,OYSTER BUS AUTOTOP,16-Jun-2018,20.00
D1300G-CORPORATE RESOURCES,Travel/Subsistence,OYSTER BUS AUTOTOP,16-Jun-2018,20.00
D1300G-CORPORATE RESOURCES,Travel/Subsistence,OYSTER AUTOTOPUP,16-Jun-2018,20.00
D1300G-CORPORATE RESOURCES,Domestic Goods-Other,ARGOS RETAIL GROUP,16-Jun-2018,-6.99
D1300G-CORPORATE RESOURCES,Travel/Subsistence,OYSTER AUTOTOPUP,16-Jun-2018,80.00
D1300G-CORPORATE RESOURCES,Travel/Subsistence,OYSTER AUTOTOPUP,16-Jun-2018,20.00
D1300G-CORPORATE RESOURCES,Travel/Subsistence,OYSTER BUS AUTOTOP,16-Jun-2018,60.00
D1300G-CORPORATE RESOURCES,Legal Services-General Support,Amazon UK Retail,17-Jun-2018,82.81
D1300G-CORPORATE RESOURCES,Taxi Fares,UBER TRIP 4DMC2 HELP.UBER,17-Jun-2018,5.83
D1300G-CORPORATE RESOURCES,Taxi Fares,WWW.ADDISONLEE.COM,17-Jun-2018,103.75
D1300G-CORPORATE RESOURCES,Travel/Subsistence,OYSTER BUS AUTOTOP,17-Jun-2018,20.00
D1300G-CORPORATE RESOURCES,Travel/Subsistence,OYSTER AUTOTOPUP,17-Jun-2018,60.00
D1300G-CORPORATE RESOURCES,Facilities-Market Research,Prime Fresh Membership,18-Jun-2018,3.99
D1300G-CORPORATE RESOURCES,Taxi Fares,GREYHOUND CARS LTD,18-Jun-2018,37.80
D1300G-CORPORATE RESOURCES,Travel/Subsistence,OYSTER BUS AUTOTOP,18-Jun-2018,20.00
D1300G-CORPORATE RESOURCES,Travel/Subsistence,OYSTER RENEW WEB,18-Jun-2018,30.00
D1300G-CORPORATE RESOURCES,Financial Services,UKBA9123617740,18-Jun-2018,3199.00
D1300G-CORPORATE RESOURCES,Taxi Fares,WWW.MINICABS.CO.UK,18-Jun-2018,202.50
D1300G-CORPORATE RESOURCES,Catering Food & Drink,TESCO STORES 5999,18-Jun-2018,83.30
D1300G-CORPORATE RESOURCES,Healthcare Services,INST OF OPTOMETRY,18-Jun-2018,455.00
D1300G-CORPORATE RESOURCES,Domestic Goods-Other,WWW.ARGOS.CO.UK,18-Jun-2018,40.94
D1300G-CORPORATE RESOURCES,Horticultural-Other,WWW.PRESTIGEFLOWERS.CO.U,18-Jun-2018,26.29
D1300G-CORPORATE RESOURCES,Financial Services,LAND REGISTRY,18-Jun-2018,3.00
D1300G-CORPORATE RESOURCES,Taxi Fares,WWW.ADDISONLEE.COM,18-Jun-2018,117.25
D1300G-CORPORATE RESOURCES,Travel/Subsistence,TRAINLINE,18-Jun-2018,-47.45
D1300G-CORPORATE RESOURCES,Taxi Fares,BRUNOWEEK 04061006,18-Jun-2018,140.00
D1300G-CORPORATE RESOURCES,Domestic Goods-Other,WWW.ARGOS.CO.UK,18-Jun-2018,252.94
D1300G-CORPORATE RESOURCES,Works-Construction,PP*NULIFEBUILD,18-Jun-2018,275.00
D1300G-CORPORATE RESOURCES,Travel/Subsistence,TRAINLINE,19-Jun-2018,34.95
D1300G-CORPORATE RESOURCES,Travel/Subsistence,HOTELS.COM149175481587,19-Jun-2018,151.00
D1300G-CORPORATE RESOURCES,Taxi Fares,UBER EATS AL4YE HELP.UBER,19-Jun-2018,14.70
D1300G-CORPORATE RESOURCES,Travel/Subsistence,OYSTER RENEW WEB,19-Jun-2018,30.00
D1300G-CORPORATE RESOURCES,Facilities-Advertising,BRIX CENTRAL STOP,19-Jun-2018,25.00
D1300G-CORPORATE RESOURCES,Travel/Subsistence,OYSTER BUS AUTOTOP,19-Jun-2018,20.00
D1300G-CORPORATE RESOURCES,Accommodation,ST GILES HOTEL,19-Jun-2018,884.50
D1300G-CORPORATE RESOURCES,Travel/Subsistence,HOTELS.COM149175388052,19-Jun-2018,386.00
D1300G-CORPORATE RESOURCES,Travel/Subsistence,OYSTER RENEW WEB,19-Jun-2018,10.00
D1300G-CORPORATE RESOURCES,Mail Services-Postage,POST OFFICE SELF SERVI,19-Jun-2018,18.99
D1300G-CORPORATE RESOURCES,Taxi Fares,UBER TRIP OU7IP HELP.UBER,19-Jun-2018,5.00
D1300G-CORPORATE RESOURCES,Domestic Goods-Other,WWW.ARGOS.CO.UK,19-Jun-2018,221.92
D1300G-CORPORATE RESOURCES,Travel/Subsistence,OYSTER RENEW WEB,19-Jun-2018,-30.00
D1300G-CORPORATE RESOURCES,Catering Food & Drink,TESCO STORE 2143,19-Jun-2018,16.49
D1300G-CORPORATE RESOURCES,Travel/Subsistence,TRAINLINE,19-Jun-2018,208.95
D1300G-CORPORATE RESOURCES,Domestic Goods-Other,ARGOS,19-Jun-2018,64.99
D1300G-CORPORATE RESOURCES,Travel/Subsistence,TRAINLINE,20-Jun-2018,34.75
D1300G-CORPORATE RESOURCES,Financial Services,LAND REGISTRY,20-Jun-2018,6.00
D1300G-CORPORATE RESOURCES,IT Software,ADOBE  CREATIVE CLOUD,20-Jun-2018,141.60
D1300G-CORPORATE RESOURCES,Taxi Fares,YOUTH COURT BR,20-Jun-2018,42.00
D1300G-CORPORATE RESOURCES,Domestic Goods-Other,ARGOS RETAIL GROUP,20-Jun-2018,74.98
D1300G-CORPORATE RESOURCES,Travel/Subsistence,OYSTER AUTOTOPUP,20-Jun-2018,60.00
D1300G-CORPORATE RESOURCES,Domestic Goods-Other,WWW.ARGOS.CO.UK,20-Jun-2018,264.43
D1300G-CORPORATE RESOURCES,Travel/Subsistence,OYSTER RENEW WEB,20-Jun-2018,79.00
D1300G-CORPORATE RESOURCES,Travel/Subsistence,OYSTER AUTOTOPUP,20-Jun-2018,20.00
D1300G-CORPORATE RESOURCES,Travel/Subsistence,OYSTER RENEW WEB,20-Jun-2018,60.00
D1300G-CORPORATE RESOURCES,Travel/Subsistence,OYSTER BUS AUTOTOP,20-Jun-2018,80.00
D1300G-CORPORATE RESOURCES,Travel/Subsistence,OYSTER BUS AUTOTOP,20-Jun-2018,40.00
D1300G-CORPORATE RESOURCES,Travel/Subsistence,OYSTER AUTOTOPUP,20-Jun-2018,40.00
D1300G-CORPORATE RESOURCES,Travel/Subsistence,OYSTER AUTOTOPUP,20-Jun-2018,20.00
D1300G-CORPORATE RESOURCES,Domestic Goods-Other,MOTHERCARE DIRECT-E-CO,20-Jun-2018,100.00
D1300G-CORPORATE RESOURCES,Domestic Goods-Other,ARGOS RETAIL GROUP,20-Jun-2018,19.99
D1300G-CORPORATE RESOURCES,Travel/Subsistence,OYSTER AUTOTOPUP,20-Jun-2018,20.00
D1300G-CORPORATE RESOURCES,Travel/Subsistence,HOTELS.COM149215560028,20-Jun-2018,386.00
D1300G-CORPORATE RESOURCES,Taxi Fares,WWW.MINICABS.CO.UK,20-Jun-2018,48.13
D1300G-CORPORATE RESOURCES,Travel/Subsistence,OYSTER RENEW WEB,20-Jun-2018,30.00
D1300G-CORPORATE RESOURCES,Facilities-Design & Photography,WWW.ISTOCK.COM,21-Jun-2018,24.00
D1300G-CORPORATE RESOURCES,Arts & Leisure Services,WWW.FLIPOUT.CO.UK,21-Jun-2018,28.00
D1300G-CORPORATE RESOURCES,Travel/Subsistence,OYSTER RENEW WEB,21-Jun-2018,120.00
D1300G-CORPORATE RESOURCES,Travel/Subsistence,OYSTER AUTOTOPUP,21-Jun-2018,80.00
D1300G-CORPORATE RESOURCES,Professional & Advisory Services,PAYPAL,21-Jun-2018,900.00
D1300G-CORPORATE RESOURCES,Travel/Subsistence,OYSTER RENEW WEB,21-Jun-2018,20.00
D1300G-CORPORATE RESOURCES,Domestic Goods-Other,MOTHERCARE DIRECT-E-CO,21-Jun-2018,69.99
D1300G-CORPORATE RESOURCES,Taxi Fares,WWW.ADDISONLEE.COM,21-Jun-2018,12.70
D1300G-CORPORATE RESOURCES,Travel/Subsistence,OYSTER BUS AUTOTOP,21-Jun-2018,20.00
D1300G-CORPORATE RESOURCES,Travel/Subsistence,OYSTER BUS AUTOTOP,21-Jun-2018,20.00
D1300G-CORPORATE RESOURCES,Travel/Subsistence,OYSTER RENEW WEB,21-Jun-2018,30.00
D1300G-CORPORATE RESOURCES,Financial Services,LONDON BRGH OF LAMBETH,21-Jun-2018,37.00
D1300G-CORPORATE RESOURCES,Consultancy-Business,DOD`S PARLIAMENTARY CO,21-Jun-2018,294.00
D1300G-CORPORATE RESOURCES,Financial Services,LONDON BRGH OF LAMBETH,21-Jun-2018,40.00
D1300G-CORPORATE RESOURCES,Catering Food & Drink,TESCO STORE 2143,21-Jun-2018,18.59
D1300G-CORPORATE RESOURCES,Domestic Goods-Other,WWW.ARGOS.CO.UK,21-Jun-2018,40.94
D1300G-CORPORATE RESOURCES,Taxi Fares,ABEX647D2 LONDON NET C,21-Jun-2018,49.70
D1300G-CORPORATE RESOURCES,Travel/Subsistence,OYSTER AUTOTOPUP,21-Jun-2018,20.00
D1300G-CORPORATE RESOURCES,Domestic Goods-Other,WWW.ARGOS.CO.UK,21-Jun-2018,58.88
D1300G-CORPORATE RESOURCES,Travel/Subsistence,OYSTER AUTOTOPUP,21-Jun-2018,20.00
D1300G-CORPORATE RESOURCES,Domestic Goods-Other,ARGOS RETAIL GROUP,21-Jun-2018,0.00
D1300G-CORPORATE RESOURCES,Vehicle Hire,THAMES CLIPPERS,21-Jun-2018,81.60
D1300G-CORPORATE RESOURCES,Catering Food & Drink,THE ARCHDUKE,21-Jun-2018,120.00
D1300G-CORPORATE RESOURCES,Taxi Fares,WWW.MINICABS.CO.UK,21-Jun-2018,11.25
D1300G-CORPORATE RESOURCES,Financial Services,HM PASSPORT,21-Jun-2018,127.00
D1300G-CORPORATE RESOURCES,Travel/Subsistence,OYSTER AUTOTOPUP,21-Jun-2018,20.00
D1300G-CORPORATE RESOURCES,Domestic Goods-Other,WWW.ARGOS.CO.UK,21-Jun-2018,276.94
D1300G-CORPORATE RESOURCES,Financial Services,SAINSBURYS           CASH,21-Jun-2018,60.00
D1300G-CORPORATE RESOURCES,Travel/Subsistence,OYSTER AUTOTOPUP,22-Jun-2018,40.00
D1300G-CORPORATE RESOURCES,Domestic Goods-Other,CURRYS ONLINE,22-Jun-2018,1057.97
D1300G-CORPORATE RESOURCES,Travel/Subsistence,OYSTER AUTOTOPUP,22-Jun-2018,20.00
D1300G-CORPORATE RESOURCES,Mail Services-Postage,POST OFFICE SELF SERVI,22-Jun-2018,30.91
D1300G-CORPORATE RESOURCES,Catering Food & Drink,MARKS&SPENCER PLC SACA,22-Jun-2018,32.80
D1300G-CORPORATE RESOURCES,Catering Food & Drink,MILLERS,22-Jun-2018,73.30
D1300G-CORPORATE RESOURCES,Catering Food & Drink,TESCO STORES 5999,22-Jun-2018,71.31
D1300G-CORPORATE RESOURCES,Financial Services,CASH ADVANCE FEE,22-Jun-2018,2.95
D1300G-CORPORATE RESOURCES,Travel/Subsistence,LUL TICKET MACHINE,22-Jun-2018,50.00
D1300G-CORPORATE RESOURCES,Travel/Subsistence,OYSTER BUS AUTOTOP,22-Jun-2018,20.00
D1300G-CORPORATE RESOURCES,Travel/Subsistence,OYSTER BUS AUTOTOP,22-Jun-2018,20.00
D1300G-CORPORATE RESOURCES,Accommodation,MARRIOTT,22-Jun-2018,194.00
D1300G-CORPORATE RESOURCES,Travel/Subsistence,OYSTER BUS AUTOTOP,23-Jun-2018,20.00
D1300G-CORPORATE RESOURCES,Travel/Subsistence,OYSTER BUS AUTOTOP,23-Jun-2018,40.00
D1300G-CORPORATE RESOURCES,Travel/Subsistence,OYSTER AUTOTOPUP,23-Jun-2018,40.00
D1300G-CORPORATE RESOURCES,Travel/Subsistence,OYSTER AUTOTOPUP,23-Jun-2018,60.00
D1300G-CORPORATE RESOURCES,Travel/Subsistence,OYSTER AUTOTOPUP,23-Jun-2018,20.00
D1300G-CORPORATE RESOURCES,Consultancy-Business,ABLE GROUP UK,23-Jun-2018,122.40
D1300G-CORPORATE RESOURCES,Travel/Subsistence,OYSTER BUS AUTOTOP,23-Jun-2018,20.00
D1300G-CORPORATE RESOURCES,Travel/Subsistence,OYSTER AUTOTOPUP,23-Jun-2018,20.00
D1300G-CORPORATE RESOURCES,Travel/Subsistence,OYSTER AUTOTOPUP,23-Jun-2018,40.00
D1300G-CORPORATE RESOURCES,Travel/Subsistence,OYSTER BUS AUTOTOP,23-Jun-2018,20.00
D1300G-CORPORATE RESOURCES,Travel/Subsistence,OYSTER AUTOTOPUP,24-Jun-2018,20.00
D1300G-CORPORATE RESOURCES,Travel/Subsistence,OYSTER AUTOTOPUP,24-Jun-2018,20.00
D1300G-CORPORATE RESOURCES,Travel/Subsistence,OYSTER AUTOTOPUP,24-Jun-2018,20.00
D1300G-CORPORATE RESOURCES,Facilities-Market Research,Amazon Prime,24-Jun-2018,7.99
D1300G-CORPORATE RESOURCES,Travel/Subsistence,OYSTER BUS AUTOTOP,24-Jun-2018,60.00
D1300G-CORPORATE RESOURCES,Travel/Subsistence,OYSTER AUTOTOPUP,24-Jun-2018,20.00
D1300G-CORPORATE RESOURCES,Travel/Subsistence,OYSTER AUTOTOPUP,24-Jun-2018,20.00
D1300G-CORPORATE RESOURCES,Travel/Subsistence,OYSTER BUS AUTOTOP,24-Jun-2018,100.00
D1300G-CORPORATE RESOURCES,Catering Food & Drink,TESCO STORES 5999,25-Jun-2018,72.40
D1300G-CORPORATE RESOURCES,Travel/Subsistence,OYSTER RENEW WEB,25-Jun-2018,30.00
D1300G-CORPORATE RESOURCES,Travel/Subsistence,PAYPAL,25-Jun-2018,286.50
D1300G-CORPORATE RESOURCES,Domestic Goods-Other,ARGOS,25-Jun-2018,204.99
D1300G-CORPORATE RESOURCES,Travel/Subsistence,OYSTER AUTOTOPUP,25-Jun-2018,20.00
D1300G-CORPORATE RESOURCES,Travel/Subsistence,OYSTER RENEW WEB,25-Jun-2018,25.00
D1300G-CORPORATE RESOURCES,Education-Other,QE2CP.WESTMINSTER.SCH.,25-Jun-2018,50.00
D1300G-CORPORATE RESOURCES,Education-Other,QE2CP.WESTMINSTER.SCH.,25-Jun-2018,50.00
D1300G-CORPORATE RESOURCES,IT Software-Customised,DISPLAYSENSE.CO.UK,25-Jun-2018,40.98
D1300G-CORPORATE RESOURCES,Domestic Goods-Other,WWW.ARGOS.CO.UK,25-Jun-2018,324.53
D1300G-CORPORATE RESOURCES,Mail Services-Postage,THE POST OFFICE,25-Jun-2018,68.01
D1300G-CORPORATE RESOURCES,Education-Library Books,Amazon UK Marketplace,25-Jun-2018,22.44
D1300G-CORPORATE RESOURCES,Domestic Goods-Other,WWW.LUGGAGESUPERST,25-Jun-2018,-132.46
D1300G-CORPORATE RESOURCES,Travel/Subsistence,TRAINLINE,25-Jun-2018,217.95
D1300G-CORPORATE RESOURCES,Financial Services,HM PASSPORT OFFICE,26-Jun-2018,85.00
D1300G-CORPORATE RESOURCES,Catering Food & Drink,MARKS&SPENCER PLC,26-Jun-2018,262.00
D1300G-CORPORATE RESOURCES,Consultancy-Business,SOCIAL JUSTICE AND HUM,26-Jun-2018,174.00
D1300G-CORPORATE RESOURCES,Domestic Goods-Other,WWW.ARGOS.CO.UK,26-Jun-2018,184.93
D1300G-CORPORATE RESOURCES,Mail Services-Postage,THE POST OFFICE,26-Jun-2018,3.88
D1300G-CORPORATE RESOURCES,Taxi Fares,4WEEKS,26-Jun-2018,280.00
D1300G-CORPORATE RESOURCES,Education-Library Books,Amazon UK Marketplace,26-Jun-2018,7.99
D1300G-CORPORATE RESOURCES,Travel/Subsistence,OYSTER RENEW WEB,26-Jun-2018,60.00
D1300G-CORPORATE RESOURCES,Travel/Subsistence,OYSTER RENEW WEB,26-Jun-2018,20.00
D1300G-CORPORATE RESOURCES,Travel/Subsistence,OYSTER RENEW WEB,26-Jun-2018,10.00
D1300G-CORPORATE RESOURCES,Taxi Fares,DORSET ROAD RUNNER TAX,26-Jun-2018,60.00
D1300G-CORPORATE RESOURCES,Domestic Goods-Other,WWW.ARGOS.CO.UK,26-Jun-2018,73.94
D1300G-CORPORATE RESOURCES,Financial Services,LAND REGISTRY,26-Jun-2018,6.00
D1300G-CORPORATE RESOURCES,Facilities-Advertising,WH SMITH,26-Jun-2018,12.99
D1300G-CORPORATE RESOURCES,Travel/Subsistence,OYSTER ONLINE,27-Jun-2018,30.00
D1300G-CORPORATE RESOURCES,Travel/Subsistence,OYSTER ONLINE,27-Jun-2018,20.00
D1300G-CORPORATE RESOURCES,Travel/Subsistence,OYSTER AUTO-TOP UP,27-Jun-2018,60.00
D1300G-CORPORATE RESOURCES,Taxi Fares,WWW.ADDISONLEE.COM,27-Jun-2018,14.70
D1300G-CORPORATE RESOURCES,Works-Construction,SQ *COMPARE THE MAN AND V,27-Jun-2018,303.87
D1300G-CORPORATE RESOURCES,Travel/Subsistence,OYSTER ONLINE,27-Jun-2018,20.00
D1300G-CORPORATE RESOURCES,Domestic Goods-Other,WWW.ARGOS.CO.UK,27-Jun-2018,362.94
D1300G-CORPORATE RESOURCES,Travel/Subsistence,OYSTER AUTO-TOP UP,27-Jun-2018,20.00
D1300G-CORPORATE RESOURCES,Financial Services-Grants,PAYPAL,27-Jun-2018,140.00
D1300G-CORPORATE RESOURCES,Financial Services,REGISTER OFFICE,27-Jun-2018,21.00
D1300G-CORPORATE RESOURCES,Facilities-Storage,SAFESTORE LIMITED,27-Jun-2018,975.99
D1300G-CORPORATE RESOURCES,Domestic Goods-Other,MORLEYS,27-Jun-2018,10.05
D1300G-CORPORATE RESOURCES,Travel/Subsistence,OYSTER AUTO-TOP UP,27-Jun-2018,20.00
D1300G-CORPORATE RESOURCES,Travel/Subsistence,OYSTER AUTO-TOP UP,27-Jun-2018,40.00
D1300G-CORPORATE RESOURCES,Travel/Subsistence,TRAINLINE,27-Jun-2018,61.30
D1300G-CORPORATE RESOURCES,Domestic Goods-Other,WWW.ARGOS.CO.UK,27-Jun-2018,208.92
D1300G-CORPORATE RESOURCES,Travel/Subsistence,OYSTER ONLINE,27-Jun-2018,58.40
D1300G-CORPORATE RESOURCES,Financial Services,HM PASSPORT OFFICE,27-Jun-2018,160.50
D1300G-CORPORATE RESOURCES,Catering Food & Drink,TESCO STORES 5999,27-Jun-2018,70.90
D1300G-CORPORATE RESOURCES,Travel/Subsistence,OYSTER AUTO-TOP UP,27-Jun-2018,20.00
D1300G-CORPORATE RESOURCES,Taxi Fares,SM1 TO SE15,27-Jun-2018,55.00
D1300G-CORPORATE RESOURCES,Building-Floors,FLOOR FASHION LTD,27-Jun-2018,400.00
D1300G-CORPORATE RESOURCES,Domestic Goods-Other,MOTHERCARE DIRECT-E-CO,28-Jun-2018,49.00
D1300G-CORPORATE RESOURCES,Travel/Subsistence,OYSTER AUTO-TOP UP,28-Jun-2018,40.00
D1300G-CORPORATE RESOURCES,Travel/Subsistence,OYSTER ONLINE,28-Jun-2018,30.00
D1300G-CORPORATE RESOURCES,Travel/Subsistence,OYSTER AUTO-TOP UP,28-Jun-2018,20.00
D1300G-CORPORATE RESOURCES,Catering Food & Drink,TESCO STORE 2143,28-Jun-2018,37.86
D1300G-CORPORATE RESOURCES,IT Software-Customised,HP INC UK LIMITED,28-Jun-2018,382.65
D1300G-CORPORATE RESOURCES,Catering Food & Drink,TESCO STORE 2143,28-Jun-2018,50.00
D1300G-CORPORATE RESOURCES,Travel/Subsistence,OYSTER AUTO-TOP UP,28-Jun-2018,40.00
D1300G-CORPORATE RESOURCES,Travel/Subsistence,OYSTER AUTO-TOP UP,28-Jun-2018,80.00
D1300G-CORPORATE RESOURCES,Catering Food & Drink,TESCO STORES 5999,29-Jun-2018,72.40
D1300G-CORPORATE RESOURCES,Financial Services,LONDON BRGH OF LAMBETH,29-Jun-2018,30.00
D1300G-CORPORATE RESOURCES,Taxi Fares,WWW.MINICABS.CO.UK,29-Jun-2018,30.00
D1300G-CORPORATE RESOURCES,Mail Services-Postage,THE POST OFFICE,29-Jun-2018,67.00
D1300G-CORPORATE RESOURCES,Taxi Fares,SE1 TO CIVIC CENTER,29-Jun-2018,27.00
D1300G-CORPORATE RESOURCES,Travel/Subsistence,OYSTER AUTO-TOP UP,29-Jun-2018,80.00
D1300G-CORPORATE RESOURCES,Travel/Subsistence,OYSTER AUTO-TOP UP,29-Jun-2018,20.00
D1300G-CORPORATE RESOURCES,Taxi Fares,WWW.ADDISONLEE.COM,29-Jun-2018,65.15
D1300G-CORPORATE RESOURCES,Financial Services,HM PASSPORT OFFICE,29-Jun-2018,260.50
D1300G-CORPORATE RESOURCES,Travel/Subsistence,OYSTER AUTO-TOP UP,29-Jun-2018,80.00
D1300G-CORPORATE RESOURCES,Travel/Subsistence,OYSTER AUTO-TOP UP,29-Jun-2018,20.00
D1300G-CORPORATE RESOURCES,Travel/Subsistence,OYSTER AUTO-TOP UP,29-Jun-2018,20.00
D1300G-CORPORATE RESOURCES,Travel/Subsistence,OYSTER AUTO-TOP UP,30-Jun-2018,80.00
D1300G-CORPORATE RESOURCES,Financial Services,HM PASSPORT OFFICE,30-Jun-2018,170.00
D1300G-CORPORATE RESOURCES,Travel/Subsistence,OYSTER AUTO-TOP UP,30-Jun-2018,20.00
D1300G-CORPORATE RESOURCES,Travel/Subsistence,OYSTER AUTO-TOP UP,30-Jun-2018,100.00
D1300G-CORPORATE RESOURCES,Travel/Subsistence,OYSTER AUTO-TOP UP,30-Jun-2018,20.00
D1400G-CHILDREN'S SERVICES,Education-Library Books,Amazon UK Marketplace,04-Apr-2018,25.25
D1400G-CHILDREN'S SERVICES,Catering Food & Drink,JAMAICA SPICE BAKERY L,04-Apr-2018,6.40
D1400G-CHILDREN'S SERVICES,Facilities-Advertising,WH SMITH,04-Apr-2018,6.59
D1400G-CHILDREN'S SERVICES,Catering Food & Drink,MARKS&SPENCER PLC SACA,04-Apr-2018,15.65
D1400G-CHILDREN'S SERVICES,Facilities-Printing,Amazon UK Retail,04-Apr-2018,22.99
D1400G-CHILDREN'S SERVICES,Education-Library Books,AMAZON SVCS EU-UK AMAZON.,04-Apr-2018,4.79
D1400G-CHILDREN'S SERVICES,Catering Food & Drink,SAINSBURYS S/MKTS,04-Apr-2018,19.85
D1400G-CHILDREN'S SERVICES,Domestic Goods-Other,AMAZON EU AMAZON.CO.UK,05-Apr-2018,10.99
D1400G-CHILDREN'S SERVICES,Travel/Subsistence,OYSTER AUTOTOPUP,05-Apr-2018,40.00
D1400G-CHILDREN'S SERVICES,Education-Library Books,Amazon UK Marketplace,05-Apr-2018,6.36
D1400G-CHILDREN'S SERVICES,Education-Library Books,Amazon UK Marketplace,06-Apr-2018,51.26
D1400G-CHILDREN'S SERVICES,Public Transport,EXPRESS NEWS,06-Apr-2018,50.00
D1400G-CHILDREN'S SERVICES,Travel/Subsistence,OYSTER BUS AUTOTOP,06-Apr-2018,20.00
D1400G-CHILDREN'S SERVICES,Travel/Subsistence,GREATER ANGLIA TRAINS,06-Apr-2018,140.50
D1400G-CHILDREN'S SERVICES,Travel/Subsistence,OYSTER AUTOTOPUP,07-Apr-2018,20.00
D1400G-CHILDREN'S SERVICES,Consultancy-Business,EB *LEADING LEARNING F,07-Apr-2018,75.00
D1400G-CHILDREN'S SERVICES,Travel/Subsistence,OYSTER AUTOTOPUP,08-Apr-2018,40.00
D1400G-CHILDREN'S SERVICES,Education-Library Books,Amazon UK Retail,08-Apr-2018,14.98
D1400G-CHILDREN'S SERVICES,Facilities-Printing,Amazon UK Retail,08-Apr-2018,24.98
D1400G-CHILDREN'S SERVICES,Travel/Subsistence,OYSTER BUS AUTOTOP,08-Apr-2018,20.00
D1400G-CHILDREN'S SERVICES,Travel/Subsistence,OYSTER BUS AUTOTOP,08-Apr-2018,40.00
D1400G-CHILDREN'S SERVICES,Education-Library Books,Amazon UK Retail,09-Apr-2018,28.49
D1400G-CHILDREN'S SERVICES,Arts & Leisure Services,THORPE PARK RESORT FIN,09-Apr-2018,533.00
D1400G-CHILDREN'S SERVICES,Furniture-Office Furniture,WWW.CONNEVANS.COM,10-Apr-2018,0.00
D1400G-CHILDREN'S SERVICES,Education-Library Books,Amazon UK Marketplace,10-Apr-2018,17.80
D1400G-CHILDREN'S SERVICES,Sports Equipment,J D SPORTS 651,10-Apr-2018,22.00
D1400G-CHILDREN'S SERVICES,Education-Library Books,AMAZON SVCS EU-UK AMAZON.,11-Apr-2018,5.31
D1400G-CHILDREN'S SERVICES,Catering Food & Drink,TESCO STORE 2143,11-Apr-2018,130.02
D1400G-CHILDREN'S SERVICES,Education-Library Books,AMAZON SVCS EU-UK AMAZON.,11-Apr-2018,7.94
D1400G-CHILDREN'S SERVICES,Education-Library Books,AMAZON EU AMAZON.CO.UK,11-Apr-2018,8.63
D1400G-CHILDREN'S SERVICES,Travel/Subsistence,OYSTER BUS AUTOTOP,11-Apr-2018,20.00
D1400G-CHILDREN'S SERVICES,Mail Services-Postage,POST OFFICE SELF SERVI,11-Apr-2018,0.67
D1400G-CHILDREN'S SERVICES,Education-Library Books,AMAZON SVCS EU-UK AMAZON.,12-Apr-2018,5.62
D1400G-CHILDREN'S SERVICES,Public Transport,BRIXTONHILL EXPRESS,12-Apr-2018,70.00
D1400G-CHILDREN'S SERVICES,Taxi Fares,WWW.ADDISONLEE.COM,12-Apr-2018,66.00
D1400G-CHILDREN'S SERVICES,Taxi Fares,WWW.ADDISONLEE.COM,12-Apr-2018,17.75
D1400G-CHILDREN'S SERVICES,Education-Library Books,Amazon UK Retail,12-Apr-2018,23.92
D1400G-CHILDREN'S SERVICES,Education-Library Books,AMAZON SVCS EU-UK AMAZON.,12-Apr-2018,7.59
D1400G-CHILDREN'S SERVICES,Domestic Goods-Other,POUNDLAND,12-Apr-2018,0.00
D1400G-CHILDREN'S SERVICES,Healthcare Equipment,BACKCARE SOLUTIONS LTD,12-Apr-2018,0.00
D1400G-CHILDREN'S SERVICES,Travel/Subsistence,OYSTER AUTOTOPUP,12-Apr-2018,20.00
D1400G-CHILDREN'S SERVICES,Catering Food & Drink,MAITRI LTD,13-Apr-2018,0.00
D1400G-CHILDREN'S SERVICES,IT Software,THE JOJO ENTERTAINMENT,13-Apr-2018,204.00
D1400G-CHILDREN'S SERVICES,Travel/Subsistence,OYSTER BUS AUTOTOP,13-Apr-2018,60.00
D1400G-CHILDREN'S SERVICES,Travel/Subsistence,OYSTER BUS AUTOTOP,14-Apr-2018,20.00
D1400G-CHILDREN'S SERVICES,Travel/Subsistence,OYSTER AUTOTOPUP,15-Apr-2018,20.00
D1400G-CHILDREN'S SERVICES,Education-Library Books,Amazon UK Retail,15-Apr-2018,31.78
D1400G-CHILDREN'S SERVICES,Books/Publications/Resources,METRO BANK - CLAPHAM HI,16-Apr-2018,170.00
D1400G-CHILDREN'S SERVICES,Public Transport,BRIXTONHILL EXPRESS,17-Apr-2018,70.00
D1400G-CHILDREN'S SERVICES,Education-Library Books,Amazon UK Retail,17-Apr-2018,10.55
D1400G-CHILDREN'S SERVICES,Travel/Subsistence,OYSTER RENEW WEB,17-Apr-2018,10.00
D1400G-CHILDREN'S SERVICES,Mail Services-Postage,POST OFFICE SELF SERVI,17-Apr-2018,3.35
D1400G-CHILDREN'S SERVICES,Financial Services,FAMILY MOSAIC,17-Apr-2018,2986.47
D1400G-CHILDREN'S SERVICES,Education-Library Books,Amazon UK Marketplace,17-Apr-2018,9.85
D1400G-CHILDREN'S SERVICES,Catering Food & Drink,TESCO STORES-2143,17-Apr-2018,8.88
D1400G-CHILDREN'S SERVICES,Education-Library Books,Amazon UK Retail,17-Apr-2018,46.30
D1400G-CHILDREN'S SERVICES,Books/Publications/Resources,CASH ADVANCE FEE,17-Apr-2018,5.02
D1400G-CHILDREN'S SERVICES,Catering Food & Drink,Y'HALLA,18-Apr-2018,4.95
D1400G-CHILDREN'S SERVICES,Catering Food & Drink,MARKS&SPENCER PLC SACA,18-Apr-2018,4.40
D1400G-CHILDREN'S SERVICES,Catering Food & Drink,KFC,18-Apr-2018,9.52
D1400G-CHILDREN'S SERVICES,Education-Library Books,Amazon UK Marketplace,18-Apr-2018,2.45
D1400G-CHILDREN'S SERVICES,Education-Library Books,Amazon UK Retail,18-Apr-2018,6.99
D1400G-CHILDREN'S SERVICES,Travel/Subsistence,OYSTER BUS AUTOTOP,18-Apr-2018,60.00
D1400G-CHILDREN'S SERVICES,Travel/Subsistence,OYSTER RENEW WEB,18-Apr-2018,10.00
D1400G-CHILDREN'S SERVICES,Education-Library Books,AMAZON EU AMAZON.CO.UK,19-Apr-2018,7.09
D1400G-CHILDREN'S SERVICES,Mail Services-Postage,POST OFFICE SELF SERVI,19-Apr-2018,30.58
D1400G-CHILDREN'S SERVICES,Travel/Subsistence,OYSTER BUS AUTOTOP,19-Apr-2018,20.00
D1400G-CHILDREN'S SERVICES,Education-Library Books,Amazon UK Marketplace,19-Apr-2018,20.66
D1400G-CHILDREN'S SERVICES,Travel/Subsistence,OYSTER RENEW WEB,19-Apr-2018,10.00
D1400G-CHILDREN'S SERVICES,Mail Services-Postage,POST OFFICE SELF SERVI,20-Apr-2018,2.22
D1400G-CHILDREN'S SERVICES,Education-Library Books,Amazon UK Marketplace,20-Apr-2018,5.77
D1400G-CHILDREN'S SERVICES,Travel/Subsistence,SW RAILWAY,20-Apr-2018,95.30
D1400G-CHILDREN'S SERVICES,Travel/Subsistence,OYSTER BUS AUTOTOP,20-Apr-2018,40.00
D1400G-CHILDREN'S SERVICES,Catering Food & Drink,SAINSBURYS S/MKTS,20-Apr-2018,28.73
D1400G-CHILDREN'S SERVICES,Travel/Subsistence,OYSTER AUTOTOPUP,21-Apr-2018,20.00
D1400G-CHILDREN'S SERVICES,Travel/Subsistence,OYSTER AUTOTOPUP,22-Apr-2018,20.00
D1400G-CHILDREN'S SERVICES,Travel/Subsistence,OYSTER BUS AUTOTOP,22-Apr-2018,20.00
D1400G-CHILDREN'S SERVICES,Catering Food & Drink,TESCO STORES-2143,23-Apr-2018,9.80
D1400G-CHILDREN'S SERVICES,Education-Other,TEACHERS2PARENTS,23-Apr-2018,80.00
D1400G-CHILDREN'S SERVICES,Education-Other,AMAZON EU AMAZON.CO.UK,24-Apr-2018,22.70
D1400G-CHILDREN'S SERVICES,Catering Food & Drink,ICELAND,24-Apr-2018,13.85
D1400G-CHILDREN'S SERVICES,Catering Food & Drink,FRANKIE & BENNYS 1180,24-Apr-2018,166.75
D1400G-CHILDREN'S SERVICES,Education-Library Books,Amazon UK Marketplace,24-Apr-2018,20.46
D1400G-CHILDREN'S SERVICES,Taxi Fares,WWW.ADDISONLEE.COM,25-Apr-2018,19.23
D1400G-CHILDREN'S SERVICES,Catering Food & Drink,SAINSBURYS S/MKTS,25-Apr-2018,12.75
D1400G-CHILDREN'S SERVICES,Education-Other,WWW.CHRONOS.LTD.UK,25-Apr-2018,96.00
D1400G-CHILDREN'S SERVICES,Domestic Goods-Other,ARGOS LTD,25-Apr-2018,-4.99
D1400G-CHILDREN'S SERVICES,Domestic Goods-Other,ARGOS LTD,25-Apr-2018,19.96
D1400G-CHILDREN'S SERVICES,Domestic Goods-Other,POUNDLAND LTD 1203,25-Apr-2018,6.00
D1400G-CHILDREN'S SERVICES,Travel/Subsistence,OYSTER RENEW WEB,26-Apr-2018,-10.00
D1400G-CHILDREN'S SERVICES,Facilities-Advertising,WH SMITH,26-Apr-2018,2.89
D1400G-CHILDREN'S SERVICES,Travel/Subsistence,OYSTER AUTOTOPUP,26-Apr-2018,20.00
D1400G-CHILDREN'S SERVICES,Travel/Subsistence,OYSTER BUS AUTOTOP,26-Apr-2018,60.00
D1400G-CHILDREN'S SERVICES,Mail Services-Postage,THE POST OFFICE,26-Apr-2018,11.00
D1400G-CHILDREN'S SERVICES,Catering Food & Drink,MARKS&SPENCER PLC,26-Apr-2018,47.00
D1400G-CHILDREN'S SERVICES,Catering Food & Drink,TESCO STORES-2143,26-Apr-2018,6.94
D1400G-CHILDREN'S SERVICES,Catering Food & Drink,SAINSBURYS S/MKTS,26-Apr-2018,0.15
D1400G-CHILDREN'S SERVICES,Financial Services,LAMBETH INTERNET PAYM,27-Apr-2018,21.00
D1400G-CHILDREN'S SERVICES,Financial Services,LAMBETH INTERNET PAYM,27-Apr-2018,21.00
D1400G-CHILDREN'S SERVICES,Education-Other,LAMBETH INTERNET PAYM,27-Apr-2018,21.00
D1400G-CHILDREN'S SERVICES,Education-Other,LAMBETH INTERNET PAYM,27-Apr-2018,21.00
D1400G-CHILDREN'S SERVICES,Financial Services,GRO HM PASSPORT OFFICE,27-Apr-2018,9.25
D1400G-CHILDREN'S SERVICES,Travel/Subsistence,OYSTER AUTOTOPUP,28-Apr-2018,40.00
D1400G-CHILDREN'S SERVICES,Travel/Subsistence,OYSTER BUS AUTOTOP,28-Apr-2018,20.00
D1400G-CHILDREN'S SERVICES,Taxi Fares,WWW.ADDISONLEE.COM,28-Apr-2018,14.20
D1400G-CHILDREN'S SERVICES,Education-Library Books,Amazon UK Retail,29-Apr-2018,53.00
D1400G-CHILDREN'S SERVICES,Travel/Subsistence,OYSTER BUS AUTOTOP,29-Apr-2018,20.00
D1400G-CHILDREN'S SERVICES,Education-Library Books,Amazon UK Marketplace,30-Apr-2018,11.07
D1400G-CHILDREN'S SERVICES,Taxi Fares,WWW.ADDISONLEE.COM,30-Apr-2018,43.20
D1400G-CHILDREN'S SERVICES,Mail Services-Postage,POST OFFICE SELF SERVI,30-Apr-2018,13.80
D1400G-CHILDREN'S SERVICES,Catering Food & Drink,TESCO STORES-2143,01-May-2018,4.42
D1400G-CHILDREN'S SERVICES,Education-Library Books,Amazon UK Marketplace,01-May-2018,8.79
D1400G-CHILDREN'S SERVICES,Public Transport,BRIXTONHILL EXPRESS,01-May-2018,70.00
D1400G-CHILDREN'S SERVICES,Catering Food & Drink,ON THE GO,02-May-2018,30.00
D1400G-CHILDREN'S SERVICES,Catering Food & Drink,TESCO STORE 2143,02-May-2018,200.00
D1400G-CHILDREN'S SERVICES,Taxi Fares,WWW.ADDISONLEE.COM,02-May-2018,3.33
D1400G-CHILDREN'S SERVICES,Catering Food & Drink,JAMAICA SPICE BAKERY L,02-May-2018,16.00
D1400G-CHILDREN'S SERVICES,Education-Library Books,WWW.ZESTCO.ONLINE,02-May-2018,8.00
D1400G-CHILDREN'S SERVICES,Travel/Subsistence,OYSTER BUS AUTOTOP,02-May-2018,40.00
D1400G-CHILDREN'S SERVICES,Travel/Subsistence,OYSTER BUS AUTOTOP,02-May-2018,20.00
D1400G-CHILDREN'S SERVICES,Travel/Subsistence,OYSTER RENEW WEB,02-May-2018,10.00
D1400G-CHILDREN'S SERVICES,Public Transport,BRIXTONHILL EXPRESS,03-May-2018,70.00
D1400G-CHILDREN'S SERVICES,Accommodation,LOVE2SHOP.CO.UK,03-May-2018,506.45
D1400G-CHILDREN'S SERVICES,Education-Library Books,Amazon UK Marketplace,03-May-2018,10.00
D1400G-CHILDREN'S SERVICES,Travel/Subsistence,OYSTER AUTOTOPUP,03-May-2018,60.00
D1400G-CHILDREN'S SERVICES,Travel/Subsistence,OYSTER RENEW WEB,03-May-2018,10.00
D1400G-CHILDREN'S SERVICES,Education-Library Books,Amazon UK Retail,03-May-2018,5.77
D1400G-CHILDREN'S SERVICES,Travel/Subsistence,OYSTER BUS AUTOTOP,04-May-2018,60.00
D1400G-CHILDREN'S SERVICES,Mail Services-Postage,THE POST OFFICE,04-May-2018,49.14
D1400G-CHILDREN'S SERVICES,Travel/Subsistence,OYSTER BUS AUTOTOP,05-May-2018,80.00
D1400G-CHILDREN'S SERVICES,Domestic Goods-Other,ONE4ALL GIFT CARD,05-May-2018,50.99
D1400G-CHILDREN'S SERVICES,Education-Library Books,Amazon UK Marketplace,05-May-2018,2.45
D1400G-CHILDREN'S SERVICES,Domestic Goods-Other,ARGOS LTD,06-May-2018,19.96
D1400G-CHILDREN'S SERVICES,Education-Library Books,Amazon UK Retail,07-May-2018,26.42
D1400G-CHILDREN'S SERVICES,Education-Library Books,Amazon UK Marketplace,07-May-2018,31.80
D1400G-CHILDREN'S SERVICES,Catering Food & Drink,TESCO STORES-2143,08-May-2018,9.15
D1400G-CHILDREN'S SERVICES,Education-Library Books,Amazon UK Retail,09-May-2018,24.95
D1400G-CHILDREN'S SERVICES,Education-Library Books,Amazon UK Marketplace,09-May-2018,11.80
D1400G-CHILDREN'S SERVICES,Financial Services,ROYAL BANK UK /,10-May-2018,170.00
D1400G-CHILDREN'S SERVICES,Domestic Goods-Other,ARGOS LTD,10-May-2018,0.00
D1400G-CHILDREN'S SERVICES,Travel/Subsistence,OYSTER BUS AUTOTOP,10-May-2018,20.00
D1400G-CHILDREN'S SERVICES,Travel/Subsistence,GATWICK EXPRSS WEB,10-May-2018,17.80
D1400G-CHILDREN'S SERVICES,Mail Services-Postage,Amazon Prime,10-May-2018,7.99
D1400G-CHILDREN'S SERVICES,Education-Library Books,Amazon UK Marketplace,10-May-2018,21.41
D1400G-CHILDREN'S SERVICES,Arts & Leisure Services,HAVELOCK EUROPA PLC,10-May-2018,0.00
D1400G-CHILDREN'S SERVICES,Financial Services,LEWISHAM T/T,11-May-2018,355.10
D1400G-CHILDREN'S SERVICES,Education-Library Books,Amazon UK Marketplace,11-May-2018,23.26
D1400G-CHILDREN'S SERVICES,Books/Publications/Resources,CASH ADVANCE FEE,11-May-2018,5.02
D1400G-CHILDREN'S SERVICES,Travel/Subsistence,OYSTER AUTOTOPUP,11-May-2018,20.00
D1400G-CHILDREN'S SERVICES,Public Transport,BRIXTONHILL EXPRESS,11-May-2018,60.00
D1400G-CHILDREN'S SERVICES,Catering Food & Drink,SAINSBURYS S/MKTS,11-May-2018,17.80
D1400G-CHILDREN'S SERVICES,Travel/Subsistence,OYSTER BUS AUTOTOP,11-May-2018,20.00
D1400G-CHILDREN'S SERVICES,Mail Services-Postage,THE POST OFFICE,12-May-2018,1.87
D1400G-CHILDREN'S SERVICES,Education-Library Books,Amazon UK Marketplace,12-May-2018,11.80
D1400G-CHILDREN'S SERVICES,Travel/Subsistence,OYSTER BUS AUTOTOP,12-May-2018,40.00
D1400G-CHILDREN'S SERVICES,Education-Library Books,Amazon UK Marketplace,13-May-2018,13.68
D1400G-CHILDREN'S SERVICES,Travel/Subsistence,OYSTER BUS AUTOTOP,13-May-2018,40.00
D1400G-CHILDREN'S SERVICES,Education-Library Books,AMAZON EU AMAZON.CO.UK,13-May-2018,8.96
D1400G-CHILDREN'S SERVICES,Travel/Subsistence,OYSTER AUTOTOPUP,13-May-2018,20.00
D1400G-CHILDREN'S SERVICES,Education-Library Books,Amazon UK Retail,13-May-2018,14.99
D1400G-CHILDREN'S SERVICES,Catering Food & Drink,TESCO STORES-2143,14-May-2018,10.05
D1400G-CHILDREN'S SERVICES,Education-Library Books,Amazon UK Marketplace,14-May-2018,77.96
D1400G-CHILDREN'S SERVICES,Education-Library Books,Amazon UK Marketplace,14-May-2018,4.32
D1400G-CHILDREN'S SERVICES,Catering Food & Drink,TESCO STORES-2143,14-May-2018,7.50
D1400G-CHILDREN'S SERVICES,Taxi Fares,CITYFLEET/COMCAB,15-May-2018,25.20
D1400G-CHILDREN'S SERVICES,Catering Food & Drink,TESCO STORE 2143,15-May-2018,21.06
D1400G-CHILDREN'S SERVICES,Travel/Subsistence,OYSTER AUTOTOPUP,16-May-2018,20.00
D1400G-CHILDREN'S SERVICES,Catering Food & Drink,ASDA  STORES LTD TOTTE,16-May-2018,28.05
D1400G-CHILDREN'S SERVICES,Education-Library Books,Amazon UK Marketplace,16-May-2018,9.42
D1400G-CHILDREN'S SERVICES,Education-Library Books,Amazon UK Retail,16-May-2018,25.00
D1400G-CHILDREN'S SERVICES,Taxi Fares,CITYFLEET/COMCAB,16-May-2018,12.40
D1400G-CHILDREN'S SERVICES,Travel/Subsistence,OYSTER BUS AUTOTOP,17-May-2018,60.00
D1400G-CHILDREN'S SERVICES,Domestic Goods-Other,ONE4ALL GIFT CARD,17-May-2018,108.50
D1400G-CHILDREN'S SERVICES,Education-Library Books,Amazon UK Marketplace,17-May-2018,12.09
D1400G-CHILDREN'S SERVICES,Catering Food & Drink,MARKS&SPENCER PLC SACA,17-May-2018,14.39
D1400G-CHILDREN'S SERVICES,Education-Library Books,Amazon UK Retail,18-May-2018,9.60
D1400G-CHILDREN'S SERVICES,Travel/Subsistence,OYSTER AUTOTOPUP,18-May-2018,20.00
D1400G-CHILDREN'S SERVICES,Education-Library Books,Amazon UK Marketplace,18-May-2018,8.24
D1400G-CHILDREN'S SERVICES,Travel/Subsistence,OYSTER BUS AUTOTOP,18-May-2018,60.00
D1400G-CHILDREN'S SERVICES,Education-Library Books,Amazon UK Marketplace,19-May-2018,3.71
D1400G-CHILDREN'S SERVICES,Education-Library Books,AMAZON SVCS EU-UK AMAZON.,21-May-2018,3.30
D1400G-CHILDREN'S SERVICES,Education-Library Books,Amazon UK Marketplace,21-May-2018,13.78
D1400G-CHILDREN'S SERVICES,Education-Library Books,AMAZON SVCS EU-UK AMAZON.,22-May-2018,3.31
D1400G-CHILDREN'S SERVICES,Catering Food & Drink,TESCO STORES-2143,22-May-2018,9.20
D1400G-CHILDREN'S SERVICES,Public Transport,EXPRESS NEWS,22-May-2018,70.00
D1400G-CHILDREN'S SERVICES,Facilities-Market Research,SURVEYMONKEY.COM,22-May-2018,0.00
D1400G-CHILDREN'S SERVICES,Taxi Fares,WWW.ADDISONLEE.COM,23-May-2018,43.20
D1400G-CHILDREN'S SERVICES,Travel/Subsistence,OYSTER BUS AUTOTOP,23-May-2018,20.00
D1400G-CHILDREN'S SERVICES,Travel/Subsistence,OYSTER RENEW WEB,23-May-2018,10.00
D1400G-CHILDREN'S SERVICES,Education-Library Books,Amazon UK Retail,23-May-2018,52.07
D1400G-CHILDREN'S SERVICES,Mail Services-Postage,THE POST OFFICE,23-May-2018,3.54
D1400G-CHILDREN'S SERVICES,Travel/Subsistence,OYSTER AUTOTOPUP,24-May-2018,20.00
D1400G-CHILDREN'S SERVICES,Travel/Subsistence,OYSTER RENEW WEB,24-May-2018,10.00
D1400G-CHILDREN'S SERVICES,Education-Library Books,Amazon UK Marketplace,24-May-2018,18.99
D1400G-CHILDREN'S SERVICES,Travel/Subsistence,OYSTER BUS AUTOTOP,24-May-2018,20.00
D1400G-CHILDREN'S SERVICES,Education-Library Books,Amazon UK Retail,25-May-2018,5.99
D1400G-CHILDREN'S SERVICES,Domestic Goods-Other,POUNDLAND LTD 1203,25-May-2018,4.00
D1400G-CHILDREN'S SERVICES,Catering Food & Drink,SAINSBURYS S/MKTS,25-May-2018,4.00
D1400G-CHILDREN'S SERVICES,Catering Food & Drink,TESCO STORE 2143,25-May-2018,48.22
D1400G-CHILDREN'S SERVICES,Taxi Fares,WWW.ADDISONLEE.COM,25-May-2018,35.55
D1400G-CHILDREN'S SERVICES,Travel/Subsistence,OYSTER AUTOTOPUP,25-May-2018,40.00
D1400G-CHILDREN'S SERVICES,Taxi Fares,WWW.ADDISONLEE.COM,25-May-2018,45.30
D1400G-CHILDREN'S SERVICES,Travel/Subsistence,OYSTER BUS AUTOTOP,25-May-2018,20.00
D1400G-CHILDREN'S SERVICES,Education-Library Books,Amazon UK Marketplace,25-May-2018,15.76
D1400G-CHILDREN'S SERVICES,Travel/Subsistence,OYSTER BUS AUTOTOP,26-May-2018,20.00
D1400G-CHILDREN'S SERVICES,Travel/Subsistence,OYSTER AUTOTOPUP,26-May-2018,40.00
D1400G-CHILDREN'S SERVICES,Travel/Subsistence,OYSTER BUS AUTOTOP,27-May-2018,60.00
D1400G-CHILDREN'S SERVICES,Catering Food & Drink,TESCO STORE 2143,29-May-2018,17.94
D1400G-CHILDREN'S SERVICES,Education-Library Books,Amazon UK Marketplace,29-May-2018,27.33
D1400G-CHILDREN'S SERVICES,Travel/Subsistence,WWW.CHILTERNRAILWAYS.C,29-May-2018,35.90
D1400G-CHILDREN'S SERVICES,Catering Food & Drink,ASDA STORES 4766,29-May-2018,10.50
D1400G-CHILDREN'S SERVICES,Travel/Subsistence,OYSTER BUS AUTOTOP,29-May-2018,20.00
D1400G-CHILDREN'S SERVICES,Public Transport,BRIXTONHILL EXPRESS,30-May-2018,150.00
D1400G-CHILDREN'S SERVICES,Education-Library Books,Amazon UK Retail,30-May-2018,6.53
D1400G-CHILDREN'S SERVICES,Stationery,AMAZON EU AMAZON.CO.UK,30-May-2018,22.51
D1400G-CHILDREN'S SERVICES,Education-Library Books,ECONOMIST SUBSCRIPTION,30-May-2018,145.00
D1400G-CHILDREN'S SERVICES,Education-Library Books,Amazon UK Marketplace,30-May-2018,11.60
D1400G-CHILDREN'S SERVICES,Catering Food & Drink,TESCO STORE 2143,30-May-2018,129.81
D1400G-CHILDREN'S SERVICES,IT Software,THE JOJO ENTERTAINMENT,30-May-2018,192.00
D1400G-CHILDREN'S SERVICES,Education-Library Books,Amazon UK Marketplace,30-May-2018,16.64
D1400G-CHILDREN'S SERVICES,Travel/Subsistence,OYSTER BUS AUTOTOP,30-May-2018,20.00
D1400G-CHILDREN'S SERVICES,Education-Library Books,Amazon UK Retail,30-May-2018,49.84
D1400G-CHILDREN'S SERVICES,Catering Food & Drink,TESCO STORES 6791,30-May-2018,8.44
D1400G-CHILDREN'S SERVICES,Education-Library Books,Amazon UK Retail,31-May-2018,4.00
D1400G-CHILDREN'S SERVICES,Travel/Subsistence,OYSTER BUS AUTOTOP,31-May-2018,60.00
D1400G-CHILDREN'S SERVICES,Arts & Leisure Services,THORPE PARK RESORT,01-Jun-2018,47.00
D1400G-CHILDREN'S SERVICES,Catering Food & Drink,COSTA COFFEE,01-Jun-2018,28.70
D1400G-CHILDREN'S SERVICES,Catering Food & Drink,PRET A MANGER,01-Jun-2018,4.68
D1400G-CHILDREN'S SERVICES,Education-Library Books,Amazon UK Marketplace,01-Jun-2018,9.11
D1400G-CHILDREN'S SERVICES,Travel/Subsistence,OYSTER BUS AUTOTOP,01-Jun-2018,40.00
D1400G-CHILDREN'S SERVICES,Travel/Subsistence,OYSTER AUTOTOPUP,02-Jun-2018,40.00
D1400G-CHILDREN'S SERVICES,Travel/Subsistence,OYSTER BUS AUTOTOP,03-Jun-2018,20.00
D1400G-CHILDREN'S SERVICES,Travel/Subsistence,OYSTER AUTOTOPUP,03-Jun-2018,20.00
D1400G-CHILDREN'S SERVICES,Education-Library Books,Amazon UK Retail,03-Jun-2018,46.97
D1400G-CHILDREN'S SERVICES,Books/Publications/Resources,SAINSBURYS           CASH,04-Jun-2018,170.00
D1400G-CHILDREN'S SERVICES,Education-Library Books,Amazon UK Marketplace,04-Jun-2018,25.18
D1400G-CHILDREN'S SERVICES,Education-Library Books,Amazon UK Marketplace,05-Jun-2018,20.63
D1400G-CHILDREN'S SERVICES,Education-Library Books,Amazon UK Retail,05-Jun-2018,7.76
D1400G-CHILDREN'S SERVICES,Education-Library Books,Amazon UK Marketplace,05-Jun-2018,14.48
D1400G-CHILDREN'S SERVICES,Books/Publications/Resources,CASH ADVANCE FEE,05-Jun-2018,5.02
D1400G-CHILDREN'S SERVICES,Catering Food & Drink,SAINSBURYS S/MKTS,06-Jun-2018,23.05
D1400G-CHILDREN'S SERVICES,Education-Library Books,Amazon UK Marketplace,06-Jun-2018,3.90
D1400G-CHILDREN'S SERVICES,Education-Library Books,Amazon UK Retail,06-Jun-2018,12.00
D1400G-CHILDREN'S SERVICES,Catering Food & Drink,ICELAND,06-Jun-2018,2.00
D1400G-CHILDREN'S SERVICES,Travel/Subsistence,OYSTER BUS AUTOTOP,06-Jun-2018,40.00
D1400G-CHILDREN'S SERVICES,Catering Food & Drink,MARKS&SPENCER PLC SACA,06-Jun-2018,31.10
D1400G-CHILDREN'S SERVICES,Catering Food & Drink,JAMAICA SPICE BAKERY L,06-Jun-2018,16.00
D1400G-CHILDREN'S SERVICES,Taxi Fares,WWW.ADDISONLEE.COM,07-Jun-2018,24.32
D1400G-CHILDREN'S SERVICES,Travel/Subsistence,OYSTER AUTOTOPUP,07-Jun-2018,20.00
D1400G-CHILDREN'S SERVICES,Education-Library Books,Amazon UK Retail,07-Jun-2018,22.99
D1400G-CHILDREN'S SERVICES,Travel/Subsistence,OYSTER BUS AUTOTOP,07-Jun-2018,40.00
D1400G-CHILDREN'S SERVICES,Travel/Subsistence,OYSTER BUS AUTOTOP,08-Jun-2018,20.00
D1400G-CHILDREN'S SERVICES,Furniture-Office Furniture,DEMCO EUROPE,08-Jun-2018,667.72
D1400G-CHILDREN'S SERVICES,Furniture-Office Furniture,DEMCO EUROPE,08-Jun-2018,591.73
D1400G-CHILDREN'S SERVICES,Education-Library Books,Amazon UK Marketplace,08-Jun-2018,5.72
D1400G-CHILDREN'S SERVICES,Furniture-Office Furniture,DEMCO EUROPE,08-Jun-2018,748.43
D1400G-CHILDREN'S SERVICES,Furniture-Office Furniture,DEMCO EUROPE,08-Jun-2018,716.43
D1400G-CHILDREN'S SERVICES,Travel/Subsistence,OYSTER BUS AUTOTOP,09-Jun-2018,20.00
D1400G-CHILDREN'S SERVICES,Travel/Subsistence,OYSTER BUS AUTOTOP,09-Jun-2018,20.00
D1400G-CHILDREN'S SERVICES,Mail Services-Postage,Amazon Prime,10-Jun-2018,7.99
D1400G-CHILDREN'S SERVICES,Education-Library Books,Amazon UK Retail,10-Jun-2018,32.83
D1400G-CHILDREN'S SERVICES,Taxi Fares,GREYHOUND CARS LTD,11-Jun-2018,13.20
D1400G-CHILDREN'S SERVICES,Education-Library Books,AMAZON SVCS EU-UK AMAZON.,11-Jun-2018,7.28
D1400G-CHILDREN'S SERVICES,Education-Library Books,Amazon UK Retail,13-Jun-2018,10.49
D1400G-CHILDREN'S SERVICES,Travel/Subsistence,OYSTER AUTOTOPUP,13-Jun-2018,20.00
D1400G-CHILDREN'S SERVICES,Travel/Subsistence,OYSTER BUS AUTOTOP,13-Jun-2018,20.00
D1400G-CHILDREN'S SERVICES,Conference Expenses,EB *AEB FUNDING RULES,14-Jun-2018,0.00
D1400G-CHILDREN'S SERVICES,Travel/Subsistence,OYSTER BUS AUTOTOP,14-Jun-2018,20.00
D1400G-CHILDREN'S SERVICES,Taxi Fares,WWW.ADDISONLEE.COM,14-Jun-2018,0.00
D1400G-CHILDREN'S SERVICES,Travel/Subsistence,OYSTER AUTOTOPUP,15-Jun-2018,20.00
D1400G-CHILDREN'S SERVICES,Travel/Subsistence,OYSTER BUS AUTOTOP,15-Jun-2018,40.00
D1400G-CHILDREN'S SERVICES,Travel/Subsistence,OYSTER BUS AUTOTOP,16-Jun-2018,120.00
D1400G-CHILDREN'S SERVICES,Domestic Goods-Other,ONE4ALL GIFT CARD,17-Jun-2018,0.00
D1400G-CHILDREN'S SERVICES,Catering Food & Drink,TESCO STORES-2143,18-Jun-2018,11.05
D1400G-CHILDREN'S SERVICES,Travel/Subsistence,OYSTER AUTOTOPUP,20-Jun-2018,40.00
D1400G-CHILDREN'S SERVICES,Travel/Subsistence,OYSTER BUS AUTOTOP,20-Jun-2018,40.00
D1400G-CHILDREN'S SERVICES,Taxi Fares,GREYHOUND CARS LTD,21-Jun-2018,8.00
D1400G-CHILDREN'S SERVICES,Travel/Subsistence,OYSTER BUS AUTOTOP,21-Jun-2018,40.00
D1400G-CHILDREN'S SERVICES,Travel/Subsistence,TRAINLINE,21-Jun-2018,161.00
D1400G-CHILDREN'S SERVICES,Education-Library Books,Amazon UK Marketplace,22-Jun-2018,29.94
D1400G-CHILDREN'S SERVICES,Travel/Subsistence,OYSTER AUTOTOPUP,22-Jun-2018,20.00
D1400G-CHILDREN'S SERVICES,Travel/Subsistence,OYSTER BUS AUTOTOP,22-Jun-2018,60.00
D1400G-CHILDREN'S SERVICES,Education-Library Books,Amazon UK Marketplace,23-Jun-2018,12.17
D1400G-CHILDREN'S SERVICES,Travel/Subsistence,OYSTER BUS AUTOTOP,23-Jun-2018,40.00
D1400G-CHILDREN'S SERVICES,Travel/Subsistence,OYSTER AUTOTOPUP,24-Jun-2018,0.00
D1400G-CHILDREN'S SERVICES,Travel/Subsistence,OYSTER AUTOTOPUP,24-Jun-2018,20.00
D1400G-CHILDREN'S SERVICES,Education-Library Books,Amazon UK Marketplace,24-Jun-2018,45.61
D1400G-CHILDREN'S SERVICES,Education-Library Books,"Amazon Svcs Europe,SAR",24-Jun-2018,6.98
D1400G-CHILDREN'S SERVICES,Travel/Subsistence,OYSTER BUS AUTOTOP,24-Jun-2018,20.00
D1400G-CHILDREN'S SERVICES,Books/Publications/Resources,SAINSBURYS           CASH,25-Jun-2018,180.00
D1400G-CHILDREN'S SERVICES,Catering Food & Drink,TESCO STORE 2143,25-Jun-2018,9.08
D1400G-CHILDREN'S SERVICES,Books/Publications/Resources,CASH ADVANCE FEE,26-Jun-2018,5.31
D1400G-CHILDREN'S SERVICES,Travel/Subsistence,OYSTER AUTO-TOP UP,27-Jun-2018,40.00
D1400G-CHILDREN'S SERVICES,Education-Library Books,Amazon UK Marketplace,27-Jun-2018,43.60
D1400G-CHILDREN'S SERVICES,Financial Services,NATIONALITY DIRECTORAT,27-Jun-2018,1206.00
D1400G-CHILDREN'S SERVICES,Public Transport,BRIXTONHILL EXPRESS,27-Jun-2018,140.00
D1400G-CHILDREN'S SERVICES,Travel/Subsistence,OYSTER AUTO-TOP UP,28-Jun-2018,20.00
D1400G-CHILDREN'S SERVICES,Clothing-Children/Adults,SPORTSDIRECT.COM,28-Jun-2018,251.97
D1400G-CHILDREN'S SERVICES,Education-Library Books,AMAZON EU AMAZON.CO.UK,28-Jun-2018,7.33
D1400G-CHILDREN'S SERVICES,Travel/Subsistence,OYSTER AUTO-TOP UP,29-Jun-2018,80.00
D1400G-CHILDREN'S SERVICES,Education-Library Books,Amazon UK Retail,30-Jun-2018,12.65
D1400G-CHILDREN'S SERVICES,Travel/Subsistence,OYSTER AUTO-TOP UP,30-Jun-2018,20.00
D1800G-NEIGHBOURHOODS & GROWTH (HRA),Consultancy-Business,FORTRESS MASTER LOCKSMITH,05-Apr-2018,45.50
D1800G-NEIGHBOURHOODS & GROWTH (HRA),Building-Timber,B & Q 1037,06-Apr-2018,47.53
D1800G-NEIGHBOURHOODS & GROWTH (HRA),Works-Construction/Materials,LOCKSMITHS AT THE TOOL,06-Apr-2018,17.50
D1800G-NEIGHBOURHOODS & GROWTH (HRA),Building-Others,CAMPBELL ASSOCIATE,09-Apr-2018,876.00
D1800G-NEIGHBOURHOODS & GROWTH (HRA),Consultancy-Business,EB *CORNERSTONE BARRIS,09-Apr-2018,96.00
D1800G-NEIGHBOURHOODS & GROWTH (HRA),Building-Others,CAMPBELL ASSOCIATE,12-Apr-2018,300.00
D1800G-NEIGHBOURHOODS & GROWTH (HRA),Building-Paint,S LONDON DECORTORS,13-Apr-2018,42.25
D1800G-NEIGHBOURHOODS & GROWTH (HRA),Building-General,BANHAM GROUP,13-Apr-2018,39.60
D1800G-NEIGHBOURHOODS & GROWTH (HRA),Building-Electrical,WWW.SAFELINCS.CO.UK,13-Apr-2018,175.14
D1800G-NEIGHBOURHOODS & GROWTH (HRA),Travel/Subsistence,LUL TICKET MACHINE,16-Apr-2018,110.00
D1800G-NEIGHBOURHOODS & GROWTH (HRA),Catering Food & Drink,SAINSBURY'S SMKT,17-Apr-2018,400.00
D1800G-NEIGHBOURHOODS & GROWTH (HRA),Travel/Subsistence,NEW SOUTHERN RAILW,18-Apr-2018,100.00
D1800G-NEIGHBOURHOODS & GROWTH (HRA),Catering Food & Drink,TESCO STORES 4342,20-Apr-2018,100.00
D1800G-NEIGHBOURHOODS & GROWTH (HRA),Facilities-Market Research,AMAZON PRIME MEMBER FEE A,21-Apr-2018,7.99
D1800G-NEIGHBOURHOODS & GROWTH (HRA),Building-Timber,B & Q 1009,25-Apr-2018,124.93
D1800G-NEIGHBOURHOODS & GROWTH (HRA),Facilities-Market Research,Amazon Prime,28-Apr-2018,7.99
D1800G-NEIGHBOURHOODS & GROWTH (HRA),Works-Construction/Materials,LOCKSMITHS AT THE TOOL,01-May-2018,30.00
D1800G-NEIGHBOURHOODS & GROWTH (HRA),Financial Services,GRO HM PASSPORT OFFICE,02-May-2018,-9.25
D1800G-NEIGHBOURHOODS & GROWTH (HRA),Financial Services,GRO HM PASSPORT OFFICE,02-May-2018,9.25
D1800G-NEIGHBOURHOODS & GROWTH (HRA),Facilities-Market Research,Amazon Prime,02-May-2018,-7.99
D1800G-NEIGHBOURHOODS & GROWTH (HRA),Catering Food & Drink,MARKS&SPENCER PLC,03-May-2018,35.00
D1800G-NEIGHBOURHOODS & GROWTH (HRA),Consultancy-Business,FORTRESS MASTER LOCKSMITH,04-May-2018,16.90
D1800G-NEIGHBOURHOODS & GROWTH (HRA),Building-Timber,B & Q 1037,08-May-2018,70.28
D1800G-NEIGHBOURHOODS & GROWTH (HRA),Catering Food & Drink,TESCO STORES 6231,08-May-2018,10.90
D1800G-NEIGHBOURHOODS & GROWTH (HRA),Organised Activities,IZ *oval shoe repairs,09-May-2018,21.50
D1800G-NEIGHBOURHOODS & GROWTH (HRA),Travel/Subsistence,LUL TICKET MACHINE,09-May-2018,60.00
D1800G-NEIGHBOURHOODS & GROWTH (HRA),IT Software-Customised,INFOGRAM.COM,14-May-2018,164.32
D1800G-NEIGHBOURHOODS & GROWTH (HRA),Organised Activities,IZ *oval shoe repairs,14-May-2018,21.25
D1800G-NEIGHBOURHOODS & GROWTH (HRA),Building-Timber,C BREWER & SONS,15-May-2018,127.30
D1800G-NEIGHBOURHOODS & GROWTH (HRA),Building-General,TOOLSTATION LTD,16-May-2018,12.16
D1800G-NEIGHBOURHOODS & GROWTH (HRA),Building-Timber,JEWSON,16-May-2018,26.42
D1800G-NEIGHBOURHOODS & GROWTH (HRA),Building-Timber,JEWSON,16-May-2018,0.00
D1800G-NEIGHBOURHOODS & GROWTH (HRA),Building-Timber,SCREWFIX DIRECT,17-May-2018,214.62
D1800G-NEIGHBOURHOODS & GROWTH (HRA),Facilities-Market Research,AMAZON PRIME MEMBER FEE A,21-May-2018,7.99
D1800G-NEIGHBOURHOODS & GROWTH (HRA),IT Software-Customised,INTELLISOFTWARE LTD,23-May-2018,52.80
D1800G-NEIGHBOURHOODS & GROWTH (HRA),Building-Timber,BLISSETTS BUILDERS SUPPLI,24-May-2018,37.10
D1800G-NEIGHBOURHOODS & GROWTH (HRA),Building-General,LEYLAND SDM CLAPHAM HIGH,24-May-2018,29.48
D1800G-NEIGHBOURHOODS & GROWTH (HRA),Catering Food & Drink,TESCO STORES 5999,25-May-2018,45.87
D1800G-NEIGHBOURHOODS & GROWTH (HRA),Education-Library Books,Amazon UK Marketplace,29-May-2018,20.88
D1800G-NEIGHBOURHOODS & GROWTH (HRA),Consultancy-Business,ETC VENUES LTD,30-May-2018,783.36
D1800G-NEIGHBOURHOODS & GROWTH (HRA),Travel/Subsistence,SELFSERVE TICKET,30-May-2018,41.90
D1800G-NEIGHBOURHOODS & GROWTH (HRA),Travel/Subsistence,NEW SOUTHERN RAILW,31-May-2018,150.00
D1800G-NEIGHBOURHOODS & GROWTH (HRA),Building-Timber,SCREWFIX DIRECT,01-Jun-2018,34.35
D1800G-NEIGHBOURHOODS & GROWTH (HRA),Consultancy-Business,oceanmedia.co.uk,05-Jun-2018,3564.00
D1800G-NEIGHBOURHOODS & GROWTH (HRA),Building-Others,CAMPBELL ASSOCIATE,06-Jun-2018,330.00
D1800G-NEIGHBOURHOODS & GROWTH (HRA),Legal Services-Other,HMCOURTS-SERVICE.G,15-Jun-2018,-180.00
D1800G-NEIGHBOURHOODS & GROWTH (HRA),Facilities-Advertising,BRIX CENTRAL STOP,19-Jun-2018,60.00
D1800G-NEIGHBOURHOODS & GROWTH (HRA),Facilities-Market Research,Amazon Prime,21-Jun-2018,7.99
D1800G-NEIGHBOURHOODS & GROWTH (HRA),Building-Timber,B & Q 1009,25-Jun-2018,18.90
D1800G-NEIGHBOURHOODS & GROWTH (HRA),Building-Timber,B & Q 1009,25-Jun-2018,0.00
D1800G-NEIGHBOURHOODS & GROWTH (HRA),Accommodation,BESPOKE HOTELS LTD,26-Jun-2018,625.00
D1800G-NEIGHBOURHOODS & GROWTH (HRA),Accommodation,BESPOKE HOTELS LTD,28-Jun-2018,750.00
